Workbook

Sheet Retirement Worksheet
A1: RETIREMENT WORKSHEET | D1: Retirement Savings Requirement Graph
A2: DIRECTIONS: 1) Enter assumptions, 2) click 'Enter'->
A4: Assumptions
A5: Life expectancy (# years old) | B5: 90
A6: Retirement age (# years old) | B6: 65
A7: Total Savings at Retirement Age ($) | B7: 2000000
A8: Annual retirement savings withdrawal rate (%) | B8: 0.06
A9: Federal Tax rate in retirement (%) | B9: 0.38
A10: State Tax rate in retirement (%) | B10: 0.06
A11: Annual investment fees (%) | B11: 0.0025
A12: Annual Social security amount at Retirement ($) | B12: 0
A13: Annual Military Pension at Retirement Age ($) | B13: 30000
A14: Annual expenses ($) | B14: 150000
A15: Annual inflation rate and income increases (%) | B15: 0.02
A16: Annual return on investments (%) | B16: 0.05
C18: Chart Detail
C20: ='Retirement Calculations'!A2 -> Age | D20: Savings Balance | E20: ='Retirement Calculations'!C2 -> Investment Fees | F20: ='Retirement Calculations'!D2 -> Return on Investments | G20: ='Retirement Calculations'!E2 -> Net Investments | H20: ='Retirement Calculations'!G2 -> Annual Withdrawal | I20: ='Retirement Calculations'!H2 -> Pension | J20: ='Retirement Calculations'!I2 -> SSA | K20: Annual Income | L20: ='Retirement Calculations'!L2 -> Federal Income Taxes | M20: ='Retirement Calculations'!M2 -> State Income Taxes | N20: ='Retirement Calculations'!O2 -> Income-Taxes | O20: ='Retirement Calculations'!P2 -> Annual Expenses | P20: ='Retirement Calculations'!Q2 -> Net Income
C21: =IFERROR('Retirement Calculations'!A3,"") -> 65 | D21: =IFERROR('Retirement Calculations'!B3,"") -> 2000000 | E21: =IFERROR('Retirement Calculations'!C3,"") -> 5000 | F21: =IFERROR('Retirement Calculations'!D3,"") -> 100000 | G21: =IFERROR('Retirement Calculations'!E3,"") -> 2095000 | H21: =IFERROR('Retirement Calculations'!G3,"") -> 120000 | I21: =IFERROR('Retirement Calculations'!H3,"") -> 30000 | J21: =IFERROR('Retirement Calculations'!I3,"") -> 0 | K21: =IFERROR('Retirement Calculations'!J3,"") -> 150000 | L21: =IFERROR('Retirement Calculations'!L3,"") -> 57000 | M21: =IFERROR('Retirement Calculations'!M3,"") -> 9000 | N21: =IFERROR('Retirement Calculations'!O3,"") -> 84000 | O21: =IFERROR('Retirement Calculations'!P3,"") -> 150000 | P21: =IFERROR('Retirement Calculations'!Q3,"") -> -66000
C22: =IFERROR('Retirement Calculations'!A4,"") -> 66 | D22: =IFERROR('Retirement Calculations'!B4,"") -> 2029000 | E22: =IFERROR('Retirement Calculations'!C4,"") -> 5072.5 | F22: =IFERROR('Retirement Calculations'!D4,"") -> 101450 | G22: =IFERROR('Retirement Calculations'!E4,"") -> 2125377.5 | H22: =IFERROR('Retirement Calculations'!G4,"") -> 121740 | I22: =IFERROR('Retirement Calculations'!H4,"") -> 30600 | J22: =IFERROR('Retirement Calculations'!I4,"") -> 0 | K22: =IFERROR('Retirement Calculations'!J4,"") -> 152340 | L22: =IFERROR('Retirement Calculations'!L4,"") -> 57889.2 | M22: =IFERROR('Retirement Calculations'!M4,"") -> 9140.4 | N22: =IFERROR('Retirement Calculations'!O4,"") -> 85310.4 | O22: =IFERROR('Retirement Calculations'!P4,"") -> 153000 | P22: =IFERROR('Retirement Calculations'!Q4,"") -> -67689.6
C23: =IFERROR('Retirement Calculations'!A5,"") -> 67 | D23: =IFERROR('Retirement Calculations'!B5,"") -> 2057687.9 | E23: =IFERROR('Retirement Calculations'!C5,"") -> 5144.21975 | F23: =IFERROR('Retirement Calculations'!D5,"") -> 102884.395 | G23: =IFERROR('Retirement Calculations'!E5,"") -> 2155428.075 | H23: =IFERROR('Retirement Calculations'!G5,"") -> 123461.274 | I23: =IFERROR('Retirement Calculations'!H5,"") -> 31212 | J23: =IFERROR('Retirement Calculations'!I5,"") -> 0 | K23: =IFERROR('Retirement Calculations'!J5,"") -> 154673.274 | L23: =IFERROR('Retirement Calculations'!L5,"") -> 58775.84412 | M23: =IFERROR('Retirement Calculations'!M5,"") -> 9280.39644 | N23: =IFERROR('Retirement Calculations'!O5,"") -> 86617.03344 | O23: =IFERROR('Retirement Calculations'!P5,"") -> 156060 | P23: =IFERROR('Retirement Calculations'!Q5,"") -> -69442.96656
C24: =IFERROR('Retirement Calculations'!A6,"") -> 68 | D24: =IFERROR('Retirement Calculations'!B6,"") -> 2085985.109 | E24: =IFERROR('Retirement Calculations'!C6,"") -> 5214.962772 | F24: =IFERROR('Retirement Calculations'!D6,"") -> 104299.2554 | G24: =IFERROR('Retirement Calculations'!E6,"") -> 2185069.401 | H24: =IFERROR('Retirement Calculations'!G6,"") -> 125159.1065 | I24: =IFERROR('Retirement Calculations'!H6,"") -> 31836.24 | J24: =IFERROR('Retirement Calculations'!I6,"") -> 0 | K24: =IFERROR('Retirement Calculations'!J6,"") -> 156995.3465 | L24: =IFERROR('Retirement Calculations'!L6,"") -> 59658.23168 | M24: =IFERROR('Retirement Calculations'!M6,"") -> 9419.720791 | N24: =IFERROR('Retirement Calculations'!O6,"") -> 87917.39405 | O24: =IFERROR('Retirement Calculations'!P6,"") -> 159181.2 | P24: =IFERROR('Retirement Calculations'!Q6,"") -> -71263.80595
C25: =IFERROR('Retirement Calculations'!A7,"") -> 69 | D25: =IFERROR('Retirement Calculations'!B7,"") -> 2113805.595 | E25: =IFERROR('Retirement Calculations'!C7,"") -> 5284.513989 | F25: =IFERROR('Retirement Calculations'!D7,"") -> 105690.2798 | G25: =IFERROR('Retirement Calculations'!E7,"") -> 2214211.361 | H25: =IFERROR('Retirement Calculations'!G7,"") -> 126828.3357 | I25: =IFERROR('Retirement Calculations'!H7,"") -> 32472.9648 | J25: =IFERROR('Retirement Calculations'!I7,"") -> 0 | K25: =IFERROR('Retirement Calculations'!J7,"") -> 159301.3005 | L25: =IFERROR('Retirement Calculations'!L7,"") -> 60534.4942 | M25: =IFERROR('Retirement Calculations'!M7,"") -> 9558.078031 | N25: =IFERROR('Retirement Calculations'!O7,"") -> 89208.72829 | O25: =IFERROR('Retirement Calculations'!P7,"") -> 162364.824 | P25: =IFERROR('Retirement Calculations'!Q7,"") -> -73156.09571
C26: =IFERROR('Retirement Calculations'!A8,"") -> 70 | D26: =IFERROR('Retirement Calculations'!B8,"") -> 2141055.265 | E26: =IFERROR('Retirement Calculations'!C8,"") -> 5352.638164 | F26: =IFERROR('Retirement Calculations'!D8,"") -> 107052.7633 | G26: =IFERROR('Retirement Calculations'!E8,"") -> 2242755.391 | H26: =IFERROR('Retirement Calculations'!G8,"") -> 128463.3159 | I26: =IFERROR('Retirement Calculations'!H8,"") -> 33122.4241 | J26: =IFERROR('Retirement Calculations'!I8,"") -> 0 | K26: =IFERROR('Retirement Calculations'!J8,"") -> 161585.74 | L26: =IFERROR('Retirement Calculations'!L8,"") -> 61402.58121 | M26: =IFERROR('Retirement Calculations'!M8,"") -> 9695.144401 | N26: =IFERROR('Retirement Calculations'!O8,"") -> 90488.01441 | O26: =IFERROR('Retirement Calculations'!P8,"") -> 165612.1205 | P26: =IFERROR('Retirement Calculations'!Q8,"") -> -75124.10607
C27: =IFERROR('Retirement Calculations'!A9,"") -> 71 | D27: =IFERROR('Retirement Calculations'!B9,"") -> 2167631.285 | E27: =IFERROR('Retirement Calculations'!C9,"") -> 5419.078211 | F27: =IFERROR('Retirement Calculations'!D9,"") -> 108381.5642 | G27: =IFERROR('Retirement Calculations'!E9,"") -> 2270593.771 | H27: =IFERROR('Retirement Calculations'!G9,"") -> 130057.8771 | I27: =IFERROR('Retirement Calculations'!H9,"") -> 33784.87258 | J27: =IFERROR('Retirement Calculations'!I9,"") -> 0 | K27: =IFERROR('Retirement Calculations'!J9,"") -> 163842.7496 | L27: =IFERROR('Retirement Calculations'!L9,"") -> 62260.24487 | M27: =IFERROR('Retirement Calculations'!M9,"") -> 9830.564979 | N27: =IFERROR('Retirement Calculations'!O9,"") -> 91751.9398 | O27: =IFERROR('Retirement Calculations'!P9,"") -> 168924.3629 | P27: =IFERROR('Retirement Calculations'!Q9,"") -> -77172.42309
C28: =IFERROR('Retirement Calculations'!A10,"") -> 72 | D28: =IFERROR('Retirement Calculations'!B10,"") -> 2193421.347 | E28: =IFERROR('Retirement Calculations'!C10,"") -> 5483.553369 | F28: =IFERROR('Retirement Calculations'!D10,"") -> 109671.0674 | G28: =IFERROR('Retirement Calculations'!E10,"") -> 2297608.861 | H28: =IFERROR('Retirement Calculations'!G10,"") -> 131605.2808 | I28: =IFERROR('Retirement Calculations'!H10,"") -> 34460.57003 | J28: =IFERROR('Retirement Calculations'!I10,"") -> 0 | K28: =IFERROR('Retirement Calculations'!J10,"") -> 166065.8509 | L28: =IFERROR('Retirement Calculations'!L10,"") -> 63105.02333 | M28: =IFERROR('Retirement Calculations'!M10,"") -> 9963.951053 | N28: =IFERROR('Retirement Calculations'!O10,"") -> 92996.87649 | O28: =IFERROR('Retirement Calculations'!P10,"") -> 172302.8501 | P28: =IFERROR('Retirement Calculations'!Q10,"") -> -79305.97366
C29: =IFERROR('Retirement Calculations'!A11,"") -> 73 | D29: =IFERROR('Retirement Calculations'!B11,"") -> 2218302.888 | E29: =IFERROR('Retirement Calculations'!C11,"") -> 5545.75722 | F29: =IFERROR('Retirement Calculations'!D11,"") -> 110915.1444 | G29: =IFERROR('Retirement Calculations'!E11,"") -> 2323672.275 | H29: =IFERROR('Retirement Calculations'!G11,"") -> 133098.1733 | I29: =IFERROR('Retirement Calculations'!H11,"") -> 35149.78143 | J29: =IFERROR('Retirement Calculations'!I11,"") -> 0 | K29: =IFERROR('Retirement Calculations'!J11,"") -> 168247.9547 | L29: =IFERROR('Retirement Calculations'!L11,"") -> 63934.22279 | M29: =IFERROR('Retirement Calculations'!M11,"") -> 10094.87728 | N29: =IFERROR('Retirement Calculations'!O11,"") -> 94218.85463 | O29: =IFERROR('Retirement Calculations'!P11,"") -> 175748.9072 | P29: =IFERROR('Retirement Calculations'!Q11,"") -> -81530.05252
C30: =IFERROR('Retirement Calculations'!A12,"") -> 74 | D30: =IFERROR('Retirement Calculations'!B12,"") -> 2242142.222 | E30: =IFERROR('Retirement Calculations'!C12,"") -> 5605.355556 | F30: =IFERROR('Retirement Calculations'!D12,"") -> 112107.1111 | G30: =IFERROR('Retirement Calculations'!E12,"") -> 2348643.978 | H30: =IFERROR('Retirement Calculations'!G12,"") -> 134528.5333 | I30: =IFERROR('Retirement Calculations'!H12,"") -> 35852.77706 | J30: =IFERROR('Retirement Calculations'!I12,"") -> 0 | K30: =IFERROR('Retirement Calculations'!J12,"") -> 170381.3104 | L30: =IFERROR('Retirement Calculations'!L12,"") -> 64744.89795 | M30: =IFERROR('Retirement Calculations'!M12,"") -> 10222.87862 | N30: =IFERROR('Retirement Calculations'!O12,"") -> 95413.53383 | O30: =IFERROR('Retirement Calculations'!P12,"") -> 179263.8853 | P30: =IFERROR('Retirement Calculations'!Q12,"") -> -83850.35147
C31: =IFERROR('Retirement Calculations'!A13,"") -> 75 | D31: =IFERROR('Retirement Calculations'!B13,"") -> 2264793.627 | E31: =IFERROR('Retirement Calculations'!C13,"") -> 5661.984066 | F31: =IFERROR('Retirement Calculations'!D13,"") -> 113239.6813 | G31: =IFERROR('Retirement Calculations'!E13,"") -> 2372371.324 | H31: =IFERROR('Retirement Calculations'!G13,"") -> 135887.6176 | I31: =IFERROR('Retirement Calculations'!H13,"") -> 36569.8326 | J31: =IFERROR('Retirement Calculations'!I13,"") -> 0 | K31: =IFERROR('Retirement Calculations'!J13,"") -> 172457.4502 | L31: =IFERROR('Retirement Calculations'!L13,"") -> 65533.83107 | M31: =IFERROR('Retirement Calculations'!M13,"") -> 10347.44701 | N31: =IFERROR('Retirement Calculations'!O13,"") -> 96576.17211 | O31: =IFERROR('Retirement Calculations'!P13,"") -> 182849.163 | P31: =IFERROR('Retirement Calculations'!Q13,"") -> -86272.99089
C32: =IFERROR('Retirement Calculations'!A14,"") -> 76 | D32: =IFERROR('Retirement Calculations'!B14,"") -> 2286098.333 | E32: =IFERROR('Retirement Calculations'!C14,"") -> 5715.245832 | F32: =IFERROR('Retirement Calculations'!D14,"") -> 114304.9166 | G32: =IFERROR('Retirement Calculations'!E14,"") -> 2394688.004 | H32: =IFERROR('Retirement Calculations'!G14,"") -> 137165.9 | I32: =IFERROR('Retirement Calculations'!H14,"") -> 37301.22925 | J32: =IFERROR('Retirement Calculations'!I14,"") -> 0 | K32: =IFERROR('Retirement Calculations'!J14,"") -> 174467.1292 | L32: =IFERROR('Retirement Calculations'!L14,"") -> 66297.50911 | M32: =IFERROR('Retirement Calculations'!M14,"") -> 10468.02775 | N32: =IFERROR('Retirement Calculations'!O14,"") -> 97701.59237 | O32: =IFERROR('Retirement Calculations'!P14,"") -> 186506.1463 | P32: =IFERROR('Retirement Calculations'!Q14,"") -> -88804.55389
C33: =IFERROR('Retirement Calculations'!A15,"") -> 77 | D33: =IFERROR('Retirement Calculations'!B15,"") -> 2305883.45 | E33: =IFERROR('Retirement Calculations'!C15,"") -> 5764.708625 | F33: =IFERROR('Retirement Calculations'!D15,"") -> 115294.1725 | G33: =IFERROR('Retirement Calculations'!E15,"") -> 2415412.914 | H33: =IFERROR('Retirement Calculations'!G15,"") -> 138353.007 | I33: =IFERROR('Retirement Calculations'!H15,"") -> 38047.25384 | J33: =IFERROR('Retirement Calculations'!I15,"") -> 0 | K33: =IFERROR('Retirement Calculations'!J15,"") -> 176400.2608 | L33: =IFERROR('Retirement Calculations'!L15,"") -> 67032.09911 | M33: =IFERROR('Retirement Calculations'!M15,"") -> 10584.01565 | N33: =IFERROR('Retirement Calculations'!O15,"") -> 98784.14606 | O33: =IFERROR('Retirement Calculations'!P15,"") -> 190236.2692 | P33: =IFERROR('Retirement Calculations'!Q15,"") -> -91452.12312
C34: =IFERROR('Retirement Calculations'!A16,"") -> 78 | D34: =IFERROR('Retirement Calculations'!B16,"") -> 2323960.791 | E34: =IFERROR('Retirement Calculations'!C16,"") -> 5809.901976 | F34: =IFERROR('Retirement Calculations'!D16,"") -> 116198.0395 | G34: =IFERROR('Retirement Calculations'!E16,"") -> 2434348.928 | H34: =IFERROR('Retirement Calculations'!G16,"") -> 139437.6474 | I34: =IFERROR('Retirement Calculations'!H16,"") -> 38808.19891 | J34: =IFERROR('Retirement Calculations'!I16,"") -> 0 | K34: =IFERROR('Retirement Calculations'!J16,"") -> 178245.8463 | L34: =IFERROR('Retirement Calculations'!L16,"") -> 67733.42161 | M34: =IFERROR('Retirement Calculations'!M16,"") -> 10694.75078 | N34: =IFERROR('Retirement Calculations'!O16,"") -> 99817.67396 | O34: =IFERROR('Retirement Calculations'!P16,"") -> 194040.9946 | P34: =IFERROR('Retirement Calculations'!Q16,"") -> -94223.32061
C35: =IFERROR('Retirement Calculations'!A17,"") -> 79 | D35: =IFERROR('Retirement Calculations'!B17,"") -> 2340125.608 | E35: =IFERROR('Retirement Calculations'!C17,"") -> 5850.314019 | F35: =IFERROR('Retirement Calculations'!D17,"") -> 117006.2804 | G35: =IFERROR('Retirement Calculations'!E17,"") -> 2451281.574 | H35: =IFERROR('Retirement Calculations'!G17,"") -> 140407.5365 | I35: =IFERROR('Retirement Calculations'!H17,"") -> 39584.36289 | J35: =IFERROR('Retirement Calculations'!I17,"") -> 0 | K35: =IFERROR('Retirement Calculations'!J17,"") -> 179991.8993 | L35: =IFERROR('Retirement Calculations'!L17,"") -> 68396.92175 | M35: =IFERROR('Retirement Calculations'!M17,"") -> 10799.51396 | N35: =IFERROR('Retirement Calculations'!O17,"") -> 100795.4636 | O35: =IFERROR('Retirement Calculations'!P17,"") -> 197921.8145 | P35: =IFERROR('Retirement Calculations'!Q17,"") -> -97126.35083
C36: =IFERROR('Retirement Calculations'!A18,"") -> 80 | D36: =IFERROR('Retirement Calculations'!B18,"") -> 2354155.223 | E36: =IFERROR('Retirement Calculations'!C18,"") -> 5885.388058 | F36: =IFERROR('Retirement Calculations'!D18,"") -> 117707.7612 | G36: =IFERROR('Retirement Calculations'!E18,"") -> 2465977.596 | H36: =IFERROR('Retirement Calculations'!G18,"") -> 141249.3134 | I36: =IFERROR('Retirement Calculations'!H18,"") -> 40376.05015 | J36: =IFERROR('Retirement Calculations'!I18,"") -> 0 | K36: =IFERROR('Retirement Calculations'!J18,"") -> 181625.3635 | L36: =IFERROR('Retirement Calculations'!L18,"") -> 69017.63814 | M36: =IFERROR('Retirement Calculations'!M18,"") -> 10897.52181 | N36: =IFERROR('Retirement Calculations'!O18,"") -> 101710.2036 | O36: =IFERROR('Retirement Calculations'!P18,"") -> 201880.2507 | P36: =IFERROR('Retirement Calculations'!Q18,"") -> -100170.0472
C37: =IFERROR('Retirement Calculations'!A19,"") -> 81 | D37: =IFERROR('Retirement Calculations'!B19,"") -> 2365807.549 | E37: =IFERROR('Retirement Calculations'!C19,"") -> 5914.518872 | F37: =IFERROR('Retirement Calculations'!D19,"") -> 118290.3774 | G37: =IFERROR('Retirement Calculations'!E19,"") -> 2478183.408 | H37: =IFERROR('Retirement Calculations'!G19,"") -> 141948.4529 | I37: =IFERROR('Retirement Calculations'!H19,"") -> 41183.57115 | J37: =IFERROR('Retirement Calculations'!I19,"") -> 0 | K37: =IFERROR('Retirement Calculations'!J19,"") -> 183132.0241 | L37: =IFERROR('Retirement Calculations'!L19,"") -> 69590.16915 | M37: =IFERROR('Retirement Calculations'!M19,"") -> 10987.92145 | N37: =IFERROR('Retirement Calculations'!O19,"") -> 102553.9335 | O37: =IFERROR('Retirement Calculations'!P19,"") -> 205917.8558 | P37: =IFERROR('Retirement Calculations'!Q19,"") -> -103363.9223
C38: =IFERROR('Retirement Calculations'!A20,"") -> 82 | D38: =IFERROR('Retirement Calculations'!B20,"") -> 2374819.485 | E38: =IFERROR('Retirement Calculations'!C20,"") -> 5937.048713 | F38: =IFERROR('Retirement Calculations'!D20,"") -> 118740.9743 | G38: =IFERROR('Retirement Calculations'!E20,"") -> 2487623.411 | H38: =IFERROR('Retirement Calculations'!G20,"") -> 142489.1691 | I38: =IFERROR('Retirement Calculations'!H20,"") -> 42007.24258 | J38: =IFERROR('Retirement Calculations'!I20,"") -> 0 | K38: =IFERROR('Retirement Calculations'!J20,"") -> 184496.4117 | L38: =IFERROR('Retirement Calculations'!L20,"") -> 70108.63644 | M38: =IFERROR('Retirement Calculations'!M20,"") -> 11069.7847 | N38: =IFERROR('Retirement Calculations'!O20,"") -> 103317.9905 | O38: =IFERROR('Retirement Calculations'!P20,"") -> 210036.2129 | P38: =IFERROR('Retirement Calculations'!Q20,"") -> -106718.2223
C39: =IFERROR('Retirement Calculations'!A21,"") -> 83 | D39: =IFERROR('Retirement Calculations'!B21,"") -> 2380905.189 | E39: =IFERROR('Retirement Calculations'!C21,"") -> 5952.262971 | F39: =IFERROR('Retirement Calculations'!D21,"") -> 119045.2594 | G39: =IFERROR('Retirement Calculations'!E21,"") -> 2493998.185 | H39: =IFERROR('Retirement Calculations'!G21,"") -> 142854.3113 | I39: =IFERROR('Retirement Calculations'!H21,"") -> 42847.38743 | J39: =IFERROR('Retirement Calculations'!I21,"") -> 0 | K39: =IFERROR('Retirement Calculations'!J21,"") -> 185701.6987 | L39: =IFERROR('Retirement Calculations'!L21,"") -> 70566.64552 | M39: =IFERROR('Retirement Calculations'!M21,"") -> 11142.10192 | N39: =IFERROR('Retirement Calculations'!O21,"") -> 103992.9513 | O39: =IFERROR('Retirement Calculations'!P21,"") -> 214236.9371 | P39: =IFERROR('Retirement Calculations'!Q21,"") -> -110243.9858
C40: =IFERROR('Retirement Calculations'!A22,"") -> 84 | D40: =IFERROR('Retirement Calculations'!B22,"") -> 2383754.199 | E40: =IFERROR('Retirement Calculations'!C22,"") -> 5959.385498 | F40: =IFERROR('Retirement Calculations'!D22,"") -> 119187.71 | G40: =IFERROR('Retirement Calculations'!E22,"") -> 2496982.524 | H40: =IFERROR('Retirement Calculations'!G22,"") -> 143025.2519 | I40: =IFERROR('Retirement Calculations'!H22,"") -> 43704.33518 | J40: =IFERROR('Retirement Calculations'!I22,"") -> 0 | K40: =IFERROR('Retirement Calculations'!J22,"") -> 186729.5871 | L40: =IFERROR('Retirement Calculations'!L22,"") -> 70957.24311 | M40: =IFERROR('Retirement Calculations'!M22,"") -> 11203.77523 | N40: =IFERROR('Retirement Calculations'!O22,"") -> 104568.5688 | O40: =IFERROR('Retirement Calculations'!P22,"") -> 218521.6759 | P40: =IFERROR('Retirement Calculations'!Q22,"") -> -113953.1071
C41: =IFERROR('Retirement Calculations'!A23,"") -> 85 | D41: =IFERROR('Retirement Calculations'!B23,"") -> 2383029.416 | E41: =IFERROR('Retirement Calculations'!C23,"") -> 5957.573541 | F41: =IFERROR('Retirement Calculations'!D23,"") -> 119151.4708 | G41: =IFERROR('Retirement Calculations'!E23,"") -> 2496223.314 | H41: =IFERROR('Retirement Calculations'!G23,"") -> 142981.765 | I41: =IFERROR('Retirement Calculations'!H23,"") -> 44578.42188 | J41: =IFERROR('Retirement Calculations'!I23,"") -> 0 | K41: =IFERROR('Retirement Calculations'!J23,"") -> 187560.1869 | L41: =IFERROR('Retirement Calculations'!L23,"") -> 71272.87101 | M41: =IFERROR('Retirement Calculations'!M23,"") -> 11253.61121 | N41: =IFERROR('Retirement Calculations'!O23,"") -> 105033.7046 | O41: =IFERROR('Retirement Calculations'!P23,"") -> 222892.1094 | P41: =IFERROR('Retirement Calculations'!Q23,"") -> -117858.4048
C42: =IFERROR('Retirement Calculations'!A24,"") -> 86 | D42: =IFERROR('Retirement Calculations'!B24,"") -> 2378364.909 | E42: =IFERROR('Retirement Calculations'!C24,"") -> 5945.912273 | F42: =IFERROR('Retirement Calculations'!D24,"") -> 118918.2455 | G42: =IFERROR('Retirement Calculations'!E24,"") -> 2491337.242 | H42: =IFERROR('Retirement Calculations'!G24,"") -> 142701.8945 | I42: =IFERROR('Retirement Calculations'!H24,"") -> 45469.99032 | J42: =IFERROR('Retirement Calculations'!I24,"") -> 0 | K42: =IFERROR('Retirement Calculations'!J24,"") -> 188171.8849 | L42: =IFERROR('Retirement Calculations'!L24,"") -> 71505.31625 | M42: =IFERROR('Retirement Calculations'!M24,"") -> 11290.31309 | N42: =IFERROR('Retirement Calculations'!O24,"") -> 105376.2555 | O42: =IFERROR('Retirement Calculations'!P24,"") -> 227349.9516 | P42: =IFERROR('Retirement Calculations'!Q24,"") -> -121973.6961
C43: =IFERROR('Retirement Calculations'!A25,"") -> 87 | D43: =IFERROR('Retirement Calculations'!B25,"") -> 2369363.546 | E43: =IFERROR('Retirement Calculations'!C25,"") -> 5923.408865 | F43: =IFERROR('Retirement Calculations'!D25,"") -> 118468.1773 | G43: =IFERROR('Retirement Calculations'!E25,"") -> 2481908.315 | H43: =IFERROR('Retirement Calculations'!G25,"") -> 142161.8128 | I43: =IFERROR('Retirement Calculations'!H25,"") -> 46379.39012 | J43: =IFERROR('Retirement Calculations'!I25,"") -> 0 | K43: =IFERROR('Retirement Calculations'!J25,"") -> 188541.2029 | L43: =IFERROR('Retirement Calculations'!L25,"") -> 71645.6571 | M43: =IFERROR('Retirement Calculations'!M25,"") -> 11312.47217 | N43: =IFERROR('Retirement Calculations'!O25,"") -> 105583.0736 | O43: =IFERROR('Retirement Calculations'!P25,"") -> 231896.9506 | P43: =IFERROR('Retirement Calculations'!Q25,"") -> -126313.877
C44: =IFERROR('Retirement Calculations'!A26,"") -> 88 | D44: =IFERROR('Retirement Calculations'!B26,"") -> 2355594.438 | E44: =IFERROR('Retirement Calculations'!C26,"") -> 5888.986094 | F44: =IFERROR('Retirement Calculations'!D26,"") -> 117779.7219 | G44: =IFERROR('Retirement Calculations'!E26,"") -> 2467485.173 | H44: =IFERROR('Retirement Calculations'!G26,"") -> 141335.6663 | I44: =IFERROR('Retirement Calculations'!H26,"") -> 47306.97793 | J44: =IFERROR('Retirement Calculations'!I26,"") -> 0 | K44: =IFERROR('Retirement Calculations'!J26,"") -> 188642.6442 | L44: =IFERROR('Retirement Calculations'!L26,"") -> 71684.20479 | M44: =IFERROR('Retirement Calculations'!M26,"") -> 11318.55865 | N44: =IFERROR('Retirement Calculations'!O26,"") -> 105639.8807 | O44: =IFERROR('Retirement Calculations'!P26,"") -> 236534.8896 | P44: =IFERROR('Retirement Calculations'!Q26,"") -> -130895.0089
C45: =IFERROR('Retirement Calculations'!A27,"") -> 89 | D45: =IFERROR('Retirement Calculations'!B27,"") -> 2336590.164 | E45: =IFERROR('Retirement Calculations'!C27,"") -> 5841.475411 | F45: =IFERROR('Retirement Calculations'!D27,"") -> 116829.5082 | G45: =IFERROR('Retirement Calculations'!E27,"") -> 2447578.197 | H45: =IFERROR('Retirement Calculations'!G27,"") -> 140195.4099 | I45: =IFERROR('Retirement Calculations'!H27,"") -> 48253.11748 | J45: =IFERROR('Retirement Calculations'!I27,"") -> 0 | K45: =IFERROR('Retirement Calculations'!J27,"") -> 188448.5274 | L45: =IFERROR('Retirement Calculations'!L27,"") -> 71610.44039 | M45: =IFERROR('Retirement Calculations'!M27,"") -> 11306.91164 | N45: =IFERROR('Retirement Calculations'!O27,"") -> 105531.1753 | O45: =IFERROR('Retirement Calculations'!P27,"") -> 241265.5874 | P45: =IFERROR('Retirement Calculations'!Q27,"") -> -135734.4121
C46: =IFERROR('Retirement Calculations'!A28,"") -> 90 | D46: =IFERROR('Retirement Calculations'!B28,"") -> 2311843.785 | E46: =IFERROR('Retirement Calculations'!C28,"") -> 5779.609463 | F46: =IFERROR('Retirement Calculations'!D28,"") -> 115592.1893 | G46: =IFERROR('Retirement Calculations'!E28,"") -> 2421656.365 | H46: =IFERROR('Retirement Calculations'!G28,"") -> 138710.6271 | I46: =IFERROR('Retirement Calculations'!H28,"") -> 49218.17983 | J46: =IFERROR('Retirement Calculations'!I28,"") -> 0 | K46: =IFERROR('Retirement Calculations'!J28,"") -> 187928.8069 | L46: =IFERROR('Retirement Calculations'!L28,"") -> 71412.94664 | M46: =IFERROR('Retirement Calculations'!M28,"") -> 11275.72842 | N46: =IFERROR('Retirement Calculations'!O28,"") -> 105240.1319 | O46: =IFERROR('Retirement Calculations'!P28,"") -> 246090.8992 | P46: =IFERROR('Retirement Calculations'!Q28,"") -> -140850.7673
C47: =IFERROR('Retirement Calculations'!A29,"") ->  | D47: =IFERROR('Retirement Calculations'!B29,"") ->  | E47: =IFERROR('Retirement Calculations'!C29,"") ->  | F47: =IFERROR('Retirement Calculations'!D29,"") ->  | G47: =IFERROR('Retirement Calculations'!E29,"") ->  | H47: =IFERROR('Retirement Calculations'!G29,"") ->  | I47: =IFERROR('Retirement Calculations'!H29,"") ->  | J47: =IFERROR('Retirement Calculations'!I29,"") ->  | K47: =IFERROR('Retirement Calculations'!J29,"") ->  | L47: =IFERROR('Retirement Calculations'!L29,"") ->  | M47: =IFERROR('Retirement Calculations'!M29,"") ->  | N47: =IFERROR('Retirement Calculations'!O29,"") ->  | O47: =IFERROR('Retirement Calculations'!P29,"") ->  | P47: =IFERROR('Retirement Calculations'!Q29,"") -> 
C48: =IFERROR('Retirement Calculations'!A30,"") ->  | D48: =IFERROR('Retirement Calculations'!B30,"") ->  | E48: =IFERROR('Retirement Calculations'!C30,"") ->  | F48: =IFERROR('Retirement Calculations'!D30,"") ->  | G48: =IFERROR('Retirement Calculations'!E30,"") ->  | H48: =IFERROR('Retirement Calculations'!G30,"") ->  | I48: =IFERROR('Retirement Calculations'!H30,"") ->  | J48: =IFERROR('Retirement Calculations'!I30,"") ->  | K48: =IFERROR('Retirement Calculations'!J30,"") ->  | L48: =IFERROR('Retirement Calculations'!L30,"") ->  | M48: =IFERROR('Retirement Calculations'!M30,"") ->  | N48: =IFERROR('Retirement Calculations'!O30,"") ->  | O48: =IFERROR('Retirement Calculations'!P30,"") ->  | P48: =IFERROR('Retirement Calculations'!Q30,"") -> 
C49: =IFERROR('Retirement Calculations'!A31,"") ->  | D49: =IFERROR('Retirement Calculations'!B31,"") ->  | E49: =IFERROR('Retirement Calculations'!C31,"") ->  | F49: =IFERROR('Retirement Calculations'!D31,"") ->  | G49: =IFERROR('Retirement Calculations'!E31,"") ->  | H49: =IFERROR('Retirement Calculations'!G31,"") ->  | I49: =IFERROR('Retirement Calculations'!H31,"") ->  | J49: =IFERROR('Retirement Calculations'!I31,"") ->  | K49: =IFERROR('Retirement Calculations'!J31,"") ->  | L49: =IFERROR('Retirement Calculations'!L31,"") ->  | M49: =IFERROR('Retirement Calculations'!M31,"") ->  | N49: =IFERROR('Retirement Calculations'!O31,"") ->  | O49: =IFERROR('Retirement Calculations'!P31,"") ->  | P49: =IFERROR('Retirement Calculations'!Q31,"") -> 
C50: =IFERROR('Retirement Calculations'!A32,"") ->  | D50: =IFERROR('Retirement Calculations'!B32,"") ->  | E50: =IFERROR('Retirement Calculations'!C32,"") ->  | F50: =IFERROR('Retirement Calculations'!D32,"") ->  | G50: =IFERROR('Retirement Calculations'!E32,"") ->  | H50: =IFERROR('Retirement Calculations'!G32,"") ->  | I50: =IFERROR('Retirement Calculations'!H32,"") ->  | J50: =IFERROR('Retirement Calculations'!I32,"") ->  | K50: =IFERROR('Retirement Calculations'!J32,"") ->  | L50: =IFERROR('Retirement Calculations'!L32,"") ->  | M50: =IFERROR('Retirement Calculations'!M32,"") ->  | N50: =IFERROR('Retirement Calculations'!O32,"") ->  | O50: =IFERROR('Retirement Calculations'!P32,"") ->  | P50: =IFERROR('Retirement Calculations'!Q32,"") -> 
C51: =IFERROR('Retirement Calculations'!A33,"") ->  | D51: =IFERROR('Retirement Calculations'!B33,"") ->  | E51: =IFERROR('Retirement Calculations'!C33,"") ->  | F51: =IFERROR('Retirement Calculations'!D33,"") ->  | G51: =IFERROR('Retirement Calculations'!E33,"") ->  | H51: =IFERROR('Retirement Calculations'!G33,"") ->  | I51: =IFERROR('Retirement Calculations'!H33,"") ->  | J51: =IFERROR('Retirement Calculations'!I33,"") ->  | K51: =IFERROR('Retirement Calculations'!J33,"") ->  | L51: =IFERROR('Retirement Calculations'!L33,"") ->  | M51: =IFERROR('Retirement Calculations'!M33,"") ->  | N51: =IFERROR('Retirement Calculations'!O33,"") ->  | O51: =IFERROR('Retirement Calculations'!P33,"") ->  | P51: =IFERROR('Retirement Calculations'!Q33,"") -> 
C52: =IFERROR('Retirement Calculations'!A34,"") ->  | D52: =IFERROR('Retirement Calculations'!B34,"") ->  | E52: =IFERROR('Retirement Calculations'!C34,"") ->  | F52: =IFERROR('Retirement Calculations'!D34,"") ->  | G52: =IFERROR('Retirement Calculations'!E34,"") ->  | H52: =IFERROR('Retirement Calculations'!G34,"") ->  | I52: =IFERROR('Retirement Calculations'!H34,"") ->  | J52: =IFERROR('Retirement Calculations'!I34,"") ->  | K52: =IFERROR('Retirement Calculations'!J34,"") ->  | L52: =IFERROR('Retirement Calculations'!L34,"") ->  | M52: =IFERROR('Retirement Calculations'!M34,"") ->  | N52: =IFERROR('Retirement Calculations'!O34,"") ->  | O52: =IFERROR('Retirement Calculations'!P34,"") ->  | P52: =IFERROR('Retirement Calculations'!Q34,"") -> 
C53: =IFERROR('Retirement Calculations'!A35,"") ->  | D53: =IFERROR('Retirement Calculations'!B35,"") ->  | E53: =IFERROR('Retirement Calculations'!C35,"") ->  | F53: =IFERROR('Retirement Calculations'!D35,"") ->  | G53: =IFERROR('Retirement Calculations'!E35,"") ->  | H53: =IFERROR('Retirement Calculations'!G35,"") ->  | I53: =IFERROR('Retirement Calculations'!H35,"") ->  | J53: =IFERROR('Retirement Calculations'!I35,"") ->  | K53: =IFERROR('Retirement Calculations'!J35,"") ->  | L53: =IFERROR('Retirement Calculations'!L35,"") ->  | M53: =IFERROR('Retirement Calculations'!M35,"") ->  | N53: =IFERROR('Retirement Calculations'!O35,"") ->  | O53: =IFERROR('Retirement Calculations'!P35,"") ->  | P53: =IFERROR('Retirement Calculations'!Q35,"") -> 
C54: =IFERROR('Retirement Calculations'!A36,"") ->  | D54: =IFERROR('Retirement Calculations'!B36,"") ->  | E54: =IFERROR('Retirement Calculations'!C36,"") ->  | F54: =IFERROR('Retirement Calculations'!D36,"") ->  | G54: =IFERROR('Retirement Calculations'!E36,"") ->  | H54: =IFERROR('Retirement Calculations'!G36,"") ->  | I54: =IFERROR('Retirement Calculations'!H36,"") ->  | J54: =IFERROR('Retirement Calculations'!I36,"") ->  | K54: =IFERROR('Retirement Calculations'!J36,"") ->  | L54: =IFERROR('Retirement Calculations'!L36,"") ->  | M54: =IFERROR('Retirement Calculations'!M36,"") ->  | N54: =IFERROR('Retirement Calculations'!O36,"") ->  | O54: =IFERROR('Retirement Calculations'!P36,"") ->  | P54: =IFERROR('Retirement Calculations'!Q36,"") -> 
C55: =IFERROR('Retirement Calculations'!A37,"") ->  | D55: =IFERROR('Retirement Calculations'!B37,"") ->  | E55: =IFERROR('Retirement Calculations'!C37,"") ->  | F55: =IFERROR('Retirement Calculations'!D37,"") ->  | G55: =IFERROR('Retirement Calculations'!E37,"") ->  | H55: =IFERROR('Retirement Calculations'!G37,"") ->  | I55: =IFERROR('Retirement Calculations'!H37,"") ->  | J55: =IFERROR('Retirement Calculations'!I37,"") ->  | K55: =IFERROR('Retirement Calculations'!J37,"") ->  | L55: =IFERROR('Retirement Calculations'!L37,"") ->  | M55: =IFERROR('Retirement Calculations'!M37,"") ->  | N55: =IFERROR('Retirement Calculations'!O37,"") ->  | O55: =IFERROR('Retirement Calculations'!P37,"") ->  | P55: =IFERROR('Retirement Calculations'!Q37,"") -> 
C56: =IFERROR('Retirement Calculations'!A38,"") ->  | D56: =IFERROR('Retirement Calculations'!B38,"") ->  | E56: =IFERROR('Retirement Calculations'!C38,"") ->  | F56: =IFERROR('Retirement Calculations'!D38,"") ->  | G56: =IFERROR('Retirement Calculations'!E38,"") ->  | H56: =IFERROR('Retirement Calculations'!G38,"") ->  | I56: =IFERROR('Retirement Calculations'!H38,"") ->  | J56: =IFERROR('Retirement Calculations'!I38,"") ->  | K56: =IFERROR('Retirement Calculations'!J38,"") ->  | L56: =IFERROR('Retirement Calculations'!L38,"") ->  | M56: =IFERROR('Retirement Calculations'!M38,"") ->  | N56: =IFERROR('Retirement Calculations'!O38,"") ->  | O56: =IFERROR('Retirement Calculations'!P38,"") ->  | P56: =IFERROR('Retirement Calculations'!Q38,"") -> 
C57: =IFERROR('Retirement Calculations'!A39,"") ->  | D57: =IFERROR('Retirement Calculations'!B39,"") ->  | E57: =IFERROR('Retirement Calculations'!C39,"") ->  | F57: =IFERROR('Retirement Calculations'!D39,"") ->  | G57: =IFERROR('Retirement Calculations'!E39,"") ->  | H57: =IFERROR('Retirement Calculations'!G39,"") ->  | I57: =IFERROR('Retirement Calculations'!H39,"") ->  | J57: =IFERROR('Retirement Calculations'!I39,"") ->  | K57: =IFERROR('Retirement Calculations'!J39,"") ->  | L57: =IFERROR('Retirement Calculations'!L39,"") ->  | M57: =IFERROR('Retirement Calculations'!M39,"") ->  | N57: =IFERROR('Retirement Calculations'!O39,"") ->  | O57: =IFERROR('Retirement Calculations'!P39,"") ->  | P57: =IFERROR('Retirement Calculations'!Q39,"") -> 
C58: =IFERROR('Retirement Calculations'!A40,"") ->  | D58: =IFERROR('Retirement Calculations'!B40,"") ->  | E58: =IFERROR('Retirement Calculations'!C40,"") ->  | F58: =IFERROR('Retirement Calculations'!D40,"") ->  | G58: =IFERROR('Retirement Calculations'!E40,"") ->  | H58: =IFERROR('Retirement Calculations'!G40,"") ->  | I58: =IFERROR('Retirement Calculations'!H40,"") ->  | J58: =IFERROR('Retirement Calculations'!I40,"") ->  | K58: =IFERROR('Retirement Calculations'!J40,"") ->  | L58: =IFERROR('Retirement Calculations'!L40,"") ->  | M58: =IFERROR('Retirement Calculations'!M40,"") ->  | N58: =IFERROR('Retirement Calculations'!O40,"") ->  | O58: =IFERROR('Retirement Calculations'!P40,"") ->  | P58: =IFERROR('Retirement Calculations'!Q40,"") -> 
C59: =IFERROR('Retirement Calculations'!A41,"") ->  | D59: =IFERROR('Retirement Calculations'!B41,"") ->  | E59: =IFERROR('Retirement Calculations'!C41,"") ->  | F59: =IFERROR('Retirement Calculations'!D41,"") ->  | G59: =IFERROR('Retirement Calculations'!E41,"") ->  | H59: =IFERROR('Retirement Calculations'!G41,"") ->  | I59: =IFERROR('Retirement Calculations'!H41,"") ->  | J59: =IFERROR('Retirement Calculations'!I41,"") ->  | K59: =IFERROR('Retirement Calculations'!J41,"") ->  | L59: =IFERROR('Retirement Calculations'!L41,"") ->  | M59: =IFERROR('Retirement Calculations'!M41,"") ->  | N59: =IFERROR('Retirement Calculations'!O41,"") ->  | O59: =IFERROR('Retirement Calculations'!P41,"") ->  | P59: =IFERROR('Retirement Calculations'!Q41,"") -> 
C60: =IFERROR('Retirement Calculations'!A42,"") ->  | D60: =IFERROR('Retirement Calculations'!B42,"") ->  | E60: =IFERROR('Retirement Calculations'!C42,"") ->  | F60: =IFERROR('Retirement Calculations'!D42,"") ->  | G60: =IFERROR('Retirement Calculations'!E42,"") ->  | H60: =IFERROR('Retirement Calculations'!G42,"") ->  | I60: =IFERROR('Retirement Calculations'!H42,"") ->  | J60: =IFERROR('Retirement Calculations'!I42,"") ->  | K60: =IFERROR('Retirement Calculations'!J42,"") ->  | L60: =IFERROR('Retirement Calculations'!L42,"") ->  | M60: =IFERROR('Retirement Calculations'!M42,"") ->  | N60: =IFERROR('Retirement Calculations'!O42,"") ->  | O60: =IFERROR('Retirement Calculations'!P42,"") ->  | P60: =IFERROR('Retirement Calculations'!Q42,"") -> 
C61: =IFERROR('Retirement Calculations'!A43,"") ->  | D61: =IFERROR('Retirement Calculations'!B43,"") ->  | E61: =IFERROR('Retirement Calculations'!C43,"") ->  | F61: =IFERROR('Retirement Calculations'!D43,"") ->  | G61: =IFERROR('Retirement Calculations'!E43,"") ->  | H61: =IFERROR('Retirement Calculations'!G43,"") ->  | I61: =IFERROR('Retirement Calculations'!H43,"") ->  | J61: =IFERROR('Retirement Calculations'!I43,"") ->  | K61: =IFERROR('Retirement Calculations'!J43,"") ->  | L61: =IFERROR('Retirement Calculations'!L43,"") ->  | M61: =IFERROR('Retirement Calculations'!M43,"") ->  | N61: =IFERROR('Retirement Calculations'!O43,"") ->  | O61: =IFERROR('Retirement Calculations'!P43,"") ->  | P61: =IFERROR('Retirement Calculations'!Q43,"") -> 
C62: =IFERROR('Retirement Calculations'!A44,"") ->  | D62: =IFERROR('Retirement Calculations'!B44,"") ->  | E62: =IFERROR('Retirement Calculations'!C44,"") ->  | F62: =IFERROR('Retirement Calculations'!D44,"") ->  | G62: =IFERROR('Retirement Calculations'!E44,"") ->  | H62: =IFERROR('Retirement Calculations'!G44,"") ->  | I62: =IFERROR('Retirement Calculations'!H44,"") ->  | J62: =IFERROR('Retirement Calculations'!I44,"") ->  | K62: =IFERROR('Retirement Calculations'!J44,"") ->  | L62: =IFERROR('Retirement Calculations'!L44,"") ->  | M62: =IFERROR('Retirement Calculations'!M44,"") ->  | N62: =IFERROR('Retirement Calculations'!O44,"") ->  | O62: =IFERROR('Retirement Calculations'!P44,"") ->  | P62: =IFERROR('Retirement Calculations'!Q44,"") -> 
C63: =IFERROR('Retirement Calculations'!A45,"") ->  | D63: =IFERROR('Retirement Calculations'!B45,"") ->  | E63: =IFERROR('Retirement Calculations'!C45,"") ->  | F63: =IFERROR('Retirement Calculations'!D45,"") ->  | G63: =IFERROR('Retirement Calculations'!E45,"") ->  | H63: =IFERROR('Retirement Calculations'!G45,"") ->  | I63: =IFERROR('Retirement Calculations'!H45,"") ->  | J63: =IFERROR('Retirement Calculations'!I45,"") ->  | K63: =IFERROR('Retirement Calculations'!J45,"") ->  | L63: =IFERROR('Retirement Calculations'!L45,"") ->  | M63: =IFERROR('Retirement Calculations'!M45,"") ->  | N63: =IFERROR('Retirement Calculations'!O45,"") ->  | O63: =IFERROR('Retirement Calculations'!P45,"") ->  | P63: =IFERROR('Retirement Calculations'!Q45,"") -> 
C64: =IFERROR('Retirement Calculations'!A46,"") ->  | D64: =IFERROR('Retirement Calculations'!B46,"") ->  | E64: =IFERROR('Retirement Calculations'!C46,"") ->  | F64: =IFERROR('Retirement Calculations'!D46,"") ->  | G64: =IFERROR('Retirement Calculations'!E46,"") ->  | H64: =IFERROR('Retirement Calculations'!G46,"") ->  | I64: =IFERROR('Retirement Calculations'!H46,"") ->  | J64: =IFERROR('Retirement Calculations'!I46,"") ->  | K64: =IFERROR('Retirement Calculations'!J46,"") ->  | L64: =IFERROR('Retirement Calculations'!L46,"") ->  | M64: =IFERROR('Retirement Calculations'!M46,"") ->  | N64: =IFERROR('Retirement Calculations'!O46,"") ->  | O64: =IFERROR('Retirement Calculations'!P46,"") ->  | P64: =IFERROR('Retirement Calculations'!Q46,"") -> 
C65: =IFERROR('Retirement Calculations'!A47,"") ->  | D65: =IFERROR('Retirement Calculations'!B47,"") ->  | E65: =IFERROR('Retirement Calculations'!C47,"") ->  | F65: =IFERROR('Retirement Calculations'!D47,"") ->  | G65: =IFERROR('Retirement Calculations'!E47,"") ->  | H65: =IFERROR('Retirement Calculations'!G47,"") ->  | I65: =IFERROR('Retirement Calculations'!H47,"") ->  | J65: =IFERROR('Retirement Calculations'!I47,"") ->  | K65: =IFERROR('Retirement Calculations'!J47,"") ->  | L65: =IFERROR('Retirement Calculations'!L47,"") ->  | M65: =IFERROR('Retirement Calculations'!M47,"") ->  | N65: =IFERROR('Retirement Calculations'!O47,"") ->  | O65: =IFERROR('Retirement Calculations'!P47,"") ->  | P65: =IFERROR('Retirement Calculations'!Q47,"") -> 
C66: =IFERROR('Retirement Calculations'!A48,"") ->  | D66: =IFERROR('Retirement Calculations'!B48,"") ->  | E66: =IFERROR('Retirement Calculations'!C48,"") ->  | F66: =IFERROR('Retirement Calculations'!D48,"") ->  | G66: =IFERROR('Retirement Calculations'!E48,"") ->  | H66: =IFERROR('Retirement Calculations'!G48,"") ->  | I66: =IFERROR('Retirement Calculations'!H48,"") ->  | J66: =IFERROR('Retirement Calculations'!I48,"") ->  | K66: =IFERROR('Retirement Calculations'!J48,"") ->  | L66: =IFERROR('Retirement Calculations'!L48,"") ->  | M66: =IFERROR('Retirement Calculations'!M48,"") ->  | N66: =IFERROR('Retirement Calculations'!O48,"") ->  | O66: =IFERROR('Retirement Calculations'!P48,"") ->  | P66: =IFERROR('Retirement Calculations'!Q48,"") -> 
C67: =IFERROR('Retirement Calculations'!A49,"") ->  | D67: =IFERROR('Retirement Calculations'!B49,"") ->  | E67: =IFERROR('Retirement Calculations'!C49,"") ->  | F67: =IFERROR('Retirement Calculations'!D49,"") ->  | G67: =IFERROR('Retirement Calculations'!E49,"") ->  | H67: =IFERROR('Retirement Calculations'!G49,"") ->  | I67: =IFERROR('Retirement Calculations'!H49,"") ->  | J67: =IFERROR('Retirement Calculations'!I49,"") ->  | K67: =IFERROR('Retirement Calculations'!J49,"") ->  | L67: =IFERROR('Retirement Calculations'!L49,"") ->  | M67: =IFERROR('Retirement Calculations'!M49,"") ->  | N67: =IFERROR('Retirement Calculations'!O49,"") ->  | O67: =IFERROR('Retirement Calculations'!P49,"") ->  | P67: =IFERROR('Retirement Calculations'!Q49,"") -> 
C68: =IFERROR('Retirement Calculations'!A50,"") ->  | D68: =IFERROR('Retirement Calculations'!B50,"") ->  | E68: =IFERROR('Retirement Calculations'!C50,"") ->  | F68: =IFERROR('Retirement Calculations'!D50,"") ->  | G68: =IFERROR('Retirement Calculations'!E50,"") ->  | H68: =IFERROR('Retirement Calculations'!G50,"") ->  | I68: =IFERROR('Retirement Calculations'!H50,"") ->  | J68: =IFERROR('Retirement Calculations'!I50,"") ->  | K68: =IFERROR('Retirement Calculations'!J50,"") ->  | L68: =IFERROR('Retirement Calculations'!L50,"") ->  | M68: =IFERROR('Retirement Calculations'!M50,"") ->  | N68: =IFERROR('Retirement Calculations'!O50,"") ->  | O68: =IFERROR('Retirement Calculations'!P50,"") ->  | P68: =IFERROR('Retirement Calculations'!Q50,"") -> 
C69: =IFERROR('Retirement Calculations'!A51,"") ->  | D69: =IFERROR('Retirement Calculations'!B51,"") ->  | E69: =IFERROR('Retirement Calculations'!C51,"") ->  | F69: =IFERROR('Retirement Calculations'!D51,"") ->  | G69: =IFERROR('Retirement Calculations'!E51,"") ->  | H69: =IFERROR('Retirement Calculations'!G51,"") ->  | I69: =IFERROR('Retirement Calculations'!H51,"") ->  | J69: =IFERROR('Retirement Calculations'!I51,"") ->  | K69: =IFERROR('Retirement Calculations'!J51,"") ->  | L69: =IFERROR('Retirement Calculations'!L51,"") ->  | M69: =IFERROR('Retirement Calculations'!M51,"") ->  | N69: =IFERROR('Retirement Calculations'!O51,"") ->  | O69: =IFERROR('Retirement Calculations'!P51,"") ->  | P69: =IFERROR('Retirement Calculations'!Q51,"") -> 
C70: =IFERROR('Retirement Calculations'!A52,"") ->  | D70: =IFERROR('Retirement Calculations'!B52,"") ->  | E70: =IFERROR('Retirement Calculations'!C52,"") ->  | F70: =IFERROR('Retirement Calculations'!D52,"") ->  | G70: =IFERROR('Retirement Calculations'!E52,"") ->  | H70: =IFERROR('Retirement Calculations'!G52,"") ->  | I70: =IFERROR('Retirement Calculations'!H52,"") ->  | J70: =IFERROR('Retirement Calculations'!I52,"") ->  | K70: =IFERROR('Retirement Calculations'!J52,"") ->  | L70: =IFERROR('Retirement Calculations'!L52,"") ->  | M70: =IFERROR('Retirement Calculations'!M52,"") ->  | N70: =IFERROR('Retirement Calculations'!O52,"") ->  | O70: =IFERROR('Retirement Calculations'!P52,"") ->  | P70: =IFERROR('Retirement Calculations'!Q52,"") -> 
C71: =IFERROR('Retirement Calculations'!A53,"") ->  | D71: =IFERROR('Retirement Calculations'!B53,"") ->  | E71: =IFERROR('Retirement Calculations'!C53,"") ->  | F71: =IFERROR('Retirement Calculations'!D53,"") ->  | G71: =IFERROR('Retirement Calculations'!E53,"") ->  | H71: =IFERROR('Retirement Calculations'!G53,"") ->  | I71: =IFERROR('Retirement Calculations'!H53,"") ->  | J71: =IFERROR('Retirement Calculations'!I53,"") ->  | K71: =IFERROR('Retirement Calculations'!J53,"") ->  | L71: =IFERROR('Retirement Calculations'!L53,"") ->  | M71: =IFERROR('Retirement Calculations'!M53,"") ->  | N71: =IFERROR('Retirement Calculations'!O53,"") ->  | O71: =IFERROR('Retirement Calculations'!P53,"") ->  | P71: =IFERROR('Retirement Calculations'!Q53,"") -> 
C72: =IFERROR('Retirement Calculations'!A54,"") ->  | D72: =IFERROR('Retirement Calculations'!B54,"") ->  | E72: =IFERROR('Retirement Calculations'!C54,"") ->  | F72: =IFERROR('Retirement Calculations'!D54,"") ->  | G72: =IFERROR('Retirement Calculations'!E54,"") ->  | H72: =IFERROR('Retirement Calculations'!G54,"") ->  | I72: =IFERROR('Retirement Calculations'!H54,"") ->  | J72: =IFERROR('Retirement Calculations'!I54,"") ->  | K72: =IFERROR('Retirement Calculations'!J54,"") ->  | L72: =IFERROR('Retirement Calculations'!L54,"") ->  | M72: =IFERROR('Retirement Calculations'!M54,"") ->  | N72: =IFERROR('Retirement Calculations'!O54,"") ->  | O72: =IFERROR('Retirement Calculations'!P54,"") ->  | P72: =IFERROR('Retirement Calculations'!Q54,"") -> 
C73: =IFERROR('Retirement Calculations'!A55,"") ->  | D73: =IFERROR('Retirement Calculations'!B55,"") ->  | E73: =IFERROR('Retirement Calculations'!C55,"") ->  | F73: =IFERROR('Retirement Calculations'!D55,"") ->  | G73: =IFERROR('Retirement Calculations'!E55,"") ->  | H73: =IFERROR('Retirement Calculations'!G55,"") ->  | I73: =IFERROR('Retirement Calculations'!H55,"") ->  | J73: =IFERROR('Retirement Calculations'!I55,"") ->  | K73: =IFERROR('Retirement Calculations'!J55,"") ->  | L73: =IFERROR('Retirement Calculations'!L55,"") ->  | M73: =IFERROR('Retirement Calculations'!M55,"") ->  | N73: =IFERROR('Retirement Calculations'!O55,"") ->  | O73: =IFERROR('Retirement Calculations'!P55,"") ->  | P73: =IFERROR('Retirement Calculations'!Q55,"") -> 
C74: =IFERROR('Retirement Calculations'!A56,"") ->  | D74: =IFERROR('Retirement Calculations'!B56,"") ->  | E74: =IFERROR('Retirement Calculations'!C56,"") ->  | F74: =IFERROR('Retirement Calculations'!D56,"") ->  | G74: =IFERROR('Retirement Calculations'!E56,"") ->  | H74: =IFERROR('Retirement Calculations'!G56,"") ->  | I74: =IFERROR('Retirement Calculations'!H56,"") ->  | J74: =IFERROR('Retirement Calculations'!I56,"") ->  | K74: =IFERROR('Retirement Calculations'!J56,"") ->  | L74: =IFERROR('Retirement Calculations'!L56,"") ->  | M74: =IFERROR('Retirement Calculations'!M56,"") ->  | N74: =IFERROR('Retirement Calculations'!O56,"") ->  | O74: =IFERROR('Retirement Calculations'!P56,"") ->  | P74: =IFERROR('Retirement Calculations'!Q56,"") -> 
C75: =IFERROR('Retirement Calculations'!A57,"") ->  | D75: =IFERROR('Retirement Calculations'!B57,"") ->  | E75: =IFERROR('Retirement Calculations'!C57,"") ->  | F75: =IFERROR('Retirement Calculations'!D57,"") ->  | G75: =IFERROR('Retirement Calculations'!E57,"") ->  | H75: =IFERROR('Retirement Calculations'!G57,"") ->  | I75: =IFERROR('Retirement Calculations'!H57,"") ->  | J75: =IFERROR('Retirement Calculations'!I57,"") ->  | K75: =IFERROR('Retirement Calculations'!J57,"") ->  | L75: =IFERROR('Retirement Calculations'!L57,"") ->  | M75: =IFERROR('Retirement Calculations'!M57,"") ->  | N75: =IFERROR('Retirement Calculations'!O57,"") ->  | O75: =IFERROR('Retirement Calculations'!P57,"") ->  | P75: =IFERROR('Retirement Calculations'!Q57,"") -> 
C76: =IFERROR('Retirement Calculations'!A58,"") ->  | D76: =IFERROR('Retirement Calculations'!B58,"") ->  | E76: =IFERROR('Retirement Calculations'!C58,"") ->  | F76: =IFERROR('Retirement Calculations'!D58,"") ->  | G76: =IFERROR('Retirement Calculations'!E58,"") ->  | H76: =IFERROR('Retirement Calculations'!G58,"") ->  | I76: =IFERROR('Retirement Calculations'!H58,"") ->  | J76: =IFERROR('Retirement Calculations'!I58,"") ->  | K76: =IFERROR('Retirement Calculations'!J58,"") ->  | L76: =IFERROR('Retirement Calculations'!L58,"") ->  | M76: =IFERROR('Retirement Calculations'!M58,"") ->  | N76: =IFERROR('Retirement Calculations'!O58,"") ->  | O76: =IFERROR('Retirement Calculations'!P58,"") ->  | P76: =IFERROR('Retirement Calculations'!Q58,"") -> 
C77: =IFERROR('Retirement Calculations'!A59,"") ->  | D77: =IFERROR('Retirement Calculations'!B59,"") ->  | E77: =IFERROR('Retirement Calculations'!C59,"") ->  | F77: =IFERROR('Retirement Calculations'!D59,"") ->  | G77: =IFERROR('Retirement Calculations'!E59,"") ->  | H77: =IFERROR('Retirement Calculations'!G59,"") ->  | I77: =IFERROR('Retirement Calculations'!H59,"") ->  | J77: =IFERROR('Retirement Calculations'!I59,"") ->  | K77: =IFERROR('Retirement Calculations'!J59,"") ->  | L77: =IFERROR('Retirement Calculations'!L59,"") ->  | M77: =IFERROR('Retirement Calculations'!M59,"") ->  | N77: =IFERROR('Retirement Calculations'!O59,"") ->  | O77: =IFERROR('Retirement Calculations'!P59,"") ->  | P77: =IFERROR('Retirement Calculations'!Q59,"") -> 
C78: =IFERROR('Retirement Calculations'!A60,"") ->  | D78: =IFERROR('Retirement Calculations'!B60,"") ->  | E78: =IFERROR('Retirement Calculations'!C60,"") ->  | F78: =IFERROR('Retirement Calculations'!D60,"") ->  | G78: =IFERROR('Retirement Calculations'!E60,"") ->  | H78: =IFERROR('Retirement Calculations'!G60,"") ->  | I78: =IFERROR('Retirement Calculations'!H60,"") ->  | J78: =IFERROR('Retirement Calculations'!I60,"") ->  | K78: =IFERROR('Retirement Calculations'!J60,"") ->  | L78: =IFERROR('Retirement Calculations'!L60,"") ->  | M78: =IFERROR('Retirement Calculations'!M60,"") ->  | N78: =IFERROR('Retirement Calculations'!O60,"") ->  | O78: =IFERROR('Retirement Calculations'!P60,"") ->  | P78: =IFERROR('Retirement Calculations'!Q60,"") -> 
C79: =IFERROR('Retirement Calculations'!A61,"") ->  | D79: =IFERROR('Retirement Calculations'!B61,"") ->  | E79: =IFERROR('Retirement Calculations'!C61,"") ->  | F79: =IFERROR('Retirement Calculations'!D61,"") ->  | G79: =IFERROR('Retirement Calculations'!E61,"") ->  | H79: =IFERROR('Retirement Calculations'!G61,"") ->  | I79: =IFERROR('Retirement Calculations'!H61,"") ->  | J79: =IFERROR('Retirement Calculations'!I61,"") ->  | K79: =IFERROR('Retirement Calculations'!J61,"") ->  | L79: =IFERROR('Retirement Calculations'!L61,"") ->  | M79: =IFERROR('Retirement Calculations'!M61,"") ->  | N79: =IFERROR('Retirement Calculations'!O61,"") ->  | O79: =IFERROR('Retirement Calculations'!P61,"") ->  | P79: =IFERROR('Retirement Calculations'!Q61,"") -> 
C80: =IFERROR('Retirement Calculations'!A62,"") ->  | D80: =IFERROR('Retirement Calculations'!B62,"") ->  | E80: =IFERROR('Retirement Calculations'!C62,"") ->  | F80: =IFERROR('Retirement Calculations'!D62,"") ->  | G80: =IFERROR('Retirement Calculations'!E62,"") ->  | H80: =IFERROR('Retirement Calculations'!G62,"") ->  | I80: =IFERROR('Retirement Calculations'!H62,"") ->  | J80: =IFERROR('Retirement Calculations'!I62,"") ->  | K80: =IFERROR('Retirement Calculations'!J62,"") ->  | L80: =IFERROR('Retirement Calculations'!L62,"") ->  | M80: =IFERROR('Retirement Calculations'!M62,"") ->  | N80: =IFERROR('Retirement Calculations'!O62,"") ->  | O80: =IFERROR('Retirement Calculations'!P62,"") ->  | P80: =IFERROR('Retirement Calculations'!Q62,"") -> 
C81: =IFERROR('Retirement Calculations'!A63,"") ->  | D81: =IFERROR('Retirement Calculations'!B63,"") ->  | E81: =IFERROR('Retirement Calculations'!C63,"") ->  | F81: =IFERROR('Retirement Calculations'!D63,"") ->  | G81: =IFERROR('Retirement Calculations'!E63,"") ->  | H81: =IFERROR('Retirement Calculations'!G63,"") ->  | I81: =IFERROR('Retirement Calculations'!H63,"") ->  | J81: =IFERROR('Retirement Calculations'!I63,"") ->  | K81: =IFERROR('Retirement Calculations'!J63,"") ->  | L81: =IFERROR('Retirement Calculations'!L63,"") ->  | M81: =IFERROR('Retirement Calculations'!M63,"") ->  | N81: =IFERROR('Retirement Calculations'!O63,"") ->  | O81: =IFERROR('Retirement Calculations'!P63,"") ->  | P81: =IFERROR('Retirement Calculations'!Q63,"") -> 
C82: =IFERROR('Retirement Calculations'!A64,"") ->  | D82: =IFERROR('Retirement Calculations'!B64,"") ->  | E82: =IFERROR('Retirement Calculations'!C64,"") ->  | F82: =IFERROR('Retirement Calculations'!D64,"") ->  | G82: =IFERROR('Retirement Calculations'!E64,"") ->  | H82: =IFERROR('Retirement Calculations'!G64,"") ->  | I82: =IFERROR('Retirement Calculations'!H64,"") ->  | J82: =IFERROR('Retirement Calculations'!I64,"") ->  | K82: =IFERROR('Retirement Calculations'!J64,"") ->  | L82: =IFERROR('Retirement Calculations'!L64,"") ->  | M82: =IFERROR('Retirement Calculations'!M64,"") ->  | N82: =IFERROR('Retirement Calculations'!O64,"") ->  | O82: =IFERROR('Retirement Calculations'!P64,"") ->  | P82: =IFERROR('Retirement Calculations'!Q64,"") -> 
C83: =IFERROR('Retirement Calculations'!A65,"") ->  | D83: =IFERROR('Retirement Calculations'!B65,"") ->  | E83: =IFERROR('Retirement Calculations'!C65,"") ->  | F83: =IFERROR('Retirement Calculations'!D65,"") ->  | G83: =IFERROR('Retirement Calculations'!E65,"") ->  | H83: =IFERROR('Retirement Calculations'!G65,"") ->  | I83: =IFERROR('Retirement Calculations'!H65,"") ->  | J83: =IFERROR('Retirement Calculations'!I65,"") ->  | K83: =IFERROR('Retirement Calculations'!J65,"") ->  | L83: =IFERROR('Retirement Calculations'!L65,"") ->  | M83: =IFERROR('Retirement Calculations'!M65,"") ->  | N83: =IFERROR('Retirement Calculations'!O65,"") ->  | O83: =IFERROR('Retirement Calculations'!P65,"") ->  | P83: =IFERROR('Retirement Calculations'!Q65,"") -> 
C84: =IFERROR('Retirement Calculations'!A66,"") ->  | D84: =IFERROR('Retirement Calculations'!B66,"") ->  | E84: =IFERROR('Retirement Calculations'!C66,"") ->  | F84: =IFERROR('Retirement Calculations'!D66,"") ->  | G84: =IFERROR('Retirement Calculations'!E66,"") ->  | H84: =IFERROR('Retirement Calculations'!G66,"") ->  | I84: =IFERROR('Retirement Calculations'!H66,"") ->  | J84: =IFERROR('Retirement Calculations'!I66,"") ->  | K84: =IFERROR('Retirement Calculations'!J66,"") ->  | L84: =IFERROR('Retirement Calculations'!L66,"") ->  | M84: =IFERROR('Retirement Calculations'!M66,"") ->  | N84: =IFERROR('Retirement Calculations'!O66,"") ->  | O84: =IFERROR('Retirement Calculations'!P66,"") ->  | P84: =IFERROR('Retirement Calculations'!Q66,"") -> 
C85: =IFERROR('Retirement Calculations'!A67,"") ->  | D85: =IFERROR('Retirement Calculations'!B67,"") ->  | E85: =IFERROR('Retirement Calculations'!C67,"") ->  | F85: =IFERROR('Retirement Calculations'!D67,"") ->  | G85: =IFERROR('Retirement Calculations'!E67,"") ->  | H85: =IFERROR('Retirement Calculations'!G67,"") ->  | I85: =IFERROR('Retirement Calculations'!H67,"") ->  | J85: =IFERROR('Retirement Calculations'!I67,"") ->  | K85: =IFERROR('Retirement Calculations'!J67,"") ->  | L85: =IFERROR('Retirement Calculations'!L67,"") ->  | M85: =IFERROR('Retirement Calculations'!M67,"") ->  | N85: =IFERROR('Retirement Calculations'!O67,"") ->  | O85: =IFERROR('Retirement Calculations'!P67,"") ->  | P85: =IFERROR('Retirement Calculations'!Q67,"") -> 
C86: =IFERROR('Retirement Calculations'!A68,"") ->  | D86: =IFERROR('Retirement Calculations'!B68,"") ->  | E86: =IFERROR('Retirement Calculations'!C68,"") ->  | F86: =IFERROR('Retirement Calculations'!D68,"") ->  | G86: =IFERROR('Retirement Calculations'!E68,"") ->  | H86: =IFERROR('Retirement Calculations'!G68,"") ->  | I86: =IFERROR('Retirement Calculations'!H68,"") ->  | J86: =IFERROR('Retirement Calculations'!I68,"") ->  | K86: =IFERROR('Retirement Calculations'!J68,"") ->  | L86: =IFERROR('Retirement Calculations'!L68,"") ->  | M86: =IFERROR('Retirement Calculations'!M68,"") ->  | N86: =IFERROR('Retirement Calculations'!O68,"") ->  | O86: =IFERROR('Retirement Calculations'!P68,"") ->  | P86: =IFERROR('Retirement Calculations'!Q68,"") -> 
C87: =IFERROR('Retirement Calculations'!A69,"") ->  | D87: =IFERROR('Retirement Calculations'!B69,"") ->  | E87: =IFERROR('Retirement Calculations'!C69,"") ->  | F87: =IFERROR('Retirement Calculations'!D69,"") ->  | G87: =IFERROR('Retirement Calculations'!E69,"") ->  | H87: =IFERROR('Retirement Calculations'!G69,"") ->  | I87: =IFERROR('Retirement Calculations'!H69,"") ->  | J87: =IFERROR('Retirement Calculations'!I69,"") ->  | K87: =IFERROR('Retirement Calculations'!J69,"") ->  | L87: =IFERROR('Retirement Calculations'!L69,"") ->  | M87: =IFERROR('Retirement Calculations'!M69,"") ->  | N87: =IFERROR('Retirement Calculations'!O69,"") ->  | O87: =IFERROR('Retirement Calculations'!P69,"") ->  | P87: =IFERROR('Retirement Calculations'!Q69,"") -> 
C88: =IFERROR('Retirement Calculations'!A70,"") ->  | D88: =IFERROR('Retirement Calculations'!B70,"") ->  | E88: =IFERROR('Retirement Calculations'!C70,"") ->  | F88: =IFERROR('Retirement Calculations'!D70,"") ->  | G88: =IFERROR('Retirement Calculations'!E70,"") ->  | H88: =IFERROR('Retirement Calculations'!G70,"") ->  | I88: =IFERROR('Retirement Calculations'!H70,"") ->  | J88: =IFERROR('Retirement Calculations'!I70,"") ->  | K88: =IFERROR('Retirement Calculations'!J70,"") ->  | L88: =IFERROR('Retirement Calculations'!L70,"") ->  | M88: =IFERROR('Retirement Calculations'!M70,"") ->  | N88: =IFERROR('Retirement Calculations'!O70,"") ->  | O88: =IFERROR('Retirement Calculations'!P70,"") ->  | P88: =IFERROR('Retirement Calculations'!Q70,"") -> 
C89: =IFERROR('Retirement Calculations'!A71,"") ->  | D89: =IFERROR('Retirement Calculations'!B71,"") ->  | E89: =IFERROR('Retirement Calculations'!C71,"") ->  | F89: =IFERROR('Retirement Calculations'!D71,"") ->  | G89: =IFERROR('Retirement Calculations'!E71,"") ->  | H89: =IFERROR('Retirement Calculations'!G71,"") ->  | I89: =IFERROR('Retirement Calculations'!H71,"") ->  | J89: =IFERROR('Retirement Calculations'!I71,"") ->  | K89: =IFERROR('Retirement Calculations'!J71,"") ->  | L89: =IFERROR('Retirement Calculations'!L71,"") ->  | M89: =IFERROR('Retirement Calculations'!M71,"") ->  | N89: =IFERROR('Retirement Calculations'!O71,"") ->  | O89: =IFERROR('Retirement Calculations'!P71,"") ->  | P89: =IFERROR('Retirement Calculations'!Q71,"") -> 
C90: =IFERROR('Retirement Calculations'!A72,"") ->  | D90: =IFERROR('Retirement Calculations'!B72,"") ->  | E90: =IFERROR('Retirement Calculations'!C72,"") ->  | F90: =IFERROR('Retirement Calculations'!D72,"") ->  | G90: =IFERROR('Retirement Calculations'!E72,"") ->  | H90: =IFERROR('Retirement Calculations'!G72,"") ->  | I90: =IFERROR('Retirement Calculations'!H72,"") ->  | J90: =IFERROR('Retirement Calculations'!I72,"") ->  | K90: =IFERROR('Retirement Calculations'!J72,"") ->  | L90: =IFERROR('Retirement Calculations'!L72,"") ->  | M90: =IFERROR('Retirement Calculations'!M72,"") ->  | N90: =IFERROR('Retirement Calculations'!O72,"") ->  | O90: =IFERROR('Retirement Calculations'!P72,"") ->  | P90: =IFERROR('Retirement Calculations'!Q72,"") -> 
C91: =IFERROR('Retirement Calculations'!A73,"") ->  | D91: =IFERROR('Retirement Calculations'!B73,"") ->  | E91: =IFERROR('Retirement Calculations'!C73,"") ->  | F91: =IFERROR('Retirement Calculations'!D73,"") ->  | G91: =IFERROR('Retirement Calculations'!E73,"") ->  | H91: =IFERROR('Retirement Calculations'!G73,"") ->  | I91: =IFERROR('Retirement Calculations'!H73,"") ->  | J91: =IFERROR('Retirement Calculations'!I73,"") ->  | K91: =IFERROR('Retirement Calculations'!J73,"") ->  | L91: =IFERROR('Retirement Calculations'!L73,"") ->  | M91: =IFERROR('Retirement Calculations'!M73,"") ->  | N91: =IFERROR('Retirement Calculations'!O73,"") ->  | O91: =IFERROR('Retirement Calculations'!P73,"") ->  | P91: =IFERROR('Retirement Calculations'!Q73,"") -> 
C92: =IFERROR('Retirement Calculations'!A74,"") ->  | D92: =IFERROR('Retirement Calculations'!B74,"") ->  | E92: =IFERROR('Retirement Calculations'!C74,"") ->  | F92: =IFERROR('Retirement Calculations'!D74,"") ->  | G92: =IFERROR('Retirement Calculations'!E74,"") ->  | H92: =IFERROR('Retirement Calculations'!G74,"") ->  | I92: =IFERROR('Retirement Calculations'!H74,"") ->  | J92: =IFERROR('Retirement Calculations'!I74,"") ->  | K92: =IFERROR('Retirement Calculations'!J74,"") ->  | L92: =IFERROR('Retirement Calculations'!L74,"") ->  | M92: =IFERROR('Retirement Calculations'!M74,"") ->  | N92: =IFERROR('Retirement Calculations'!O74,"") ->  | O92: =IFERROR('Retirement Calculations'!P74,"") ->  | P92: =IFERROR('Retirement Calculations'!Q74,"") -> 
C93: =IFERROR('Retirement Calculations'!A75,"") ->  | D93: =IFERROR('Retirement Calculations'!B75,"") ->  | E93: =IFERROR('Retirement Calculations'!C75,"") ->  | F93: =IFERROR('Retirement Calculations'!D75,"") ->  | G93: =IFERROR('Retirement Calculations'!E75,"") ->  | H93: =IFERROR('Retirement Calculations'!G75,"") ->  | I93: =IFERROR('Retirement Calculations'!H75,"") ->  | J93: =IFERROR('Retirement Calculations'!I75,"") ->  | K93: =IFERROR('Retirement Calculations'!J75,"") ->  | L93: =IFERROR('Retirement Calculations'!L75,"") ->  | M93: =IFERROR('Retirement Calculations'!M75,"") ->  | N93: =IFERROR('Retirement Calculations'!O75,"") ->  | O93: =IFERROR('Retirement Calculations'!P75,"") ->  | P93: =IFERROR('Retirement Calculations'!Q75,"") -> 
C94: =IFERROR('Retirement Calculations'!A76,"") ->  | D94: =IFERROR('Retirement Calculations'!B76,"") ->  | E94: =IFERROR('Retirement Calculations'!C76,"") ->  | F94: =IFERROR('Retirement Calculations'!D76,"") ->  | G94: =IFERROR('Retirement Calculations'!E76,"") ->  | H94: =IFERROR('Retirement Calculations'!G76,"") ->  | I94: =IFERROR('Retirement Calculations'!H76,"") ->  | J94: =IFERROR('Retirement Calculations'!I76,"") ->  | K94: =IFERROR('Retirement Calculations'!J76,"") ->  | L94: =IFERROR('Retirement Calculations'!L76,"") ->  | M94: =IFERROR('Retirement Calculations'!M76,"") ->  | N94: =IFERROR('Retirement Calculations'!O76,"") ->  | O94: =IFERROR('Retirement Calculations'!P76,"") ->  | P94: =IFERROR('Retirement Calculations'!Q76,"") -> 
C95: =IFERROR('Retirement Calculations'!A77,"") ->  | D95: =IFERROR('Retirement Calculations'!B77,"") ->  | E95: =IFERROR('Retirement Calculations'!C77,"") ->  | F95: =IFERROR('Retirement Calculations'!D77,"") ->  | G95: =IFERROR('Retirement Calculations'!E77,"") ->  | H95: =IFERROR('Retirement Calculations'!G77,"") ->  | I95: =IFERROR('Retirement Calculations'!H77,"") ->  | J95: =IFERROR('Retirement Calculations'!I77,"") ->  | K95: =IFERROR('Retirement Calculations'!J77,"") ->  | L95: =IFERROR('Retirement Calculations'!L77,"") ->  | M95: =IFERROR('Retirement Calculations'!M77,"") ->  | N95: =IFERROR('Retirement Calculations'!O77,"") ->  | O95: =IFERROR('Retirement Calculations'!P77,"") ->  | P95: =IFERROR('Retirement Calculations'!Q77,"") -> 
C96: =IFERROR('Retirement Calculations'!A78,"") ->  | D96: =IFERROR('Retirement Calculations'!B78,"") ->  | E96: =IFERROR('Retirement Calculations'!C78,"") ->  | F96: =IFERROR('Retirement Calculations'!D78,"") ->  | G96: =IFERROR('Retirement Calculations'!E78,"") ->  | H96: =IFERROR('Retirement Calculations'!G78,"") ->  | I96: =IFERROR('Retirement Calculations'!H78,"") ->  | J96: =IFERROR('Retirement Calculations'!I78,"") ->  | K96: =IFERROR('Retirement Calculations'!J78,"") ->  | L96: =IFERROR('Retirement Calculations'!L78,"") ->  | M96: =IFERROR('Retirement Calculations'!M78,"") ->  | N96: =IFERROR('Retirement Calculations'!O78,"") ->  | O96: =IFERROR('Retirement Calculations'!P78,"") ->  | P96: =IFERROR('Retirement Calculations'!Q78,"") -> 
C97: =IFERROR('Retirement Calculations'!A79,"") ->  | D97: =IFERROR('Retirement Calculations'!B79,"") ->  | E97: =IFERROR('Retirement Calculations'!C79,"") ->  | F97: =IFERROR('Retirement Calculations'!D79,"") ->  | G97: =IFERROR('Retirement Calculations'!E79,"") ->  | H97: =IFERROR('Retirement Calculations'!G79,"") ->  | I97: =IFERROR('Retirement Calculations'!H79,"") ->  | J97: =IFERROR('Retirement Calculations'!I79,"") ->  | K97: =IFERROR('Retirement Calculations'!J79,"") ->  | L97: =IFERROR('Retirement Calculations'!L79,"") ->  | M97: =IFERROR('Retirement Calculations'!M79,"") ->  | N97: =IFERROR('Retirement Calculations'!O79,"") ->  | O97: =IFERROR('Retirement Calculations'!P79,"") ->  | P97: =IFERROR('Retirement Calculations'!Q79,"") -> 
C98: =IFERROR('Retirement Calculations'!A80,"") ->  | D98: =IFERROR('Retirement Calculations'!B80,"") ->  | E98: =IFERROR('Retirement Calculations'!C80,"") ->  | F98: =IFERROR('Retirement Calculations'!D80,"") ->  | G98: =IFERROR('Retirement Calculations'!E80,"") ->  | H98: =IFERROR('Retirement Calculations'!G80,"") ->  | I98: =IFERROR('Retirement Calculations'!H80,"") ->  | J98: =IFERROR('Retirement Calculations'!I80,"") ->  | K98: =IFERROR('Retirement Calculations'!J80,"") ->  | L98: =IFERROR('Retirement Calculations'!L80,"") ->  | M98: =IFERROR('Retirement Calculations'!M80,"") ->  | N98: =IFERROR('Retirement Calculations'!O80,"") ->  | O98: =IFERROR('Retirement Calculations'!P80,"") ->  | P98: =IFERROR('Retirement Calculations'!Q80,"") -> 
C99: =IFERROR('Retirement Calculations'!A81,"") ->  | D99: =IFERROR('Retirement Calculations'!B81,"") ->  | E99: =IFERROR('Retirement Calculations'!C81,"") ->  | F99: =IFERROR('Retirement Calculations'!D81,"") ->  | G99: =IFERROR('Retirement Calculations'!E81,"") ->  | H99: =IFERROR('Retirement Calculations'!G81,"") ->  | I99: =IFERROR('Retirement Calculations'!H81,"") ->  | J99: =IFERROR('Retirement Calculations'!I81,"") ->  | K99: =IFERROR('Retirement Calculations'!J81,"") ->  | L99: =IFERROR('Retirement Calculations'!L81,"") ->  | M99: =IFERROR('Retirement Calculations'!M81,"") ->  | N99: =IFERROR('Retirement Calculations'!O81,"") ->  | O99: =IFERROR('Retirement Calculations'!P81,"") ->  | P99: =IFERROR('Retirement Calculations'!Q81,"") -> 
C100: =IFERROR('Retirement Calculations'!A82,"") ->  | D100: =IFERROR('Retirement Calculations'!B82,"") ->  | E100: =IFERROR('Retirement Calculations'!C82,"") ->  | F100: =IFERROR('Retirement Calculations'!D82,"") ->  | G100: =IFERROR('Retirement Calculations'!E82,"") ->  | H100: =IFERROR('Retirement Calculations'!G82,"") ->  | I100: =IFERROR('Retirement Calculations'!H82,"") ->  | J100: =IFERROR('Retirement Calculations'!I82,"") ->  | K100: =IFERROR('Retirement Calculations'!J82,"") ->  | L100: =IFERROR('Retirement Calculations'!L82,"") ->  | M100: =IFERROR('Retirement Calculations'!M82,"") ->  | N100: =IFERROR('Retirement Calculations'!O82,"") ->  | O100: =IFERROR('Retirement Calculations'!P82,"") ->  | P100: =IFERROR('Retirement Calculations'!Q82,"") -> 
C101: =IFERROR('Retirement Calculations'!A83,"") ->  | D101: =IFERROR('Retirement Calculations'!B83,"") ->  | E101: =IFERROR('Retirement Calculations'!C83,"") ->  | F101: =IFERROR('Retirement Calculations'!D83,"") ->  | G101: =IFERROR('Retirement Calculations'!E83,"") ->  | H101: =IFERROR('Retirement Calculations'!G83,"") ->  | I101: =IFERROR('Retirement Calculations'!H83,"") ->  | J101: =IFERROR('Retirement Calculations'!I83,"") ->  | K101: =IFERROR('Retirement Calculations'!J83,"") ->  | L101: =IFERROR('Retirement Calculations'!L83,"") ->  | M101: =IFERROR('Retirement Calculations'!M83,"") ->  | N101: =IFERROR('Retirement Calculations'!O83,"") ->  | O101: =IFERROR('Retirement Calculations'!P83,"") ->  | P101: =IFERROR('Retirement Calculations'!Q83,"") -> 
C102: =IFERROR('Retirement Calculations'!A84,"") ->  | D102: =IFERROR('Retirement Calculations'!B84,"") ->  | E102: =IFERROR('Retirement Calculations'!C84,"") ->  | F102: =IFERROR('Retirement Calculations'!D84,"") ->  | G102: =IFERROR('Retirement Calculations'!E84,"") ->  | H102: =IFERROR('Retirement Calculations'!G84,"") ->  | I102: =IFERROR('Retirement Calculations'!H84,"") ->  | J102: =IFERROR('Retirement Calculations'!I84,"") ->  | K102: =IFERROR('Retirement Calculations'!J84,"") ->  | L102: =IFERROR('Retirement Calculations'!L84,"") ->  | M102: =IFERROR('Retirement Calculations'!M84,"") ->  | N102: =IFERROR('Retirement Calculations'!O84,"") ->  | O102: =IFERROR('Retirement Calculations'!P84,"") ->  | P102: =IFERROR('Retirement Calculations'!Q84,"") -> 
C103: =IFERROR('Retirement Calculations'!A85,"") ->  | D103: =IFERROR('Retirement Calculations'!B85,"") ->  | E103: =IFERROR('Retirement Calculations'!C85,"") ->  | F103: =IFERROR('Retirement Calculations'!D85,"") ->  | G103: =IFERROR('Retirement Calculations'!E85,"") ->  | H103: =IFERROR('Retirement Calculations'!G85,"") ->  | I103: =IFERROR('Retirement Calculations'!H85,"") ->  | J103: =IFERROR('Retirement Calculations'!I85,"") ->  | K103: =IFERROR('Retirement Calculations'!J85,"") ->  | L103: =IFERROR('Retirement Calculations'!L85,"") ->  | M103: =IFERROR('Retirement Calculations'!M85,"") ->  | N103: =IFERROR('Retirement Calculations'!O85,"") ->  | O103: =IFERROR('Retirement Calculations'!P85,"") ->  | P103: =IFERROR('Retirement Calculations'!Q85,"") -> 
C104: =IFERROR('Retirement Calculations'!A86,"") ->  | D104: =IFERROR('Retirement Calculations'!B86,"") ->  | E104: =IFERROR('Retirement Calculations'!C86,"") ->  | F104: =IFERROR('Retirement Calculations'!D86,"") ->  | G104: =IFERROR('Retirement Calculations'!E86,"") ->  | H104: =IFERROR('Retirement Calculations'!G86,"") ->  | I104: =IFERROR('Retirement Calculations'!H86,"") ->  | J104: =IFERROR('Retirement Calculations'!I86,"") ->  | K104: =IFERROR('Retirement Calculations'!J86,"") ->  | L104: =IFERROR('Retirement Calculations'!L86,"") ->  | M104: =IFERROR('Retirement Calculations'!M86,"") ->  | N104: =IFERROR('Retirement Calculations'!O86,"") ->  | O104: =IFERROR('Retirement Calculations'!P86,"") ->  | P104: =IFERROR('Retirement Calculations'!Q86,"") -> 
C105: =IFERROR('Retirement Calculations'!A87,"") ->  | D105: =IFERROR('Retirement Calculations'!B87,"") ->  | E105: =IFERROR('Retirement Calculations'!C87,"") ->  | F105: =IFERROR('Retirement Calculations'!D87,"") ->  | G105: =IFERROR('Retirement Calculations'!E87,"") ->  | H105: =IFERROR('Retirement Calculations'!G87,"") ->  | I105: =IFERROR('Retirement Calculations'!H87,"") ->  | J105: =IFERROR('Retirement Calculations'!I87,"") ->  | K105: =IFERROR('Retirement Calculations'!J87,"") ->  | L105: =IFERROR('Retirement Calculations'!L87,"") ->  | M105: =IFERROR('Retirement Calculations'!M87,"") ->  | N105: =IFERROR('Retirement Calculations'!O87,"") ->  | O105: =IFERROR('Retirement Calculations'!P87,"") ->  | P105: =IFERROR('Retirement Calculations'!Q87,"") -> 
C106: =IFERROR('Retirement Calculations'!A88,"") ->  | D106: =IFERROR('Retirement Calculations'!B88,"") ->  | E106: =IFERROR('Retirement Calculations'!C88,"") ->  | F106: =IFERROR('Retirement Calculations'!D88,"") ->  | G106: =IFERROR('Retirement Calculations'!E88,"") ->  | H106: =IFERROR('Retirement Calculations'!G88,"") ->  | I106: =IFERROR('Retirement Calculations'!H88,"") ->  | J106: =IFERROR('Retirement Calculations'!I88,"") ->  | K106: =IFERROR('Retirement Calculations'!J88,"") ->  | L106: =IFERROR('Retirement Calculations'!L88,"") ->  | M106: =IFERROR('Retirement Calculations'!M88,"") ->  | N106: =IFERROR('Retirement Calculations'!O88,"") ->  | O106: =IFERROR('Retirement Calculations'!P88,"") ->  | P106: =IFERROR('Retirement Calculations'!Q88,"") -> 
C107: =IFERROR('Retirement Calculations'!A89,"") ->  | D107: =IFERROR('Retirement Calculations'!B89,"") ->  | E107: =IFERROR('Retirement Calculations'!C89,"") ->  | F107: =IFERROR('Retirement Calculations'!D89,"") ->  | G107: =IFERROR('Retirement Calculations'!E89,"") ->  | H107: =IFERROR('Retirement Calculations'!G89,"") ->  | I107: =IFERROR('Retirement Calculations'!H89,"") ->  | J107: =IFERROR('Retirement Calculations'!I89,"") ->  | K107: =IFERROR('Retirement Calculations'!J89,"") ->  | L107: =IFERROR('Retirement Calculations'!L89,"") ->  | M107: =IFERROR('Retirement Calculations'!M89,"") ->  | N107: =IFERROR('Retirement Calculations'!O89,"") ->  | O107: =IFERROR('Retirement Calculations'!P89,"") ->  | P107: =IFERROR('Retirement Calculations'!Q89,"") -> 
C108: =IFERROR('Retirement Calculations'!A90,"") ->  | D108: =IFERROR('Retirement Calculations'!B90,"") ->  | E108: =IFERROR('Retirement Calculations'!C90,"") ->  | F108: =IFERROR('Retirement Calculations'!D90,"") ->  | G108: =IFERROR('Retirement Calculations'!E90,"") ->  | H108: =IFERROR('Retirement Calculations'!G90,"") ->  | I108: =IFERROR('Retirement Calculations'!H90,"") ->  | J108: =IFERROR('Retirement Calculations'!I90,"") ->  | K108: =IFERROR('Retirement Calculations'!J90,"") ->  | L108: =IFERROR('Retirement Calculations'!L90,"") ->  | M108: =IFERROR('Retirement Calculations'!M90,"") ->  | N108: =IFERROR('Retirement Calculations'!O90,"") ->  | O108: =IFERROR('Retirement Calculations'!P90,"") ->  | P108: =IFERROR('Retirement Calculations'!Q90,"") -> 
C109: =IFERROR('Retirement Calculations'!A91,"") ->  | D109: =IFERROR('Retirement Calculations'!B91,"") ->  | E109: =IFERROR('Retirement Calculations'!C91,"") ->  | F109: =IFERROR('Retirement Calculations'!D91,"") ->  | G109: =IFERROR('Retirement Calculations'!E91,"") ->  | H109: =IFERROR('Retirement Calculations'!G91,"") ->  | I109: =IFERROR('Retirement Calculations'!H91,"") ->  | J109: =IFERROR('Retirement Calculations'!I91,"") ->  | K109: =IFERROR('Retirement Calculations'!J91,"") ->  | L109: =IFERROR('Retirement Calculations'!L91,"") ->  | M109: =IFERROR('Retirement Calculations'!M91,"") ->  | N109: =IFERROR('Retirement Calculations'!O91,"") ->  | O109: =IFERROR('Retirement Calculations'!P91,"") ->  | P109: =IFERROR('Retirement Calculations'!Q91,"") -> 
C110: =IFERROR('Retirement Calculations'!A92,"") ->  | D110: =IFERROR('Retirement Calculations'!B92,"") ->  | E110: =IFERROR('Retirement Calculations'!C92,"") ->  | F110: =IFERROR('Retirement Calculations'!D92,"") ->  | G110: =IFERROR('Retirement Calculations'!E92,"") ->  | H110: =IFERROR('Retirement Calculations'!G92,"") ->  | I110: =IFERROR('Retirement Calculations'!H92,"") ->  | J110: =IFERROR('Retirement Calculations'!I92,"") ->  | K110: =IFERROR('Retirement Calculations'!J92,"") ->  | L110: =IFERROR('Retirement Calculations'!L92,"") ->  | M110: =IFERROR('Retirement Calculations'!M92,"") ->  | N110: =IFERROR('Retirement Calculations'!O92,"") ->  | O110: =IFERROR('Retirement Calculations'!P92,"") ->  | P110: =IFERROR('Retirement Calculations'!Q92,"") -> 
C111: =IFERROR('Retirement Calculations'!A93,"") ->  | D111: =IFERROR('Retirement Calculations'!B93,"") ->  | E111: =IFERROR('Retirement Calculations'!C93,"") ->  | F111: =IFERROR('Retirement Calculations'!D93,"") ->  | G111: =IFERROR('Retirement Calculations'!E93,"") ->  | H111: =IFERROR('Retirement Calculations'!G93,"") ->  | I111: =IFERROR('Retirement Calculations'!H93,"") ->  | J111: =IFERROR('Retirement Calculations'!I93,"") ->  | K111: =IFERROR('Retirement Calculations'!J93,"") ->  | L111: =IFERROR('Retirement Calculations'!L93,"") ->  | M111: =IFERROR('Retirement Calculations'!M93,"") ->  | N111: =IFERROR('Retirement Calculations'!O93,"") ->  | O111: =IFERROR('Retirement Calculations'!P93,"") ->  | P111: =IFERROR('Retirement Calculations'!Q93,"") -> 
C112: =IFERROR('Retirement Calculations'!A94,"") ->  | D112: =IFERROR('Retirement Calculations'!B94,"") ->  | E112: =IFERROR('Retirement Calculations'!C94,"") ->  | F112: =IFERROR('Retirement Calculations'!D94,"") ->  | G112: =IFERROR('Retirement Calculations'!E94,"") ->  | H112: =IFERROR('Retirement Calculations'!G94,"") ->  | I112: =IFERROR('Retirement Calculations'!H94,"") ->  | J112: =IFERROR('Retirement Calculations'!I94,"") ->  | K112: =IFERROR('Retirement Calculations'!J94,"") ->  | L112: =IFERROR('Retirement Calculations'!L94,"") ->  | M112: =IFERROR('Retirement Calculations'!M94,"") ->  | N112: =IFERROR('Retirement Calculations'!O94,"") ->  | O112: =IFERROR('Retirement Calculations'!P94,"") ->  | P112: =IFERROR('Retirement Calculations'!Q94,"") -> 
C113: =IFERROR('Retirement Calculations'!A95,"") ->  | D113: =IFERROR('Retirement Calculations'!B95,"") ->  | E113: =IFERROR('Retirement Calculations'!C95,"") ->  | F113: =IFERROR('Retirement Calculations'!D95,"") ->  | G113: =IFERROR('Retirement Calculations'!E95,"") ->  | H113: =IFERROR('Retirement Calculations'!G95,"") ->  | I113: =IFERROR('Retirement Calculations'!H95,"") ->  | J113: =IFERROR('Retirement Calculations'!I95,"") ->  | K113: =IFERROR('Retirement Calculations'!J95,"") ->  | L113: =IFERROR('Retirement Calculations'!L95,"") ->  | M113: =IFERROR('Retirement Calculations'!M95,"") ->  | N113: =IFERROR('Retirement Calculations'!O95,"") ->  | O113: =IFERROR('Retirement Calculations'!P95,"") ->  | P113: =IFERROR('Retirement Calculations'!Q95,"") -> 
C114: =IFERROR('Retirement Calculations'!A96,"") ->  | D114: =IFERROR('Retirement Calculations'!B96,"") ->  | E114: =IFERROR('Retirement Calculations'!C96,"") ->  | F114: =IFERROR('Retirement Calculations'!D96,"") ->  | G114: =IFERROR('Retirement Calculations'!E96,"") ->  | H114: =IFERROR('Retirement Calculations'!G96,"") ->  | I114: =IFERROR('Retirement Calculations'!H96,"") ->  | J114: =IFERROR('Retirement Calculations'!I96,"") ->  | K114: =IFERROR('Retirement Calculations'!J96,"") ->  | L114: =IFERROR('Retirement Calculations'!L96,"") ->  | M114: =IFERROR('Retirement Calculations'!M96,"") ->  | N114: =IFERROR('Retirement Calculations'!O96,"") ->  | O114: =IFERROR('Retirement Calculations'!P96,"") ->  | P114: =IFERROR('Retirement Calculations'!Q96,"") -> 
C115: =IFERROR('Retirement Calculations'!A97,"") ->  | D115: =IFERROR('Retirement Calculations'!B97,"") ->  | E115: =IFERROR('Retirement Calculations'!C97,"") ->  | F115: =IFERROR('Retirement Calculations'!D97,"") ->  | G115: =IFERROR('Retirement Calculations'!E97,"") ->  | H115: =IFERROR('Retirement Calculations'!G97,"") ->  | I115: =IFERROR('Retirement Calculations'!H97,"") ->  | J115: =IFERROR('Retirement Calculations'!I97,"") ->  | K115: =IFERROR('Retirement Calculations'!J97,"") ->  | L115: =IFERROR('Retirement Calculations'!L97,"") ->  | M115: =IFERROR('Retirement Calculations'!M97,"") ->  | N115: =IFERROR('Retirement Calculations'!O97,"") ->  | O115: =IFERROR('Retirement Calculations'!P97,"") ->  | P115: =IFERROR('Retirement Calculations'!Q97,"") -> 
C116: =IFERROR('Retirement Calculations'!A98,"") ->  | D116: =IFERROR('Retirement Calculations'!B98,"") ->  | E116: =IFERROR('Retirement Calculations'!C98,"") ->  | F116: =IFERROR('Retirement Calculations'!D98,"") ->  | G116: =IFERROR('Retirement Calculations'!E98,"") ->  | H116: =IFERROR('Retirement Calculations'!G98,"") ->  | I116: =IFERROR('Retirement Calculations'!H98,"") ->  | J116: =IFERROR('Retirement Calculations'!I98,"") ->  | K116: =IFERROR('Retirement Calculations'!J98,"") ->  | L116: =IFERROR('Retirement Calculations'!L98,"") ->  | M116: =IFERROR('Retirement Calculations'!M98,"") ->  | N116: =IFERROR('Retirement Calculations'!O98,"") ->  | O116: =IFERROR('Retirement Calculations'!P98,"") ->  | P116: =IFERROR('Retirement Calculations'!Q98,"") -> 
C117: =IFERROR('Retirement Calculations'!A99,"") ->  | D117: =IFERROR('Retirement Calculations'!B99,"") ->  | E117: =IFERROR('Retirement Calculations'!C99,"") ->  | F117: =IFERROR('Retirement Calculations'!D99,"") ->  | G117: =IFERROR('Retirement Calculations'!E99,"") ->  | H117: =IFERROR('Retirement Calculations'!G99,"") ->  | I117: =IFERROR('Retirement Calculations'!H99,"") ->  | J117: =IFERROR('Retirement Calculations'!I99,"") ->  | K117: =IFERROR('Retirement Calculations'!J99,"") ->  | L117: =IFERROR('Retirement Calculations'!L99,"") ->  | M117: =IFERROR('Retirement Calculations'!M99,"") ->  | N117: =IFERROR('Retirement Calculations'!O99,"") ->  | O117: =IFERROR('Retirement Calculations'!P99,"") ->  | P117: =IFERROR('Retirement Calculations'!Q99,"") -> 
C118: =IFERROR('Retirement Calculations'!A100,"") ->  | D118: =IFERROR('Retirement Calculations'!B100,"") ->  | E118: =IFERROR('Retirement Calculations'!C100,"") ->  | F118: =IFERROR('Retirement Calculations'!D100,"") ->  | G118: =IFERROR('Retirement Calculations'!E100,"") ->  | H118: =IFERROR('Retirement Calculations'!G100,"") ->  | I118: =IFERROR('Retirement Calculations'!H100,"") ->  | J118: =IFERROR('Retirement Calculations'!I100,"") ->  | K118: =IFERROR('Retirement Calculations'!J100,"") ->  | L118: =IFERROR('Retirement Calculations'!L100,"") ->  | M118: =IFERROR('Retirement Calculations'!M100,"") ->  | N118: =IFERROR('Retirement Calculations'!O100,"") ->  | O118: =IFERROR('Retirement Calculations'!P100,"") ->  | P118: =IFERROR('Retirement Calculations'!Q100,"") -> 
C119: =IFERROR('Retirement Calculations'!A101,"") ->  | D119: =IFERROR('Retirement Calculations'!B101,"") ->  | E119: =IFERROR('Retirement Calculations'!C101,"") ->  | F119: =IFERROR('Retirement Calculations'!D101,"") ->  | G119: =IFERROR('Retirement Calculations'!E101,"") ->  | H119: =IFERROR('Retirement Calculations'!G101,"") ->  | I119: =IFERROR('Retirement Calculations'!H101,"") ->  | J119: =IFERROR('Retirement Calculations'!I101,"") ->  | K119: =IFERROR('Retirement Calculations'!J101,"") ->  | L119: =IFERROR('Retirement Calculations'!L101,"") ->  | M119: =IFERROR('Retirement Calculations'!M101,"") ->  | N119: =IFERROR('Retirement Calculations'!O101,"") ->  | O119: =IFERROR('Retirement Calculations'!P101,"") ->  | P119: =IFERROR('Retirement Calculations'!Q101,"") -> 
C120: =IFERROR('Retirement Calculations'!A102,"") ->  | D120: =IFERROR('Retirement Calculations'!B102,"") ->  | E120: =IFERROR('Retirement Calculations'!C102,"") ->  | F120: =IFERROR('Retirement Calculations'!D102,"") ->  | G120: =IFERROR('Retirement Calculations'!E102,"") ->  | H120: =IFERROR('Retirement Calculations'!G102,"") ->  | I120: =IFERROR('Retirement Calculations'!H102,"") ->  | J120: =IFERROR('Retirement Calculations'!I102,"") ->  | K120: =IFERROR('Retirement Calculations'!J102,"") ->  | L120: =IFERROR('Retirement Calculations'!L102,"") ->  | M120: =IFERROR('Retirement Calculations'!M102,"") ->  | N120: =IFERROR('Retirement Calculations'!O102,"") ->  | O120: =IFERROR('Retirement Calculations'!P102,"") ->  | P120: =IFERROR('Retirement Calculations'!Q102,"") -> 
C121: =IFERROR('Retirement Calculations'!A103,"") ->  | D121: =IFERROR('Retirement Calculations'!B103,"") ->  | E121: =IFERROR('Retirement Calculations'!C103,"") ->  | F121: =IFERROR('Retirement Calculations'!D103,"") ->  | G121: =IFERROR('Retirement Calculations'!E103,"") ->  | H121: =IFERROR('Retirement Calculations'!G103,"") ->  | I121: =IFERROR('Retirement Calculations'!H103,"") ->  | J121: =IFERROR('Retirement Calculations'!I103,"") ->  | K121: =IFERROR('Retirement Calculations'!J103,"") ->  | L121: =IFERROR('Retirement Calculations'!L103,"") ->  | M121: =IFERROR('Retirement Calculations'!M103,"") ->  | N121: =IFERROR('Retirement Calculations'!O103,"") ->  | O121: =IFERROR('Retirement Calculations'!P103,"") ->  | P121: =IFERROR('Retirement Calculations'!Q103,"") -> 
C122: =IFERROR('Retirement Calculations'!A104,"") ->  | D122: =IFERROR('Retirement Calculations'!B104,"") ->  | E122: =IFERROR('Retirement Calculations'!C104,"") ->  | F122: =IFERROR('Retirement Calculations'!D104,"") ->  | G122: =IFERROR('Retirement Calculations'!E104,"") ->  | H122: =IFERROR('Retirement Calculations'!G104,"") ->  | I122: =IFERROR('Retirement Calculations'!H104,"") ->  | J122: =IFERROR('Retirement Calculations'!I104,"") ->  | K122: =IFERROR('Retirement Calculations'!J104,"") ->  | L122: =IFERROR('Retirement Calculations'!L104,"") ->  | M122: =IFERROR('Retirement Calculations'!M104,"") ->  | N122: =IFERROR('Retirement Calculations'!O104,"") ->  | O122: =IFERROR('Retirement Calculations'!P104,"") ->  | P122: =IFERROR('Retirement Calculations'!Q104,"") -> 
C123: =IFERROR('Retirement Calculations'!A105,"") ->  | D123: =IFERROR('Retirement Calculations'!B105,"") ->  | E123: =IFERROR('Retirement Calculations'!C105,"") ->  | F123: =IFERROR('Retirement Calculations'!D105,"") ->  | G123: =IFERROR('Retirement Calculations'!E105,"") ->  | H123: =IFERROR('Retirement Calculations'!G105,"") ->  | I123: =IFERROR('Retirement Calculations'!H105,"") ->  | J123: =IFERROR('Retirement Calculations'!I105,"") ->  | K123: =IFERROR('Retirement Calculations'!J105,"") ->  | L123: =IFERROR('Retirement Calculations'!L105,"") ->  | M123: =IFERROR('Retirement Calculations'!M105,"") ->  | N123: =IFERROR('Retirement Calculations'!O105,"") ->  | O123: =IFERROR('Retirement Calculations'!P105,"") ->  | P123: =IFERROR('Retirement Calculations'!Q105,"") -> 
C124: =IFERROR('Retirement Calculations'!A106,"") ->  | D124: =IFERROR('Retirement Calculations'!B106,"") ->  | E124: =IFERROR('Retirement Calculations'!C106,"") ->  | F124: =IFERROR('Retirement Calculations'!D106,"") ->  | G124: =IFERROR('Retirement Calculations'!E106,"") ->  | H124: =IFERROR('Retirement Calculations'!G106,"") ->  | I124: =IFERROR('Retirement Calculations'!H106,"") ->  | J124: =IFERROR('Retirement Calculations'!I106,"") ->  | K124: =IFERROR('Retirement Calculations'!J106,"") ->  | L124: =IFERROR('Retirement Calculations'!L106,"") ->  | M124: =IFERROR('Retirement Calculations'!M106,"") ->  | N124: =IFERROR('Retirement Calculations'!O106,"") ->  | O124: =IFERROR('Retirement Calculations'!P106,"") ->  | P124: =IFERROR('Retirement Calculations'!Q106,"") -> 
C125: =IFERROR('Retirement Calculations'!A107,"") ->  | D125: =IFERROR('Retirement Calculations'!B107,"") ->  | E125: =IFERROR('Retirement Calculations'!C107,"") ->  | F125: =IFERROR('Retirement Calculations'!D107,"") ->  | G125: =IFERROR('Retirement Calculations'!E107,"") ->  | H125: =IFERROR('Retirement Calculations'!G107,"") ->  | I125: =IFERROR('Retirement Calculations'!H107,"") ->  | J125: =IFERROR('Retirement Calculations'!I107,"") ->  | K125: =IFERROR('Retirement Calculations'!J107,"") ->  | L125: =IFERROR('Retirement Calculations'!L107,"") ->  | M125: =IFERROR('Retirement Calculations'!M107,"") ->  | N125: =IFERROR('Retirement Calculations'!O107,"") ->  | O125: =IFERROR('Retirement Calculations'!P107,"") ->  | P125: =IFERROR('Retirement Calculations'!Q107,"") -> 
C128: Row Labels | D128: Sum of Savings Balance | E128: Sum of Annual Income
C129: 65 | D129: 2000000 | E129: 150000
C130: 66 | D130: 2029000 | E130: 152340
C131: 67 | D131: 2057687.9 | E131: 154673.274
C132: 68 | D132: 2085985.109 | E132: 156995.3465
C133: 69 | D133: 2113805.595 | E133: 159301.3005
C134: 70 | D134: 2141055.265 | E134: 161585.74
C135: 71 | D135: 2167631.285 | E135: 163842.7496
C136: 72 | D136: 2193421.347 | E136: 166065.8509
C137: 73 | D137: 2218302.888 | E137: 168247.9547
C138: 74 | D138: 2242142.222 | E138: 170381.3104
C139: 75 | D139: 2264793.627 | E139: 172457.4502
C140: 76 | D140: 2286098.333 | E140: 174467.1292
C141: 77 | D141: 2305883.45 | E141: 176400.2608
C142: 78 | D142: 2323960.791 | E142: 178245.8463
C143: 79 | D143: 2340125.608 | E143: 179991.8993
C144: 80 | D144: 2354155.223 | E144: 181625.3635
C145: 81 | D145: 2365807.549 | E145: 183132.0241
C146: 82 | D146: 2374819.485 | E146: 184496.4117
C147: 83 | D147: 2380905.189 | E147: 185701.6987
C148: 84 | D148: 2383754.199 | E148: 186729.5871
C149: 85 | D149: 2383029.416 | E149: 187560.1869
C150: 86 | D150: 2378364.909 | E150: 188171.8849
C151: 87 | D151: 2369363.546 | E151: 188541.2029
C152: 88 | D152: 2355594.438 | E152: 188642.6442
C153: 89 | D153: 2336590.164 | E153: 188448.5274
C154: 90 | D154: 2311843.785 | E154: 187928.8069
C155: Grand Total | D155: 58764121.32 | E155: 4535974.451

Sheet Retirement Calculations
B1: Investments | G1: Annual Income | L1: Taxes
A2: Age | B2: Savings | C2: Investment Fees | D2: Return on Investments | E2: Net Investments | G2: Annual Withdrawal | H2: Pension | I2: SSA | J2: Total Income | L2: Federal Income Taxes | M2: State Income Taxes | O2: Income-Taxes | P2: Annual Expenses | Q2: Net Income
A3: ='Retirement Worksheet'!B6 -> 65 | B3: ='Retirement Worksheet'!B7 -> 2000000 | C3: =B3*'Retirement Worksheet'!$B$11 -> 5000 | D3: =B3*'Retirement Worksheet'!$B$16 -> 100000 | E3: =B3-C3+D3 -> 2095000 | G3: =B3*'Retirement Worksheet'!$B$8 -> 120000 | H3: ='Retirement Worksheet'!$B$13 -> 30000 | I3: ='Retirement Worksheet'!B12 -> 0 | J3: =SUM(G3:I3) -> 150000 | L3: =SUM('Retirement Calculations'!G3:I3)*'Retirement Worksheet'!$B$9 -> 57000 | M3: =SUM(G3:I3)*'Retirement Worksheet'!$B$10 -> 9000 | O3: =SUM(G3:I3)-SUM(L3:M3) -> 84000 | P3: ='Retirement Worksheet'!$B$14 -> 150000 | Q3: =O3-P3 -> -66000
A4: =IF(A3<'Retirement Worksheet'!$B$5,A3+1,NA()) -> 66 | B4: =IF(ISERROR(A4),NA(),E3+Q3) -> 2029000 | C4: =B4*'Retirement Worksheet'!$B$11 -> 5072.5 | D4: =B4*'Retirement Worksheet'!$B$16 -> 101450 | E4: =B4-C4+D4 -> 2125377.5 | G4: =B4*'Retirement Worksheet'!$B$8 -> 121740 | H4: =IF(ISERROR(A4),NA(),H3*(1+'Retirement Worksheet'!$B$15)) -> 30600 | I4: =IF(ISERROR(A4),NA(),I3*(1+'Retirement Worksheet'!$B$15)) -> 0 | J4: =SUM(G4:I4) -> 152340 | L4: =SUM('Retirement Calculations'!G4:I4)*'Retirement Worksheet'!$B$9 -> 57889.2 | M4: =SUM(G4:I4)*'Retirement Worksheet'!$B$10 -> 9140.4 | O4: =SUM(G4:I4)-SUM(L4:M4) -> 85310.4 | P4: =IF(ISERROR(A4),NA(),P3*(1+'Retirement Worksheet'!$B$15)) -> 153000 | Q4: =O4-P4 -> -67689.6
A5: =IF(A4<'Retirement Worksheet'!$B$5,A4+1,NA()) -> 67 | B5: =IF(ISERROR(A5),NA(),E4+Q4) -> 2057687.9 | C5: =B5*'Retirement Worksheet'!$B$11 -> 5144.21975 | D5: =B5*'Retirement Worksheet'!$B$16 -> 102884.395 | E5: =B5-C5+D5 -> 2155428.075 | G5: =B5*'Retirement Worksheet'!$B$8 -> 123461.274 | H5: =IF(ISERROR(A5),NA(),H4*(1+'Retirement Worksheet'!$B$15)) -> 31212 | I5: =IF(ISERROR(A5),NA(),I4*(1+'Retirement Worksheet'!$B$15)) -> 0 | J5: 154673.274 | L5: =SUM('Retirement Calculations'!G5:I5)*'Retirement Worksheet'!$B$9 -> 58775.84412 | M5: =SUM(G5:I5)*'Retirement Worksheet'!$B$10 -> 9280.39644 | O5: =SUM(G5:I5)-SUM(L5:M5) -> 86617.03344 | P5: =IF(ISERROR(A5),NA(),P4*(1+'Retirement Worksheet'!$B$15)) -> 156060 | Q5: =O5-P5 -> -69442.96656
A6: =IF(A5<'Retirement Worksheet'!$B$5,A5+1,NA()) -> 68 | B6: 2085985.109 | C6: =B6*'Retirement Worksheet'!$B$11 -> 5214.962772 | D6: =B6*'Retirement Worksheet'!$B$16 -> 104299.2554 | E6: =B6-C6+D6 -> 2185069.401 | G6: =B6*'Retirement Worksheet'!$B$8 -> 125159.1065 | H6: =IF(ISERROR(A6),NA(),H5*(1+'Retirement Worksheet'!$B$15)) -> 31836.24 | I6: =IF(ISERROR(A6),NA(),I5*(1+'Retirement Worksheet'!$B$15)) -> 0 | J6: 156995.3465 | L6: =SUM('Retirement Calculations'!G6:I6)*'Retirement Worksheet'!$B$9 -> 59658.23168 | M6: =SUM(G6:I6)*'Retirement Worksheet'!$B$10 -> 9419.720791 | O6: =SUM(G6:I6)-SUM(L6:M6) -> 87917.39405 | P6: =IF(ISERROR(A6),NA(),P5*(1+'Retirement Worksheet'!$B$15)) -> 159181.2 | Q6: =O6-P6 -> -71263.80595
A7: =IF(A6<'Retirement Worksheet'!$B$5,A6+1,NA()) -> 69 | B7: 2113805.595 | C7: =B7*'Retirement Worksheet'!$B$11 -> 5284.513989 | D7: =B7*'Retirement Worksheet'!$B$16 -> 105690.2798 | E7: =B7-C7+D7 -> 2214211.361 | G7: =B7*'Retirement Worksheet'!$B$8 -> 126828.3357 | H7: =IF(ISERROR(A7),NA(),H6*(1+'Retirement Worksheet'!$B$15)) -> 32472.9648 | I7: =IF(ISERROR(A7),NA(),I6*(1+'Retirement Worksheet'!$B$15)) -> 0 | J7: 159301.3005 | L7: =SUM('Retirement Calculations'!G7:I7)*'Retirement Worksheet'!$B$9 -> 60534.4942 | M7: =SUM(G7:I7)*'Retirement Worksheet'!$B$10 -> 9558.078031 | O7: =SUM(G7:I7)-SUM(L7:M7) -> 89208.72829 | P7: =IF(ISERROR(A7),NA(),P6*(1+'Retirement Worksheet'!$B$15)) -> 162364.824 | Q7: =O7-P7 -> -73156.09571
A8: =IF(A7<'Retirement Worksheet'!$B$5,A7+1,NA()) -> 70 | B8: 2141055.265 | C8: =B8*'Retirement Worksheet'!$B$11 -> 5352.638164 | D8: =B8*'Retirement Worksheet'!$B$16 -> 107052.7633 | E8: 2242755.391 | G8: =B8*'Retirement Worksheet'!$B$8 -> 128463.3159 | H8: =IF(ISERROR(A8),NA(),H7*(1+'Retirement Worksheet'!$B$15)) -> 33122.4241 | I8: =IF(ISERROR(A8),NA(),I7*(1+'Retirement Worksheet'!$B$15)) -> 0 | J8: 161585.74 | L8: =SUM('Retirement Calculations'!G8:I8)*'Retirement Worksheet'!$B$9 -> 61402.58121 | M8: =SUM(G8:I8)*'Retirement Worksheet'!$B$10 -> 9695.144401 | O8: 90488.01441 | P8: =IF(ISERROR(A8),NA(),P7*(1+'Retirement Worksheet'!$B$15)) -> 165612.1205 | Q8: -75124.10607
A9: =IF(A8<'Retirement Worksheet'!$B$5,A8+1,NA()) -> 71 | B9: 2167631.285 | C9: =B9*'Retirement Worksheet'!$B$11 -> 5419.078211 | D9: =B9*'Retirement Worksheet'!$B$16 -> 108381.5642 | E9: 2270593.771 | G9: =B9*'Retirement Worksheet'!$B$8 -> 130057.8771 | H9: =IF(ISERROR(A9),NA(),H8*(1+'Retirement Worksheet'!$B$15)) -> 33784.87258 | I9: =IF(ISERROR(A9),NA(),I8*(1+'Retirement Worksheet'!$B$15)) -> 0 | J9: 163842.7496 | L9: =SUM('Retirement Calculations'!G9:I9)*'Retirement Worksheet'!$B$9 -> 62260.24487 | M9: =SUM(G9:I9)*'Retirement Worksheet'!$B$10 -> 9830.564979 | O9: 91751.9398 | P9: =IF(ISERROR(A9),NA(),P8*(1+'Retirement Worksheet'!$B$15)) -> 168924.3629 | Q9: -77172.42309
A10: =IF(A9<'Retirement Worksheet'!$B$5,A9+1,NA()) -> 72 | B10: 2193421.347 | C10: =B10*'Retirement Worksheet'!$B$11 -> 5483.553369 | D10: =B10*'Retirement Worksheet'!$B$16 -> 109671.0674 | E10: 2297608.861 | G10: =B10*'Retirement Worksheet'!$B$8 -> 131605.2808 | H10: =IF(ISERROR(A10),NA(),H9*(1+'Retirement Worksheet'!$B$15)) -> 34460.57003 | I10: =IF(ISERROR(A10),NA(),I9*(1+'Retirement Worksheet'!$B$15)) -> 0 | J10: 166065.8509 | L10: =SUM('Retirement Calculations'!G10:I10)*'Retirement Worksheet'!$B$9 -> 63105.02333 | M10: =SUM(G10:I10)*'Retirement Worksheet'!$B$10 -> 9963.951053 | O10: 92996.87649 | P10: =IF(ISERROR(A10),NA(),P9*(1+'Retirement Worksheet'!$B$15)) -> 172302.8501 | Q10: -79305.97366
A11: =IF(A10<'Retirement Worksheet'!$B$5,A10+1,NA()) -> 73 | B11: 2218302.888 | C11: =B11*'Retirement Worksheet'!$B$11 -> 5545.75722 | D11: =B11*'Retirement Worksheet'!$B$16 -> 110915.1444 | E11: 2323672.275 | G11: =B11*'Retirement Worksheet'!$B$8 -> 133098.1733 | H11: =IF(ISERROR(A11),NA(),H10*(1+'Retirement Worksheet'!$B$15)) -> 35149.78143 | I11: =IF(ISERROR(A11),NA(),I10*(1+'Retirement Worksheet'!$B$15)) -> 0 | J11: 168247.9547 | L11: =SUM('Retirement Calculations'!G11:I11)*'Retirement Worksheet'!$B$9 -> 63934.22279 | M11: =SUM(G11:I11)*'Retirement Worksheet'!$B$10 -> 10094.87728 | O11: 94218.85463 | P11: =IF(ISERROR(A11),NA(),P10*(1+'Retirement Worksheet'!$B$15)) -> 175748.9072 | Q11: -81530.05252
A12: =IF(A11<'Retirement Worksheet'!$B$5,A11+1,NA()) -> 74 | B12: 2242142.222 | C12: =B12*'Retirement Worksheet'!$B$11 -> 5605.355556 | D12: =B12*'Retirement Worksheet'!$B$16 -> 112107.1111 | E12: 2348643.978 | G12: =B12*'Retirement Worksheet'!$B$8 -> 134528.5333 | H12: =IF(ISERROR(A12),NA(),H11*(1+'Retirement Worksheet'!$B$15)) -> 35852.77706 | I12: =IF(ISERROR(A12),NA(),I11*(1+'Retirement Worksheet'!$B$15)) -> 0 | J12: 170381.3104 | L12: =SUM('Retirement Calculations'!G12:I12)*'Retirement Worksheet'!$B$9 -> 64744.89795 | M12: =SUM(G12:I12)*'Retirement Worksheet'!$B$10 -> 10222.87862 | O12: 95413.53383 | P12: =IF(ISERROR(A12),NA(),P11*(1+'Retirement Worksheet'!$B$15)) -> 179263.8853 | Q12: -83850.35147
A13: =IF(A12<'Retirement Worksheet'!$B$5,A12+1,NA()) -> 75 | B13: 2264793.627 | C13: =B13*'Retirement Worksheet'!$B$11 -> 5661.984066 | D13: =B13*'Retirement Worksheet'!$B$16 -> 113239.6813 | E13: 2372371.324 | G13: =B13*'Retirement Worksheet'!$B$8 -> 135887.6176 | H13: =IF(ISERROR(A13),NA(),H12*(1+'Retirement Worksheet'!$B$15)) -> 36569.8326 | I13: =IF(ISERROR(A13),NA(),I12*(1+'Retirement Worksheet'!$B$15)) -> 0 | J13: 172457.4502 | L13: =SUM('Retirement Calculations'!G13:I13)*'Retirement Worksheet'!$B$9 -> 65533.83107 | M13: =SUM(G13:I13)*'Retirement Worksheet'!$B$10 -> 10347.44701 | O13: 96576.17211 | P13: =IF(ISERROR(A13),NA(),P12*(1+'Retirement Worksheet'!$B$15)) -> 182849.163 | Q13: -86272.99089
A14: =IF(A13<'Retirement Worksheet'!$B$5,A13+1,NA()) -> 76 | B14: 2286098.333 | C14: =B14*'Retirement Worksheet'!$B$11 -> 5715.245832 | D14: =B14*'Retirement Worksheet'!$B$16 -> 114304.9166 | E14: 2394688.004 | G14: =B14*'Retirement Worksheet'!$B$8 -> 137165.9 | H14: =IF(ISERROR(A14),NA(),H13*(1+'Retirement Worksheet'!$B$15)) -> 37301.22925 | I14: =IF(ISERROR(A14),NA(),I13*(1+'Retirement Worksheet'!$B$15)) -> 0 | J14: 174467.1292 | L14: =SUM('Retirement Calculations'!G14:I14)*'Retirement Worksheet'!$B$9 -> 66297.50911 | M14: =SUM(G14:I14)*'Retirement Worksheet'!$B$10 -> 10468.02775 | O14: 97701.59237 | P14: =IF(ISERROR(A14),NA(),P13*(1+'Retirement Worksheet'!$B$15)) -> 186506.1463 | Q14: -88804.55389
A15: =IF(A14<'Retirement Worksheet'!$B$5,A14+1,NA()) -> 77 | B15: 2305883.45 | C15: =B15*'Retirement Worksheet'!$B$11 -> 5764.708625 | D15: =B15*'Retirement Worksheet'!$B$16 -> 115294.1725 | E15: 2415412.914 | G15: =B15*'Retirement Worksheet'!$B$8 -> 138353.007 | H15: =IF(ISERROR(A15),NA(),H14*(1+'Retirement Worksheet'!$B$15)) -> 38047.25384 | I15: =IF(ISERROR(A15),NA(),I14*(1+'Retirement Worksheet'!$B$15)) -> 0 | J15: 176400.2608 | L15: =SUM('Retirement Calculations'!G15:I15)*'Retirement Worksheet'!$B$9 -> 67032.09911 | M15: =SUM(G15:I15)*'Retirement Worksheet'!$B$10 -> 10584.01565 | O15: 98784.14606 | P15: =IF(ISERROR(A15),NA(),P14*(1+'Retirement Worksheet'!$B$15)) -> 190236.2692 | Q15: -91452.12312
A16: =IF(A15<'Retirement Worksheet'!$B$5,A15+1,NA()) -> 78 | B16: 2323960.791 | C16: =B16*'Retirement Worksheet'!$B$11 -> 5809.901976 | D16: =B16*'Retirement Worksheet'!$B$16 -> 116198.0395 | E16: 2434348.928 | G16: =B16*'Retirement Worksheet'!$B$8 -> 139437.6474 | H16: =IF(ISERROR(A16),NA(),H15*(1+'Retirement Worksheet'!$B$15)) -> 38808.19891 | I16: =IF(ISERROR(A16),NA(),I15*(1+'Retirement Worksheet'!$B$15)) -> 0 | J16: 178245.8463 | L16: =SUM('Retirement Calculations'!G16:I16)*'Retirement Worksheet'!$B$9 -> 67733.42161 | M16: =SUM(G16:I16)*'Retirement Worksheet'!$B$10 -> 10694.75078 | O16: 99817.67396 | P16: =IF(ISERROR(A16),NA(),P15*(1+'Retirement Worksheet'!$B$15)) -> 194040.9946 | Q16: -94223.32061
A17: =IF(A16<'Retirement Worksheet'!$B$5,A16+1,NA()) -> 79 | B17: 2340125.608 | C17: =B17*'Retirement Worksheet'!$B$11 -> 5850.314019 | D17: =B17*'Retirement Worksheet'!$B$16 -> 117006.2804 | E17: 2451281.574 | G17: =B17*'Retirement Worksheet'!$B$8 -> 140407.5365 | H17: =IF(ISERROR(A17),NA(),H16*(1+'Retirement Worksheet'!$B$15)) -> 39584.36289 | I17: =IF(ISERROR(A17),NA(),I16*(1+'Retirement Worksheet'!$B$15)) -> 0 | J17: 179991.8993 | L17: =SUM('Retirement Calculations'!G17:I17)*'Retirement Worksheet'!$B$9 -> 68396.92175 | M17: =SUM(G17:I17)*'Retirement Worksheet'!$B$10 -> 10799.51396 | O17: 100795.4636 | P17: =IF(ISERROR(A17),NA(),P16*(1+'Retirement Worksheet'!$B$15)) -> 197921.8145 | Q17: -97126.35083
A18: =IF(A17<'Retirement Worksheet'!$B$5,A17+1,NA()) -> 80 | B18: 2354155.223 | C18: =B18*'Retirement Worksheet'!$B$11 -> 5885.388058 | D18: =B18*'Retirement Worksheet'!$B$16 -> 117707.7612 | E18: 2465977.596 | G18: =B18*'Retirement Worksheet'!$B$8 -> 141249.3134 | H18: =IF(ISERROR(A18),NA(),H17*(1+'Retirement Worksheet'!$B$15)) -> 40376.05015 | I18: =IF(ISERROR(A18),NA(),I17*(1+'Retirement Worksheet'!$B$15)) -> 0 | J18: 181625.3635 | L18: =SUM('Retirement Calculations'!G18:I18)*'Retirement Worksheet'!$B$9 -> 69017.63814 | M18: =SUM(G18:I18)*'Retirement Worksheet'!$B$10 -> 10897.52181 | O18: 101710.2036 | P18: =IF(ISERROR(A18),NA(),P17*(1+'Retirement Worksheet'!$B$15)) -> 201880.2507 | Q18: -100170.0472
A19: =IF(A18<'Retirement Worksheet'!$B$5,A18+1,NA()) -> 81 | B19: 2365807.549 | C19: =B19*'Retirement Worksheet'!$B$11 -> 5914.518872 | D19: =B19*'Retirement Worksheet'!$B$16 -> 118290.3774 | E19: 2478183.408 | G19: =B19*'Retirement Worksheet'!$B$8 -> 141948.4529 | H19: =IF(ISERROR(A19),NA(),H18*(1+'Retirement Worksheet'!$B$15)) -> 41183.57115 | I19: =IF(ISERROR(A19),NA(),I18*(1+'Retirement Worksheet'!$B$15)) -> 0 | J19: 183132.0241 | L19: =SUM('Retirement Calculations'!G19:I19)*'Retirement Worksheet'!$B$9 -> 69590.16915 | M19: =SUM(G19:I19)*'Retirement Worksheet'!$B$10 -> 10987.92145 | O19: 102553.9335 | P19: =IF(ISERROR(A19),NA(),P18*(1+'Retirement Worksheet'!$B$15)) -> 205917.8558 | Q19: -103363.9223
A20: =IF(A19<'Retirement Worksheet'!$B$5,A19+1,NA()) -> 82 | B20: 2374819.485 | C20: =B20*'Retirement Worksheet'!$B$11 -> 5937.048713 | D20: =B20*'Retirement Worksheet'!$B$16 -> 118740.9743 | E20: 2487623.411 | G20: =B20*'Retirement Worksheet'!$B$8 -> 142489.1691 | H20: =IF(ISERROR(A20),NA(),H19*(1+'Retirement Worksheet'!$B$15)) -> 42007.24258 | I20: =IF(ISERROR(A20),NA(),I19*(1+'Retirement Worksheet'!$B$15)) -> 0 | J20: 184496.4117 | L20: =SUM('Retirement Calculations'!G20:I20)*'Retirement Worksheet'!$B$9 -> 70108.63644 | M20: =SUM(G20:I20)*'Retirement Worksheet'!$B$10 -> 11069.7847 | O20: 103317.9905 | P20: =IF(ISERROR(A20),NA(),P19*(1+'Retirement Worksheet'!$B$15)) -> 210036.2129 | Q20: -106718.2223
A21: =IF(A20<'Retirement Worksheet'!$B$5,A20+1,NA()) -> 83 | B21: 2380905.189 | C21: =B21*'Retirement Worksheet'!$B$11 -> 5952.262971 | D21: =B21*'Retirement Worksheet'!$B$16 -> 119045.2594 | E21: 2493998.185 | G21: =B21*'Retirement Worksheet'!$B$8 -> 142854.3113 | H21: =IF(ISERROR(A21),NA(),H20*(1+'Retirement Worksheet'!$B$15)) -> 42847.38743 | I21: =IF(ISERROR(A21),NA(),I20*(1+'Retirement Worksheet'!$B$15)) -> 0 | J21: 185701.6987 | L21: =SUM('Retirement Calculations'!G21:I21)*'Retirement Worksheet'!$B$9 -> 70566.64552 | M21: =SUM(G21:I21)*'Retirement Worksheet'!$B$10 -> 11142.10192 | O21: 103992.9513 | P21: =IF(ISERROR(A21),NA(),P20*(1+'Retirement Worksheet'!$B$15)) -> 214236.9371 | Q21: -110243.9858
A22: =IF(A21<'Retirement Worksheet'!$B$5,A21+1,NA()) -> 84 | B22: 2383754.199 | C22: =B22*'Retirement Worksheet'!$B$11 -> 5959.385498 | D22: =B22*'Retirement Worksheet'!$B$16 -> 119187.71 | E22: 2496982.524 | G22: =B22*'Retirement Worksheet'!$B$8 -> 143025.2519 | H22: =IF(ISERROR(A22),NA(),H21*(1+'Retirement Worksheet'!$B$15)) -> 43704.33518 | I22: =IF(ISERROR(A22),NA(),I21*(1+'Retirement Worksheet'!$B$15)) -> 0 | J22: 186729.5871 | L22: =SUM('Retirement Calculations'!G22:I22)*'Retirement Worksheet'!$B$9 -> 70957.24311 | M22: =SUM(G22:I22)*'Retirement Worksheet'!$B$10 -> 11203.77523 | O22: 104568.5688 | P22: =IF(ISERROR(A22),NA(),P21*(1+'Retirement Worksheet'!$B$15)) -> 218521.6759 | Q22: -113953.1071
A23: =IF(A22<'Retirement Worksheet'!$B$5,A22+1,NA()) -> 85 | B23: 2383029.416 | C23: =B23*'Retirement Worksheet'!$B$11 -> 5957.573541 | D23: =B23*'Retirement Worksheet'!$B$16 -> 119151.4708 | E23: 2496223.314 | G23: =B23*'Retirement Worksheet'!$B$8 -> 142981.765 | H23: =IF(ISERROR(A23),NA(),H22*(1+'Retirement Worksheet'!$B$15)) -> 44578.42188 | I23: =IF(ISERROR(A23),NA(),I22*(1+'Retirement Worksheet'!$B$15)) -> 0 | J23: 187560.1869 | L23: =SUM('Retirement Calculations'!G23:I23)*'Retirement Worksheet'!$B$9 -> 71272.87101 | M23: =SUM(G23:I23)*'Retirement Worksheet'!$B$10 -> 11253.61121 | O23: 105033.7046 | P23: =IF(ISERROR(A23),NA(),P22*(1+'Retirement Worksheet'!$B$15)) -> 222892.1094 | Q23: -117858.4048
A24: =IF(A23<'Retirement Worksheet'!$B$5,A23+1,NA()) -> 86 | B24: 2378364.909 | C24: =B24*'Retirement Worksheet'!$B$11 -> 5945.912273 | D24: =B24*'Retirement Worksheet'!$B$16 -> 118918.2455 | E24: 2491337.242 | G24: =B24*'Retirement Worksheet'!$B$8 -> 142701.8945 | H24: =IF(ISERROR(A24),NA(),H23*(1+'Retirement Worksheet'!$B$15)) -> 45469.99032 | I24: =IF(ISERROR(A24),NA(),I23*(1+'Retirement Worksheet'!$B$15)) -> 0 | J24: 188171.8849 | L24: =SUM('Retirement Calculations'!G24:I24)*'Retirement Worksheet'!$B$9 -> 71505.31625 | M24: =SUM(G24:I24)*'Retirement Worksheet'!$B$10 -> 11290.31309 | O24: 105376.2555 | P24: =IF(ISERROR(A24),NA(),P23*(1+'Retirement Worksheet'!$B$15)) -> 227349.9516 | Q24: -121973.6961
A25: =IF(A24<'Retirement Worksheet'!$B$5,A24+1,NA()) -> 87 | B25: 2369363.546 | C25: =B25*'Retirement Worksheet'!$B$11 -> 5923.408865 | D25: =B25*'Retirement Worksheet'!$B$16 -> 118468.1773 | E25: 2481908.315 | G25: =B25*'Retirement Worksheet'!$B$8 -> 142161.8128 | H25: =IF(ISERROR(A25),NA(),H24*(1+'Retirement Worksheet'!$B$15)) -> 46379.39012 | I25: =IF(ISERROR(A25),NA(),I24*(1+'Retirement Worksheet'!$B$15)) -> 0 | J25: 188541.2029 | L25: =SUM('Retirement Calculations'!G25:I25)*'Retirement Worksheet'!$B$9 -> 71645.6571 | M25: =SUM(G25:I25)*'Retirement Worksheet'!$B$10 -> 11312.47217 | O25: 105583.0736 | P25: =IF(ISERROR(A25),NA(),P24*(1+'Retirement Worksheet'!$B$15)) -> 231896.9506 | Q25: -126313.877
A26: =IF(A25<'Retirement Worksheet'!$B$5,A25+1,NA()) -> 88 | B26: 2355594.438 | C26: =B26*'Retirement Worksheet'!$B$11 -> 5888.986094 | D26: =B26*'Retirement Worksheet'!$B$16 -> 117779.7219 | E26: 2467485.173 | G26: =B26*'Retirement Worksheet'!$B$8 -> 141335.6663 | H26: =IF(ISERROR(A26),NA(),H25*(1+'Retirement Worksheet'!$B$15)) -> 47306.97793 | I26: =IF(ISERROR(A26),NA(),I25*(1+'Retirement Worksheet'!$B$15)) -> 0 | J26: 188642.6442 | L26: =SUM('Retirement Calculations'!G26:I26)*'Retirement Worksheet'!$B$9 -> 71684.20479 | M26: =SUM(G26:I26)*'Retirement Worksheet'!$B$10 -> 11318.55865 | O26: 105639.8807 | P26: =IF(ISERROR(A26),NA(),P25*(1+'Retirement Worksheet'!$B$15)) -> 236534.8896 | Q26: -130895.0089
A27: =IF(A26<'Retirement Worksheet'!$B$5,A26+1,NA()) -> 89 | B27: 2336590.164 | C27: =B27*'Retirement Worksheet'!$B$11 -> 5841.475411 | D27: =B27*'Retirement Worksheet'!$B$16 -> 116829.5082 | E27: 2447578.197 | G27: =B27*'Retirement Worksheet'!$B$8 -> 140195.4099 | H27: =IF(ISERROR(A27),NA(),H26*(1+'Retirement Worksheet'!$B$15)) -> 48253.11748 | I27: =IF(ISERROR(A27),NA(),I26*(1+'Retirement Worksheet'!$B$15)) -> 0 | J27: 188448.5274 | L27: =SUM('Retirement Calculations'!G27:I27)*'Retirement Worksheet'!$B$9 -> 71610.44039 | M27: =SUM(G27:I27)*'Retirement Worksheet'!$B$10 -> 11306.91164 | O27: 105531.1753 | P27: =IF(ISERROR(A27),NA(),P26*(1+'Retirement Worksheet'!$B$15)) -> 241265.5874 | Q27: -135734.4121
A28: =IF(A27<'Retirement Worksheet'!$B$5,A27+1,NA()) -> 90 | B28: 2311843.785 | C28: =B28*'Retirement Worksheet'!$B$11 -> 5779.609463 | D28: =B28*'Retirement Worksheet'!$B$16 -> 115592.1893 | E28: 2421656.365 | G28: =B28*'Retirement Worksheet'!$B$8 -> 138710.6271 | H28: =IF(ISERROR(A28),NA(),H27*(1+'Retirement Worksheet'!$B$15)) -> 49218.17983 | I28: =IF(ISERROR(A28),NA(),I27*(1+'Retirement Worksheet'!$B$15)) -> 0 | J28: 187928.8069 | L28: =SUM('Retirement Calculations'!G28:I28)*'Retirement Worksheet'!$B$9 -> 71412.94664 | M28: =SUM(G28:I28)*'Retirement Worksheet'!$B$10 -> 11275.72842 | O28: 105240.1319 | P28: =IF(ISERROR(A28),NA(),P27*(1+'Retirement Worksheet'!$B$15)) -> 246090.8992 | Q28: -140850.7673
A29: =IF(A28<'Retirement Worksheet'!$B$5,A28+1,NA()) ->  | C29: =B29*'Retirement Worksheet'!$B$11 ->  | D29: =B29*'Retirement Worksheet'!$B$16 ->  | G29: =B29*'Retirement Worksheet'!$B$8 ->  | H29: =IF(ISERROR(A29),NA(),H28*(1+'Retirement Worksheet'!$B$15)) ->  | I29: =IF(ISERROR(A29),NA(),I28*(1+'Retirement Worksheet'!$B$15)) ->  | L29: =SUM('Retirement Calculations'!G29:I29)*'Retirement Worksheet'!$B$9 ->  | M29: =SUM(G29:I29)*'Retirement Worksheet'!$B$10 ->  | P29: =IF(ISERROR(A29),NA(),P28*(1+'Retirement Worksheet'!$B$15)) -> 
A30: =IF(A29<'Retirement Worksheet'!$B$5,A29+1,NA()) ->  | C30: =B30*'Retirement Worksheet'!$B$11 ->  | D30: =B30*'Retirement Worksheet'!$B$16 ->  | G30: =B30*'Retirement Worksheet'!$B$8 ->  | H30: =IF(ISERROR(A30),NA(),H29*(1+'Retirement Worksheet'!$B$15)) ->  | I30: =IF(ISERROR(A30),NA(),I29*(1+'Retirement Worksheet'!$B$15)) ->  | L30: =SUM('Retirement Calculations'!G30:I30)*'Retirement Worksheet'!$B$9 ->  | M30: =SUM(G30:I30)*'Retirement Worksheet'!$B$10 ->  | P30: =IF(ISERROR(A30),NA(),P29*(1+'Retirement Worksheet'!$B$15)) -> 
A31: =IF(A30<'Retirement Worksheet'!$B$5,A30+1,NA()) ->  | C31: =B31*'Retirement Worksheet'!$B$11 ->  | D31: =B31*'Retirement Worksheet'!$B$16 ->  | G31: =B31*'Retirement Worksheet'!$B$8 ->  | H31: =IF(ISERROR(A31),NA(),H30*(1+'Retirement Worksheet'!$B$15)) ->  | I31: =IF(ISERROR(A31),NA(),I30*(1+'Retirement Worksheet'!$B$15)) ->  | L31: =SUM('Retirement Calculations'!G31:I31)*'Retirement Worksheet'!$B$9 ->  | M31: =SUM(G31:I31)*'Retirement Worksheet'!$B$10 ->  | P31: =IF(ISERROR(A31),NA(),P30*(1+'Retirement Worksheet'!$B$15)) -> 
A32: =IF(A31<'Retirement Worksheet'!$B$5,A31+1,NA()) ->  | C32: =B32*'Retirement Worksheet'!$B$11 ->  | D32: =B32*'Retirement Worksheet'!$B$16 ->  | G32: =B32*'Retirement Worksheet'!$B$8 ->  | H32: =IF(ISERROR(A32),NA(),H31*(1+'Retirement Worksheet'!$B$15)) ->  | I32: =IF(ISERROR(A32),NA(),I31*(1+'Retirement Worksheet'!$B$15)) ->  | L32: =SUM('Retirement Calculations'!G32:I32)*'Retirement Worksheet'!$B$9 ->  | M32: =SUM(G32:I32)*'Retirement Worksheet'!$B$10 ->  | P32: =IF(ISERROR(A32),NA(),P31*(1+'Retirement Worksheet'!$B$15)) -> 
A33: =IF(A32<'Retirement Worksheet'!$B$5,A32+1,NA()) ->  | C33: =B33*'Retirement Worksheet'!$B$11 ->  | D33: =B33*'Retirement Worksheet'!$B$16 ->  | G33: =B33*'Retirement Worksheet'!$B$8 ->  | H33: =IF(ISERROR(A33),NA(),H32*(1+'Retirement Worksheet'!$B$15)) ->  | I33: =IF(ISERROR(A33),NA(),I32*(1+'Retirement Worksheet'!$B$15)) ->  | L33: =SUM('Retirement Calculations'!G33:I33)*'Retirement Worksheet'!$B$9 ->  | M33: =SUM(G33:I33)*'Retirement Worksheet'!$B$10 ->  | P33: =IF(ISERROR(A33),NA(),P32*(1+'Retirement Worksheet'!$B$15)) -> 
A34: =IF(A33<'Retirement Worksheet'!$B$5,A33+1,NA()) ->  | C34: =B34*'Retirement Worksheet'!$B$11 ->  | D34: =B34*'Retirement Worksheet'!$B$16 ->  | G34: =B34*'Retirement Worksheet'!$B$8 ->  | H34: =IF(ISERROR(A34),NA(),H33*(1+'Retirement Worksheet'!$B$15)) ->  | I34: =IF(ISERROR(A34),NA(),I33*(1+'Retirement Worksheet'!$B$15)) ->  | L34: =SUM('Retirement Calculations'!G34:I34)*'Retirement Worksheet'!$B$9 ->  | M34: =SUM(G34:I34)*'Retirement Worksheet'!$B$10 ->  | P34: =IF(ISERROR(A34),NA(),P33*(1+'Retirement Worksheet'!$B$15)) -> 
A35: =IF(A34<'Retirement Worksheet'!$B$5,A34+1,NA()) ->  | C35: =B35*'Retirement Worksheet'!$B$11 ->  | D35: =B35*'Retirement Worksheet'!$B$16 ->  | G35: =B35*'Retirement Worksheet'!$B$8 ->  | H35: =IF(ISERROR(A35),NA(),H34*(1+'Retirement Worksheet'!$B$15)) ->  | I35: =IF(ISERROR(A35),NA(),I34*(1+'Retirement Worksheet'!$B$15)) ->  | L35: =SUM('Retirement Calculations'!G35:I35)*'Retirement Worksheet'!$B$9 ->  | M35: =SUM(G35:I35)*'Retirement Worksheet'!$B$10 ->  | P35: =IF(ISERROR(A35),NA(),P34*(1+'Retirement Worksheet'!$B$15)) -> 
A36: =IF(A35<'Retirement Worksheet'!$B$5,A35+1,NA()) ->  | C36: =B36*'Retirement Worksheet'!$B$11 ->  | D36: =B36*'Retirement Worksheet'!$B$16 ->  | G36: =B36*'Retirement Worksheet'!$B$8 ->  | H36: =IF(ISERROR(A36),NA(),H35*(1+'Retirement Worksheet'!$B$15)) ->  | I36: =IF(ISERROR(A36),NA(),I35*(1+'Retirement Worksheet'!$B$15)) ->  | L36: =SUM('Retirement Calculations'!G36:I36)*'Retirement Worksheet'!$B$9 ->  | M36: =SUM(G36:I36)*'Retirement Worksheet'!$B$10 ->  | P36: =IF(ISERROR(A36),NA(),P35*(1+'Retirement Worksheet'!$B$15)) -> 
A37: =IF(A36<'Retirement Worksheet'!$B$5,A36+1,NA()) ->  | C37: =B37*'Retirement Worksheet'!$B$11 ->  | D37: =B37*'Retirement Worksheet'!$B$16 ->  | G37: =B37*'Retirement Worksheet'!$B$8 ->  | H37: =IF(ISERROR(A37),NA(),H36*(1+'Retirement Worksheet'!$B$15)) ->  | I37: =IF(ISERROR(A37),NA(),I36*(1+'Retirement Worksheet'!$B$15)) ->  | L37: =SUM('Retirement Calculations'!G37:I37)*'Retirement Worksheet'!$B$9 ->  | M37: =SUM(G37:I37)*'Retirement Worksheet'!$B$10 ->  | P37: =IF(ISERROR(A37),NA(),P36*(1+'Retirement Worksheet'!$B$15)) -> 
A38: =IF(A37<'Retirement Worksheet'!$B$5,A37+1,NA()) ->  | C38: =B38*'Retirement Worksheet'!$B$11 ->  | D38: =B38*'Retirement Worksheet'!$B$16 ->  | G38: =B38*'Retirement Worksheet'!$B$8 ->  | H38: =IF(ISERROR(A38),NA(),H37*(1+'Retirement Worksheet'!$B$15)) ->  | I38: =IF(ISERROR(A38),NA(),I37*(1+'Retirement Worksheet'!$B$15)) ->  | L38: =SUM('Retirement Calculations'!G38:I38)*'Retirement Worksheet'!$B$9 ->  | M38: =SUM(G38:I38)*'Retirement Worksheet'!$B$10 ->  | P38: =IF(ISERROR(A38),NA(),P37*(1+'Retirement Worksheet'!$B$15)) -> 
A39: =IF(A38<'Retirement Worksheet'!$B$5,A38+1,NA()) ->  | C39: =B39*'Retirement Worksheet'!$B$11 ->  | D39: =B39*'Retirement Worksheet'!$B$16 ->  | G39: =B39*'Retirement Worksheet'!$B$8 ->  | H39: =IF(ISERROR(A39),NA(),H38*(1+'Retirement Worksheet'!$B$15)) ->  | I39: =IF(ISERROR(A39),NA(),I38*(1+'Retirement Worksheet'!$B$15)) ->  | L39: =SUM('Retirement Calculations'!G39:I39)*'Retirement Worksheet'!$B$9 ->  | M39: =SUM(G39:I39)*'Retirement Worksheet'!$B$10 ->  | P39: =IF(ISERROR(A39),NA(),P38*(1+'Retirement Worksheet'!$B$15)) -> 
A40: =IF(A39<'Retirement Worksheet'!$B$5,A39+1,NA()) ->  | C40: =B40*'Retirement Worksheet'!$B$11 ->  | D40: =B40*'Retirement Worksheet'!$B$16 ->  | G40: =B40*'Retirement Worksheet'!$B$8 ->  | H40: =IF(ISERROR(A40),NA(),H39*(1+'Retirement Worksheet'!$B$15)) ->  | I40: =IF(ISERROR(A40),NA(),I39*(1+'Retirement Worksheet'!$B$15)) ->  | L40: =SUM('Retirement Calculations'!G40:I40)*'Retirement Worksheet'!$B$9 ->  | M40: =SUM(G40:I40)*'Retirement Worksheet'!$B$10 ->  | P40: =IF(ISERROR(A40),NA(),P39*(1+'Retirement Worksheet'!$B$15)) -> 
A41: =IF(A40<'Retirement Worksheet'!$B$5,A40+1,NA()) ->  | C41: =B41*'Retirement Worksheet'!$B$11 ->  | D41: =B41*'Retirement Worksheet'!$B$16 ->  | G41: =B41*'Retirement Worksheet'!$B$8 ->  | H41: =IF(ISERROR(A41),NA(),H40*(1+'Retirement Worksheet'!$B$15)) ->  | I41: =IF(ISERROR(A41),NA(),I40*(1+'Retirement Worksheet'!$B$15)) ->  | L41: =SUM('Retirement Calculations'!G41:I41)*'Retirement Worksheet'!$B$9 ->  | M41: =SUM(G41:I41)*'Retirement Worksheet'!$B$10 ->  | P41: =IF(ISERROR(A41),NA(),P40*(1+'Retirement Worksheet'!$B$15)) -> 
A42: =IF(A41<'Retirement Worksheet'!$B$5,A41+1,NA()) ->  | C42: =B42*'Retirement Worksheet'!$B$11 ->  | D42: =B42*'Retirement Worksheet'!$B$16 ->  | G42: =B42*'Retirement Worksheet'!$B$8 ->  | H42: =IF(ISERROR(A42),NA(),H41*(1+'Retirement Worksheet'!$B$15)) ->  | I42: =IF(ISERROR(A42),NA(),I41*(1+'Retirement Worksheet'!$B$15)) ->  | L42: =SUM('Retirement Calculations'!G42:I42)*'Retirement Worksheet'!$B$9 ->  | M42: =SUM(G42:I42)*'Retirement Worksheet'!$B$10 ->  | P42: =IF(ISERROR(A42),NA(),P41*(1+'Retirement Worksheet'!$B$15)) -> 
A43: =IF(A42<'Retirement Worksheet'!$B$5,A42+1,NA()) ->  | C43: =B43*'Retirement Worksheet'!$B$11 ->  | D43: =B43*'Retirement Worksheet'!$B$16 ->  | G43: =B43*'Retirement Worksheet'!$B$8 ->  | H43: =IF(ISERROR(A43),NA(),H42*(1+'Retirement Worksheet'!$B$15)) ->  | I43: =IF(ISERROR(A43),NA(),I42*(1+'Retirement Worksheet'!$B$15)) ->  | L43: =SUM('Retirement Calculations'!G43:I43)*'Retirement Worksheet'!$B$9 ->  | M43: =SUM(G43:I43)*'Retirement Worksheet'!$B$10 ->  | P43: =IF(ISERROR(A43),NA(),P42*(1+'Retirement Worksheet'!$B$15)) -> 
A44: =IF(A43<'Retirement Worksheet'!$B$5,A43+1,NA()) ->  | C44: =B44*'Retirement Worksheet'!$B$11 ->  | D44: =B44*'Retirement Worksheet'!$B$16 ->  | G44: =B44*'Retirement Worksheet'!$B$8 ->  | H44: =IF(ISERROR(A44),NA(),H43*(1+'Retirement Worksheet'!$B$15)) ->  | I44: =IF(ISERROR(A44),NA(),I43*(1+'Retirement Worksheet'!$B$15)) ->  | L44: =SUM('Retirement Calculations'!G44:I44)*'Retirement Worksheet'!$B$9 ->  | M44: =SUM(G44:I44)*'Retirement Worksheet'!$B$10 ->  | P44: =IF(ISERROR(A44),NA(),P43*(1+'Retirement Worksheet'!$B$15)) -> 
A45: =IF(A44<'Retirement Worksheet'!$B$5,A44+1,NA()) ->  | C45: =B45*'Retirement Worksheet'!$B$11 ->  | D45: =B45*'Retirement Worksheet'!$B$16 ->  | G45: =B45*'Retirement Worksheet'!$B$8 ->  | H45: =IF(ISERROR(A45),NA(),H44*(1+'Retirement Worksheet'!$B$15)) ->  | I45: =IF(ISERROR(A45),NA(),I44*(1+'Retirement Worksheet'!$B$15)) ->  | L45: =SUM('Retirement Calculations'!G45:I45)*'Retirement Worksheet'!$B$9 ->  | M45: =SUM(G45:I45)*'Retirement Worksheet'!$B$10 ->  | P45: =IF(ISERROR(A45),NA(),P44*(1+'Retirement Worksheet'!$B$15)) -> 
A46: =IF(A45<'Retirement Worksheet'!$B$5,A45+1,NA()) ->  | C46: =B46*'Retirement Worksheet'!$B$11 ->  | D46: =B46*'Retirement Worksheet'!$B$16 ->  | G46: =B46*'Retirement Worksheet'!$B$8 ->  | H46: =IF(ISERROR(A46),NA(),H45*(1+'Retirement Worksheet'!$B$15)) ->  | I46: =IF(ISERROR(A46),NA(),I45*(1+'Retirement Worksheet'!$B$15)) ->  | L46: =SUM('Retirement Calculations'!G46:I46)*'Retirement Worksheet'!$B$9 ->  | M46: =SUM(G46:I46)*'Retirement Worksheet'!$B$10 ->  | P46: =IF(ISERROR(A46),NA(),P45*(1+'Retirement Worksheet'!$B$15)) -> 
A47: =IF(A46<'Retirement Worksheet'!$B$5,A46+1,NA()) ->  | C47: =B47*'Retirement Worksheet'!$B$11 ->  | D47: =B47*'Retirement Worksheet'!$B$16 ->  | G47: =B47*'Retirement Worksheet'!$B$8 ->  | H47: =IF(ISERROR(A47),NA(),H46*(1+'Retirement Worksheet'!$B$15)) ->  | I47: =IF(ISERROR(A47),NA(),I46*(1+'Retirement Worksheet'!$B$15)) ->  | L47: =SUM('Retirement Calculations'!G47:I47)*'Retirement Worksheet'!$B$9 ->  | M47: =SUM(G47:I47)*'Retirement Worksheet'!$B$10 ->  | P47: =IF(ISERROR(A47),NA(),P46*(1+'Retirement Worksheet'!$B$15)) -> 
A48: =IF(A47<'Retirement Worksheet'!$B$5,A47+1,NA()) ->  | C48: =B48*'Retirement Worksheet'!$B$11 ->  | D48: =B48*'Retirement Worksheet'!$B$16 ->  | G48: =B48*'Retirement Worksheet'!$B$8 ->  | H48: =IF(ISERROR(A48),NA(),H47*(1+'Retirement Worksheet'!$B$15)) ->  | I48: =IF(ISERROR(A48),NA(),I47*(1+'Retirement Worksheet'!$B$15)) ->  | L48: =SUM('Retirement Calculations'!G48:I48)*'Retirement Worksheet'!$B$9 ->  | M48: =SUM(G48:I48)*'Retirement Worksheet'!$B$10 ->  | P48: =IF(ISERROR(A48),NA(),P47*(1+'Retirement Worksheet'!$B$15)) -> 
A49: =IF(A48<'Retirement Worksheet'!$B$5,A48+1,NA()) ->  | C49: =B49*'Retirement Worksheet'!$B$11 ->  | D49: =B49*'Retirement Worksheet'!$B$16 ->  | G49: =B49*'Retirement Worksheet'!$B$8 ->  | H49: =IF(ISERROR(A49),NA(),H48*(1+'Retirement Worksheet'!$B$15)) ->  | I49: =IF(ISERROR(A49),NA(),I48*(1+'Retirement Worksheet'!$B$15)) ->  | L49: =SUM('Retirement Calculations'!G49:I49)*'Retirement Worksheet'!$B$9 ->  | M49: =SUM(G49:I49)*'Retirement Worksheet'!$B$10 ->  | P49: =IF(ISERROR(A49),NA(),P48*(1+'Retirement Worksheet'!$B$15)) -> 
A50: =IF(A49<'Retirement Worksheet'!$B$5,A49+1,NA()) ->  | C50: =B50*'Retirement Worksheet'!$B$11 ->  | D50: =B50*'Retirement Worksheet'!$B$16 ->  | G50: =B50*'Retirement Worksheet'!$B$8 ->  | H50: =IF(ISERROR(A50),NA(),H49*(1+'Retirement Worksheet'!$B$15)) ->  | I50: =IF(ISERROR(A50),NA(),I49*(1+'Retirement Worksheet'!$B$15)) ->  | L50: =SUM('Retirement Calculations'!G50:I50)*'Retirement Worksheet'!$B$9 ->  | M50: =SUM(G50:I50)*'Retirement Worksheet'!$B$10 ->  | P50: =IF(ISERROR(A50),NA(),P49*(1+'Retirement Worksheet'!$B$15)) -> 
A51: =IF(A50<'Retirement Worksheet'!$B$5,A50+1,NA()) ->  | C51: =B51*'Retirement Worksheet'!$B$11 ->  | D51: =B51*'Retirement Worksheet'!$B$16 ->  | G51: =B51*'Retirement Worksheet'!$B$8 ->  | H51: =IF(ISERROR(A51),NA(),H50*(1+'Retirement Worksheet'!$B$15)) ->  | I51: =IF(ISERROR(A51),NA(),I50*(1+'Retirement Worksheet'!$B$15)) ->  | L51: =SUM('Retirement Calculations'!G51:I51)*'Retirement Worksheet'!$B$9 ->  | M51: =SUM(G51:I51)*'Retirement Worksheet'!$B$10 ->  | P51: =IF(ISERROR(A51),NA(),P50*(1+'Retirement Worksheet'!$B$15)) -> 
A52: =IF(A51<'Retirement Worksheet'!$B$5,A51+1,NA()) ->  | C52: =B52*'Retirement Worksheet'!$B$11 ->  | D52: =B52*'Retirement Worksheet'!$B$16 ->  | G52: =B52*'Retirement Worksheet'!$B$8 ->  | H52: =IF(ISERROR(A52),NA(),H51*(1+'Retirement Worksheet'!$B$15)) ->  | I52: =IF(ISERROR(A52),NA(),I51*(1+'Retirement Worksheet'!$B$15)) ->  | L52: =SUM('Retirement Calculations'!G52:I52)*'Retirement Worksheet'!$B$9 ->  | M52: =SUM(G52:I52)*'Retirement Worksheet'!$B$10 ->  | P52: =IF(ISERROR(A52),NA(),P51*(1+'Retirement Worksheet'!$B$15)) -> 
A53: =IF(A52<'Retirement Worksheet'!$B$5,A52+1,NA()) ->  | C53: =B53*'Retirement Worksheet'!$B$11 ->  | D53: =B53*'Retirement Worksheet'!$B$16 ->  | G53: =B53*'Retirement Worksheet'!$B$8 ->  | H53: =IF(ISERROR(A53),NA(),H52*(1+'Retirement Worksheet'!$B$15)) ->  | I53: =IF(ISERROR(A53),NA(),I52*(1+'Retirement Worksheet'!$B$15)) ->  | L53: =SUM('Retirement Calculations'!G53:I53)*'Retirement Worksheet'!$B$9 ->  | M53: =SUM(G53:I53)*'Retirement Worksheet'!$B$10 ->  | P53: =IF(ISERROR(A53),NA(),P52*(1+'Retirement Worksheet'!$B$15)) -> 
A54: =IF(A53<'Retirement Worksheet'!$B$5,A53+1,NA()) ->  | C54: =B54*'Retirement Worksheet'!$B$11 ->  | D54: =B54*'Retirement Worksheet'!$B$16 ->  | G54: =B54*'Retirement Worksheet'!$B$8 ->  | H54: =IF(ISERROR(A54),NA(),H53*(1+'Retirement Worksheet'!$B$15)) ->  | I54: =IF(ISERROR(A54),NA(),I53*(1+'Retirement Worksheet'!$B$15)) ->  | L54: =SUM('Retirement Calculations'!G54:I54)*'Retirement Worksheet'!$B$9 ->  | M54: =SUM(G54:I54)*'Retirement Worksheet'!$B$10 ->  | P54: =IF(ISERROR(A54),NA(),P53*(1+'Retirement Worksheet'!$B$15)) -> 
A55: =IF(A54<'Retirement Worksheet'!$B$5,A54+1,NA()) ->  | C55: =B55*'Retirement Worksheet'!$B$11 ->  | D55: =B55*'Retirement Worksheet'!$B$16 ->  | G55: =B55*'Retirement Worksheet'!$B$8 ->  | H55: =IF(ISERROR(A55),NA(),H54*(1+'Retirement Worksheet'!$B$15)) ->  | I55: =IF(ISERROR(A55),NA(),I54*(1+'Retirement Worksheet'!$B$15)) ->  | L55: =SUM('Retirement Calculations'!G55:I55)*'Retirement Worksheet'!$B$9 ->  | M55: =SUM(G55:I55)*'Retirement Worksheet'!$B$10 ->  | P55: =IF(ISERROR(A55),NA(),P54*(1+'Retirement Worksheet'!$B$15)) -> 
A56: =IF(A55<'Retirement Worksheet'!$B$5,A55+1,NA()) ->  | C56: =B56*'Retirement Worksheet'!$B$11 ->  | D56: =B56*'Retirement Worksheet'!$B$16 ->  | G56: =B56*'Retirement Worksheet'!$B$8 ->  | H56: =IF(ISERROR(A56),NA(),H55*(1+'Retirement Worksheet'!$B$15)) ->  | I56: =IF(ISERROR(A56),NA(),I55*(1+'Retirement Worksheet'!$B$15)) ->  | L56: =SUM('Retirement Calculations'!G56:I56)*'Retirement Worksheet'!$B$9 ->  | M56: =SUM(G56:I56)*'Retirement Worksheet'!$B$10 ->  | P56: =IF(ISERROR(A56),NA(),P55*(1+'Retirement Worksheet'!$B$15)) -> 
A57: =IF(A56<'Retirement Worksheet'!$B$5,A56+1,NA()) ->  | C57: =B57*'Retirement Worksheet'!$B$11 ->  | D57: =B57*'Retirement Worksheet'!$B$16 ->  | G57: =B57*'Retirement Worksheet'!$B$8 ->  | H57: =IF(ISERROR(A57),NA(),H56*(1+'Retirement Worksheet'!$B$15)) ->  | I57: =IF(ISERROR(A57),NA(),I56*(1+'Retirement Worksheet'!$B$15)) ->  | L57: =SUM('Retirement Calculations'!G57:I57)*'Retirement Worksheet'!$B$9 ->  | M57: =SUM(G57:I57)*'Retirement Worksheet'!$B$10 ->  | P57: =IF(ISERROR(A57),NA(),P56*(1+'Retirement Worksheet'!$B$15)) -> 
A58: =IF(A57<'Retirement Worksheet'!$B$5,A57+1,NA()) ->  | C58: =B58*'Retirement Worksheet'!$B$11 ->  | D58: =B58*'Retirement Worksheet'!$B$16 ->  | G58: =B58*'Retirement Worksheet'!$B$8 ->  | H58: =IF(ISERROR(A58),NA(),H57*(1+'Retirement Worksheet'!$B$15)) ->  | I58: =IF(ISERROR(A58),NA(),I57*(1+'Retirement Worksheet'!$B$15)) ->  | L58: =SUM('Retirement Calculations'!G58:I58)*'Retirement Worksheet'!$B$9 ->  | M58: =SUM(G58:I58)*'Retirement Worksheet'!$B$10 ->  | P58: =IF(ISERROR(A58),NA(),P57*(1+'Retirement Worksheet'!$B$15)) -> 
A59: =IF(A58<'Retirement Worksheet'!$B$5,A58+1,NA()) ->  | C59: =B59*'Retirement Worksheet'!$B$11 ->  | D59: =B59*'Retirement Worksheet'!$B$16 ->  | G59: =B59*'Retirement Worksheet'!$B$8 ->  | H59: =IF(ISERROR(A59),NA(),H58*(1+'Retirement Worksheet'!$B$15)) ->  | I59: =IF(ISERROR(A59),NA(),I58*(1+'Retirement Worksheet'!$B$15)) ->  | L59: =SUM('Retirement Calculations'!G59:I59)*'Retirement Worksheet'!$B$9 ->  | M59: =SUM(G59:I59)*'Retirement Worksheet'!$B$10 ->  | P59: =IF(ISERROR(A59),NA(),P58*(1+'Retirement Worksheet'!$B$15)) -> 
A60: =IF(A59<'Retirement Worksheet'!$B$5,A59+1,NA()) ->  | C60: =B60*'Retirement Worksheet'!$B$11 ->  | D60: =B60*'Retirement Worksheet'!$B$16 ->  | G60: =B60*'Retirement Worksheet'!$B$8 ->  | H60: =IF(ISERROR(A60),NA(),H59*(1+'Retirement Worksheet'!$B$15)) ->  | I60: =IF(ISERROR(A60),NA(),I59*(1+'Retirement Worksheet'!$B$15)) ->  | L60: =SUM('Retirement Calculations'!G60:I60)*'Retirement Worksheet'!$B$9 ->  | M60: =SUM(G60:I60)*'Retirement Worksheet'!$B$10 ->  | P60: =IF(ISERROR(A60),NA(),P59*(1+'Retirement Worksheet'!$B$15)) -> 
A61: =IF(A60<'Retirement Worksheet'!$B$5,A60+1,NA()) ->  | C61: =B61*'Retirement Worksheet'!$B$11 ->  | D61: =B61*'Retirement Worksheet'!$B$16 ->  | G61: =B61*'Retirement Worksheet'!$B$8 ->  | H61: =IF(ISERROR(A61),NA(),H60*(1+'Retirement Worksheet'!$B$15)) ->  | I61: =IF(ISERROR(A61),NA(),I60*(1+'Retirement Worksheet'!$B$15)) ->  | L61: =SUM('Retirement Calculations'!G61:I61)*'Retirement Worksheet'!$B$9 ->  | M61: =SUM(G61:I61)*'Retirement Worksheet'!$B$10 ->  | P61: =IF(ISERROR(A61),NA(),P60*(1+'Retirement Worksheet'!$B$15)) -> 
A62: =IF(A61<'Retirement Worksheet'!$B$5,A61+1,NA()) ->  | C62: =B62*'Retirement Worksheet'!$B$11 ->  | D62: =B62*'Retirement Worksheet'!$B$16 ->  | G62: =B62*'Retirement Worksheet'!$B$8 ->  | H62: =IF(ISERROR(A62),NA(),H61*(1+'Retirement Worksheet'!$B$15)) ->  | I62: =IF(ISERROR(A62),NA(),I61*(1+'Retirement Worksheet'!$B$15)) ->  | L62: =SUM('Retirement Calculations'!G62:I62)*'Retirement Worksheet'!$B$9 ->  | M62: =SUM(G62:I62)*'Retirement Worksheet'!$B$10 ->  | P62: =IF(ISERROR(A62),NA(),P61*(1+'Retirement Worksheet'!$B$15)) -> 
A63: =IF(A62<'Retirement Worksheet'!$B$5,A62+1,NA()) ->  | C63: =B63*'Retirement Worksheet'!$B$11 ->  | D63: =B63*'Retirement Worksheet'!$B$16 ->  | G63: =B63*'Retirement Worksheet'!$B$8 ->  | H63: =IF(ISERROR(A63),NA(),H62*(1+'Retirement Worksheet'!$B$15)) ->  | I63: =IF(ISERROR(A63),NA(),I62*(1+'Retirement Worksheet'!$B$15)) ->  | L63: =SUM('Retirement Calculations'!G63:I63)*'Retirement Worksheet'!$B$9 ->  | M63: =SUM(G63:I63)*'Retirement Worksheet'!$B$10 ->  | P63: =IF(ISERROR(A63),NA(),P62*(1+'Retirement Worksheet'!$B$15)) -> 
A64: =IF(A63<'Retirement Worksheet'!$B$5,A63+1,NA()) ->  | C64: =B64*'Retirement Worksheet'!$B$11 ->  | D64: =B64*'Retirement Worksheet'!$B$16 ->  | G64: =B64*'Retirement Worksheet'!$B$8 ->  | H64: =IF(ISERROR(A64),NA(),H63*(1+'Retirement Worksheet'!$B$15)) ->  | I64: =IF(ISERROR(A64),NA(),I63*(1+'Retirement Worksheet'!$B$15)) ->  | L64: =SUM('Retirement Calculations'!G64:I64)*'Retirement Worksheet'!$B$9 ->  | M64: =SUM(G64:I64)*'Retirement Worksheet'!$B$10 ->  | P64: =IF(ISERROR(A64),NA(),P63*(1+'Retirement Worksheet'!$B$15)) -> 
A65: =IF(A64<'Retirement Worksheet'!$B$5,A64+1,NA()) ->  | C65: =B65*'Retirement Worksheet'!$B$11 ->  | D65: =B65*'Retirement Worksheet'!$B$16 ->  | G65: =B65*'Retirement Worksheet'!$B$8 ->  | H65: =IF(ISERROR(A65),NA(),H64*(1+'Retirement Worksheet'!$B$15)) ->  | I65: =IF(ISERROR(A65),NA(),I64*(1+'Retirement Worksheet'!$B$15)) ->  | L65: =SUM('Retirement Calculations'!G65:I65)*'Retirement Worksheet'!$B$9 ->  | M65: =SUM(G65:I65)*'Retirement Worksheet'!$B$10 ->  | P65: =IF(ISERROR(A65),NA(),P64*(1+'Retirement Worksheet'!$B$15)) -> 
A66: =IF(A65<'Retirement Worksheet'!$B$5,A65+1,NA()) ->  | C66: =B66*'Retirement Worksheet'!$B$11 ->  | D66: =B66*'Retirement Worksheet'!$B$16 ->  | G66: =B66*'Retirement Worksheet'!$B$8 ->  | H66: =IF(ISERROR(A66),NA(),H65*(1+'Retirement Worksheet'!$B$15)) ->  | I66: =IF(ISERROR(A66),NA(),I65*(1+'Retirement Worksheet'!$B$15)) ->  | L66: =SUM('Retirement Calculations'!G66:I66)*'Retirement Worksheet'!$B$9 ->  | M66: =SUM(G66:I66)*'Retirement Worksheet'!$B$10 ->  | P66: =IF(ISERROR(A66),NA(),P65*(1+'Retirement Worksheet'!$B$15)) -> 
A67: =IF(A66<'Retirement Worksheet'!$B$5,A66+1,NA()) ->  | C67: =B67*'Retirement Worksheet'!$B$11 ->  | D67: =B67*'Retirement Worksheet'!$B$16 ->  | G67: =B67*'Retirement Worksheet'!$B$8 ->  | H67: =IF(ISERROR(A67),NA(),H66*(1+'Retirement Worksheet'!$B$15)) ->  | I67: =IF(ISERROR(A67),NA(),I66*(1+'Retirement Worksheet'!$B$15)) ->  | L67: =SUM('Retirement Calculations'!G67:I67)*'Retirement Worksheet'!$B$9 ->  | M67: =SUM(G67:I67)*'Retirement Worksheet'!$B$10 ->  | P67: =IF(ISERROR(A67),NA(),P66*(1+'Retirement Worksheet'!$B$15)) -> 
A68: =IF(A67<'Retirement Worksheet'!$B$5,A67+1,NA()) ->  | C68: =B68*'Retirement Worksheet'!$B$11 ->  | D68: =B68*'Retirement Worksheet'!$B$16 ->  | G68: =B68*'Retirement Worksheet'!$B$8 ->  | H68: =IF(ISERROR(A68),NA(),H67*(1+'Retirement Worksheet'!$B$15)) ->  | I68: =IF(ISERROR(A68),NA(),I67*(1+'Retirement Worksheet'!$B$15)) ->  | J68: =SUM(G68:I68) ->  | L68: =SUM('Retirement Calculations'!G68:I68)*'Retirement Worksheet'!$B$9 ->  | M68: =SUM(G68:I68)*'Retirement Worksheet'!$B$10 ->  | P68: =IF(ISERROR(A68),NA(),P67*(1+'Retirement Worksheet'!$B$15)) -> 
A69: =IF(A68<'Retirement Worksheet'!$B$5,A68+1,NA()) ->  | B69: =IF(ISERROR(A69),NA(),E68+Q68) ->  | C69: =B69*'Retirement Worksheet'!$B$11 ->  | D69: =B69*'Retirement Worksheet'!$B$16 ->  | G69: =B69*'Retirement Worksheet'!$B$8 ->  | H69: =IF(ISERROR(A69),NA(),H68*(1+'Retirement Worksheet'!$B$15)) ->  | I69: =IF(ISERROR(A69),NA(),I68*(1+'Retirement Worksheet'!$B$15)) ->  | L69: =SUM('Retirement Calculations'!G69:I69)*'Retirement Worksheet'!$B$9 ->  | M69: =SUM(G69:I69)*'Retirement Worksheet'!$B$10 ->  | P69: =IF(ISERROR(A69),NA(),P68*(1+'Retirement Worksheet'!$B$15)) -> 
A70: =IF(A69<'Retirement Worksheet'!$B$5,A69+1,NA()) ->  | C70: =B70*'Retirement Worksheet'!$B$11 ->  | D70: =B70*'Retirement Worksheet'!$B$16 ->  | G70: =B70*'Retirement Worksheet'!$B$8 ->  | H70: =IF(ISERROR(A70),NA(),H69*(1+'Retirement Worksheet'!$B$15)) ->  | I70: =IF(ISERROR(A70),NA(),I69*(1+'Retirement Worksheet'!$B$15)) ->  | L70: =SUM('Retirement Calculations'!G70:I70)*'Retirement Worksheet'!$B$9 ->  | M70: =SUM(G70:I70)*'Retirement Worksheet'!$B$10 ->  | P70: =IF(ISERROR(A70),NA(),P69*(1+'Retirement Worksheet'!$B$15)) -> 
A71: =IF(A70<'Retirement Worksheet'!$B$5,A70+1,NA()) ->  | C71: =B71*'Retirement Worksheet'!$B$11 ->  | D71: =B71*'Retirement Worksheet'!$B$16 ->  | E71: =B71-C71+D71 ->  | G71: =B71*'Retirement Worksheet'!$B$8 ->  | H71: =IF(ISERROR(A71),NA(),H70*(1+'Retirement Worksheet'!$B$15)) ->  | I71: =IF(ISERROR(A71),NA(),I70*(1+'Retirement Worksheet'!$B$15)) ->  | L71: =SUM('Retirement Calculations'!G71:I71)*'Retirement Worksheet'!$B$9 ->  | M71: =SUM(G71:I71)*'Retirement Worksheet'!$B$10 ->  | O71: =SUM(G71:I71)-SUM(L71:M71) ->  | P71: =IF(ISERROR(A71),NA(),P70*(1+'Retirement Worksheet'!$B$15)) ->  | Q71: =O71-P71 -> 
A72: =IF(A71<'Retirement Worksheet'!$B$5,A71+1,NA()) ->  | C72: =B72*'Retirement Worksheet'!$B$11 ->  | D72: =B72*'Retirement Worksheet'!$B$16 ->  | G72: =B72*'Retirement Worksheet'!$B$8 ->  | H72: =IF(ISERROR(A72),NA(),H71*(1+'Retirement Worksheet'!$B$15)) ->  | I72: =IF(ISERROR(A72),NA(),I71*(1+'Retirement Worksheet'!$B$15)) ->  | L72: =SUM('Retirement Calculations'!G72:I72)*'Retirement Worksheet'!$B$9 ->  | M72: =SUM(G72:I72)*'Retirement Worksheet'!$B$10 ->  | P72: =IF(ISERROR(A72),NA(),P71*(1+'Retirement Worksheet'!$B$15)) -> 
A73: =IF(A72<'Retirement Worksheet'!$B$5,A72+1,NA()) ->  | C73: =B73*'Retirement Worksheet'!$B$11 ->  | D73: =B73*'Retirement Worksheet'!$B$16 ->  | G73: =B73*'Retirement Worksheet'!$B$8 ->  | H73: =IF(ISERROR(A73),NA(),H72*(1+'Retirement Worksheet'!$B$15)) ->  | I73: =IF(ISERROR(A73),NA(),I72*(1+'Retirement Worksheet'!$B$15)) ->  | L73: =SUM('Retirement Calculations'!G73:I73)*'Retirement Worksheet'!$B$9 ->  | M73: =SUM(G73:I73)*'Retirement Worksheet'!$B$10 ->  | P73: =IF(ISERROR(A73),NA(),P72*(1+'Retirement Worksheet'!$B$15)) -> 
A74: =IF(A73<'Retirement Worksheet'!$B$5,A73+1,NA()) ->  | C74: =B74*'Retirement Worksheet'!$B$11 ->  | D74: =B74*'Retirement Worksheet'!$B$16 ->  | G74: =B74*'Retirement Worksheet'!$B$8 ->  | H74: =IF(ISERROR(A74),NA(),H73*(1+'Retirement Worksheet'!$B$15)) ->  | I74: =IF(ISERROR(A74),NA(),I73*(1+'Retirement Worksheet'!$B$15)) ->  | L74: =SUM('Retirement Calculations'!G74:I74)*'Retirement Worksheet'!$B$9 ->  | M74: =SUM(G74:I74)*'Retirement Worksheet'!$B$10 ->  | P74: =IF(ISERROR(A74),NA(),P73*(1+'Retirement Worksheet'!$B$15)) -> 
A75: =IF(A74<'Retirement Worksheet'!$B$5,A74+1,NA()) ->  | C75: =B75*'Retirement Worksheet'!$B$11 ->  | D75: =B75*'Retirement Worksheet'!$B$16 ->  | G75: =B75*'Retirement Worksheet'!$B$8 ->  | H75: =IF(ISERROR(A75),NA(),H74*(1+'Retirement Worksheet'!$B$15)) ->  | I75: =IF(ISERROR(A75),NA(),I74*(1+'Retirement Worksheet'!$B$15)) ->  | L75: =SUM('Retirement Calculations'!G75:I75)*'Retirement Worksheet'!$B$9 ->  | M75: =SUM(G75:I75)*'Retirement Worksheet'!$B$10 ->  | P75: =IF(ISERROR(A75),NA(),P74*(1+'Retirement Worksheet'!$B$15)) -> 
A76: =IF(A75<'Retirement Worksheet'!$B$5,A75+1,NA()) ->  | C76: =B76*'Retirement Worksheet'!$B$11 ->  | D76: =B76*'Retirement Worksheet'!$B$16 ->  | G76: =B76*'Retirement Worksheet'!$B$8 ->  | H76: =IF(ISERROR(A76),NA(),H75*(1+'Retirement Worksheet'!$B$15)) ->  | I76: =IF(ISERROR(A76),NA(),I75*(1+'Retirement Worksheet'!$B$15)) ->  | L76: =SUM('Retirement Calculations'!G76:I76)*'Retirement Worksheet'!$B$9 ->  | M76: =SUM(G76:I76)*'Retirement Worksheet'!$B$10 ->  | P76: =IF(ISERROR(A76),NA(),P75*(1+'Retirement Worksheet'!$B$15)) -> 
A77: =IF(A76<'Retirement Worksheet'!$B$5,A76+1,NA()) ->  | C77: =B77*'Retirement Worksheet'!$B$11 ->  | D77: =B77*'Retirement Worksheet'!$B$16 ->  | G77: =B77*'Retirement Worksheet'!$B$8 ->  | H77: =IF(ISERROR(A77),NA(),H76*(1+'Retirement Worksheet'!$B$15)) ->  | I77: =IF(ISERROR(A77),NA(),I76*(1+'Retirement Worksheet'!$B$15)) ->  | L77: =SUM('Retirement Calculations'!G77:I77)*'Retirement Worksheet'!$B$9 ->  | M77: =SUM(G77:I77)*'Retirement Worksheet'!$B$10 ->  | P77: =IF(ISERROR(A77),NA(),P76*(1+'Retirement Worksheet'!$B$15)) -> 
A78: =IF(A77<'Retirement Worksheet'!$B$5,A77+1,NA()) ->  | C78: =B78*'Retirement Worksheet'!$B$11 ->  | D78: =B78*'Retirement Worksheet'!$B$16 ->  | G78: =B78*'Retirement Worksheet'!$B$8 ->  | H78: =IF(ISERROR(A78),NA(),H77*(1+'Retirement Worksheet'!$B$15)) ->  | I78: =IF(ISERROR(A78),NA(),I77*(1+'Retirement Worksheet'!$B$15)) ->  | L78: =SUM('Retirement Calculations'!G78:I78)*'Retirement Worksheet'!$B$9 ->  | M78: =SUM(G78:I78)*'Retirement Worksheet'!$B$10 ->  | P78: =IF(ISERROR(A78),NA(),P77*(1+'Retirement Worksheet'!$B$15)) -> 
A79: =IF(A78<'Retirement Worksheet'!$B$5,A78+1,NA()) ->  | C79: =B79*'Retirement Worksheet'!$B$11 ->  | D79: =B79*'Retirement Worksheet'!$B$16 ->  | G79: =B79*'Retirement Worksheet'!$B$8 ->  | H79: =IF(ISERROR(A79),NA(),H78*(1+'Retirement Worksheet'!$B$15)) ->  | I79: =IF(ISERROR(A79),NA(),I78*(1+'Retirement Worksheet'!$B$15)) ->  | L79: =SUM('Retirement Calculations'!G79:I79)*'Retirement Worksheet'!$B$9 ->  | M79: =SUM(G79:I79)*'Retirement Worksheet'!$B$10 ->  | P79: =IF(ISERROR(A79),NA(),P78*(1+'Retirement Worksheet'!$B$15)) -> 
A80: =IF(A79<'Retirement Worksheet'!$B$5,A79+1,NA()) ->  | C80: =B80*'Retirement Worksheet'!$B$11 ->  | D80: =B80*'Retirement Worksheet'!$B$16 ->  | G80: =B80*'Retirement Worksheet'!$B$8 ->  | H80: =IF(ISERROR(A80),NA(),H79*(1+'Retirement Worksheet'!$B$15)) ->  | I80: =IF(ISERROR(A80),NA(),I79*(1+'Retirement Worksheet'!$B$15)) ->  | L80: =SUM('Retirement Calculations'!G80:I80)*'Retirement Worksheet'!$B$9 ->  | M80: =SUM(G80:I80)*'Retirement Worksheet'!$B$10 ->  | P80: =IF(ISERROR(A80),NA(),P79*(1+'Retirement Worksheet'!$B$15)) -> 
A81: =IF(A80<'Retirement Worksheet'!$B$5,A80+1,NA()) ->  | C81: =B81*'Retirement Worksheet'!$B$11 ->  | D81: =B81*'Retirement Worksheet'!$B$16 ->  | G81: =B81*'Retirement Worksheet'!$B$8 ->  | H81: =IF(ISERROR(A81),NA(),H80*(1+'Retirement Worksheet'!$B$15)) ->  | I81: =IF(ISERROR(A81),NA(),I80*(1+'Retirement Worksheet'!$B$15)) ->  | L81: =SUM('Retirement Calculations'!G81:I81)*'Retirement Worksheet'!$B$9 ->  | M81: =SUM(G81:I81)*'Retirement Worksheet'!$B$10 ->  | P81: =IF(ISERROR(A81),NA(),P80*(1+'Retirement Worksheet'!$B$15)) -> 
A82: =IF(A81<'Retirement Worksheet'!$B$5,A81+1,NA()) ->  | C82: =B82*'Retirement Worksheet'!$B$11 ->  | D82: =B82*'Retirement Worksheet'!$B$16 ->  | G82: =B82*'Retirement Worksheet'!$B$8 ->  | H82: =IF(ISERROR(A82),NA(),H81*(1+'Retirement Worksheet'!$B$15)) ->  | I82: =IF(ISERROR(A82),NA(),I81*(1+'Retirement Worksheet'!$B$15)) ->  | L82: =SUM('Retirement Calculations'!G82:I82)*'Retirement Worksheet'!$B$9 ->  | M82: =SUM(G82:I82)*'Retirement Worksheet'!$B$10 ->  | P82: =IF(ISERROR(A82),NA(),P81*(1+'Retirement Worksheet'!$B$15)) -> 
A83: =IF(A82<'Retirement Worksheet'!$B$5,A82+1,NA()) ->  | C83: =B83*'Retirement Worksheet'!$B$11 ->  | D83: =B83*'Retirement Worksheet'!$B$16 ->  | G83: =B83*'Retirement Worksheet'!$B$8 ->  | H83: =IF(ISERROR(A83),NA(),H82*(1+'Retirement Worksheet'!$B$15)) ->  | I83: =IF(ISERROR(A83),NA(),I82*(1+'Retirement Worksheet'!$B$15)) ->  | L83: =SUM('Retirement Calculations'!G83:I83)*'Retirement Worksheet'!$B$9 ->  | M83: =SUM(G83:I83)*'Retirement Worksheet'!$B$10 ->  | P83: =IF(ISERROR(A83),NA(),P82*(1+'Retirement Worksheet'!$B$15)) -> 
A84: =IF(A83<'Retirement Worksheet'!$B$5,A83+1,NA()) ->  | C84: =B84*'Retirement Worksheet'!$B$11 ->  | D84: =B84*'Retirement Worksheet'!$B$16 ->  | G84: =B84*'Retirement Worksheet'!$B$8 ->  | H84: =IF(ISERROR(A84),NA(),H83*(1+'Retirement Worksheet'!$B$15)) ->  | I84: =IF(ISERROR(A84),NA(),I83*(1+'Retirement Worksheet'!$B$15)) ->  | L84: =SUM('Retirement Calculations'!G84:I84)*'Retirement Worksheet'!$B$9 ->  | M84: =SUM(G84:I84)*'Retirement Worksheet'!$B$10 ->  | P84: =IF(ISERROR(A84),NA(),P83*(1+'Retirement Worksheet'!$B$15)) -> 
A85: =IF(A84<'Retirement Worksheet'!$B$5,A84+1,NA()) ->  | C85: =B85*'Retirement Worksheet'!$B$11 ->  | D85: =B85*'Retirement Worksheet'!$B$16 ->  | G85: =B85*'Retirement Worksheet'!$B$8 ->  | H85: =IF(ISERROR(A85),NA(),H84*(1+'Retirement Worksheet'!$B$15)) ->  | I85: =IF(ISERROR(A85),NA(),I84*(1+'Retirement Worksheet'!$B$15)) ->  | L85: =SUM('Retirement Calculations'!G85:I85)*'Retirement Worksheet'!$B$9 ->  | M85: =SUM(G85:I85)*'Retirement Worksheet'!$B$10 ->  | P85: =IF(ISERROR(A85),NA(),P84*(1+'Retirement Worksheet'!$B$15)) -> 
A86: =IF(A85<'Retirement Worksheet'!$B$5,A85+1,NA()) ->  | C86: =B86*'Retirement Worksheet'!$B$11 ->  | D86: =B86*'Retirement Worksheet'!$B$16 ->  | G86: =B86*'Retirement Worksheet'!$B$8 ->  | H86: =IF(ISERROR(A86),NA(),H85*(1+'Retirement Worksheet'!$B$15)) ->  | I86: =IF(ISERROR(A86),NA(),I85*(1+'Retirement Worksheet'!$B$15)) ->  | L86: =SUM('Retirement Calculations'!G86:I86)*'Retirement Worksheet'!$B$9 ->  | M86: =SUM(G86:I86)*'Retirement Worksheet'!$B$10 ->  | P86: =IF(ISERROR(A86),NA(),P85*(1+'Retirement Worksheet'!$B$15)) -> 
A87: =IF(A86<'Retirement Worksheet'!$B$5,A86+1,NA()) ->  | C87: =B87*'Retirement Worksheet'!$B$11 ->  | D87: =B87*'Retirement Worksheet'!$B$16 ->  | G87: =B87*'Retirement Worksheet'!$B$8 ->  | H87: =IF(ISERROR(A87),NA(),H86*(1+'Retirement Worksheet'!$B$15)) ->  | I87: =IF(ISERROR(A87),NA(),I86*(1+'Retirement Worksheet'!$B$15)) ->  | L87: =SUM('Retirement Calculations'!G87:I87)*'Retirement Worksheet'!$B$9 ->  | M87: =SUM(G87:I87)*'Retirement Worksheet'!$B$10 ->  | P87: =IF(ISERROR(A87),NA(),P86*(1+'Retirement Worksheet'!$B$15)) -> 
A88: =IF(A87<'Retirement Worksheet'!$B$5,A87+1,NA()) ->  | C88: =B88*'Retirement Worksheet'!$B$11 ->  | D88: =B88*'Retirement Worksheet'!$B$16 ->  | G88: =B88*'Retirement Worksheet'!$B$8 ->  | H88: =IF(ISERROR(A88),NA(),H87*(1+'Retirement Worksheet'!$B$15)) ->  | I88: =IF(ISERROR(A88),NA(),I87*(1+'Retirement Worksheet'!$B$15)) ->  | L88: =SUM('Retirement Calculations'!G88:I88)*'Retirement Worksheet'!$B$9 ->  | M88: =SUM(G88:I88)*'Retirement Worksheet'!$B$10 ->  | P88: =IF(ISERROR(A88),NA(),P87*(1+'Retirement Worksheet'!$B$15)) -> 
A89: =IF(A88<'Retirement Worksheet'!$B$5,A88+1,NA()) ->  | C89: =B89*'Retirement Worksheet'!$B$11 ->  | D89: =B89*'Retirement Worksheet'!$B$16 ->  | G89: =B89*'Retirement Worksheet'!$B$8 ->  | H89: =IF(ISERROR(A89),NA(),H88*(1+'Retirement Worksheet'!$B$15)) ->  | I89: =IF(ISERROR(A89),NA(),I88*(1+'Retirement Worksheet'!$B$15)) ->  | L89: =SUM('Retirement Calculations'!G89:I89)*'Retirement Worksheet'!$B$9 ->  | M89: =SUM(G89:I89)*'Retirement Worksheet'!$B$10 ->  | P89: =IF(ISERROR(A89),NA(),P88*(1+'Retirement Worksheet'!$B$15)) -> 
A90: =IF(A89<'Retirement Worksheet'!$B$5,A89+1,NA()) ->  | C90: =B90*'Retirement Worksheet'!$B$11 ->  | D90: =B90*'Retirement Worksheet'!$B$16 ->  | G90: =B90*'Retirement Worksheet'!$B$8 ->  | H90: =IF(ISERROR(A90),NA(),H89*(1+'Retirement Worksheet'!$B$15)) ->  | I90: =IF(ISERROR(A90),NA(),I89*(1+'Retirement Worksheet'!$B$15)) ->  | L90: =SUM('Retirement Calculations'!G90:I90)*'Retirement Worksheet'!$B$9 ->  | M90: =SUM(G90:I90)*'Retirement Worksheet'!$B$10 ->  | P90: =IF(ISERROR(A90),NA(),P89*(1+'Retirement Worksheet'!$B$15)) -> 
A91: =IF(A90<'Retirement Worksheet'!$B$5,A90+1,NA()) ->  | C91: =B91*'Retirement Worksheet'!$B$11 ->  | D91: =B91*'Retirement Worksheet'!$B$16 ->  | G91: =B91*'Retirement Worksheet'!$B$8 ->  | H91: =IF(ISERROR(A91),NA(),H90*(1+'Retirement Worksheet'!$B$15)) ->  | I91: =IF(ISERROR(A91),NA(),I90*(1+'Retirement Worksheet'!$B$15)) ->  | L91: =SUM('Retirement Calculations'!G91:I91)*'Retirement Worksheet'!$B$9 ->  | M91: =SUM(G91:I91)*'Retirement Worksheet'!$B$10 ->  | P91: =IF(ISERROR(A91),NA(),P90*(1+'Retirement Worksheet'!$B$15)) -> 
A92: =IF(A91<'Retirement Worksheet'!$B$5,A91+1,NA()) ->  | C92: =B92*'Retirement Worksheet'!$B$11 ->  | D92: =B92*'Retirement Worksheet'!$B$16 ->  | G92: =B92*'Retirement Worksheet'!$B$8 ->  | H92: =IF(ISERROR(A92),NA(),H91*(1+'Retirement Worksheet'!$B$15)) ->  | I92: =IF(ISERROR(A92),NA(),I91*(1+'Retirement Worksheet'!$B$15)) ->  | L92: =SUM('Retirement Calculations'!G92:I92)*'Retirement Worksheet'!$B$9 ->  | M92: =SUM(G92:I92)*'Retirement Worksheet'!$B$10 ->  | P92: =IF(ISERROR(A92),NA(),P91*(1+'Retirement Worksheet'!$B$15)) -> 
A93: =IF(A92<'Retirement Worksheet'!$B$5,A92+1,NA()) ->  | C93: =B93*'Retirement Worksheet'!$B$11 ->  | D93: =B93*'Retirement Worksheet'!$B$16 ->  | G93: =B93*'Retirement Worksheet'!$B$8 ->  | H93: =IF(ISERROR(A93),NA(),H92*(1+'Retirement Worksheet'!$B$15)) ->  | I93: =IF(ISERROR(A93),NA(),I92*(1+'Retirement Worksheet'!$B$15)) ->  | L93: =SUM('Retirement Calculations'!G93:I93)*'Retirement Worksheet'!$B$9 ->  | M93: =SUM(G93:I93)*'Retirement Worksheet'!$B$10 ->  | P93: =IF(ISERROR(A93),NA(),P92*(1+'Retirement Worksheet'!$B$15)) -> 
A94: =IF(A93<'Retirement Worksheet'!$B$5,A93+1,NA()) ->  | C94: =B94*'Retirement Worksheet'!$B$11 ->  | D94: =B94*'Retirement Worksheet'!$B$16 ->  | G94: =B94*'Retirement Worksheet'!$B$8 ->  | H94: =IF(ISERROR(A94),NA(),H93*(1+'Retirement Worksheet'!$B$15)) ->  | I94: =IF(ISERROR(A94),NA(),I93*(1+'Retirement Worksheet'!$B$15)) ->  | L94: =SUM('Retirement Calculations'!G94:I94)*'Retirement Worksheet'!$B$9 ->  | M94: =SUM(G94:I94)*'Retirement Worksheet'!$B$10 ->  | P94: =IF(ISERROR(A94),NA(),P93*(1+'Retirement Worksheet'!$B$15)) -> 
A95: =IF(A94<'Retirement Worksheet'!$B$5,A94+1,NA()) ->  | C95: =B95*'Retirement Worksheet'!$B$11 ->  | D95: =B95*'Retirement Worksheet'!$B$16 ->  | G95: =B95*'Retirement Worksheet'!$B$8 ->  | H95: =IF(ISERROR(A95),NA(),H94*(1+'Retirement Worksheet'!$B$15)) ->  | I95: =IF(ISERROR(A95),NA(),I94*(1+'Retirement Worksheet'!$B$15)) ->  | L95: =SUM('Retirement Calculations'!G95:I95)*'Retirement Worksheet'!$B$9 ->  | M95: =SUM(G95:I95)*'Retirement Worksheet'!$B$10 ->  | P95: =IF(ISERROR(A95),NA(),P94*(1+'Retirement Worksheet'!$B$15)) -> 
A96: =IF(A95<'Retirement Worksheet'!$B$5,A95+1,NA()) ->  | C96: =B96*'Retirement Worksheet'!$B$11 ->  | D96: =B96*'Retirement Worksheet'!$B$16 ->  | G96: =B96*'Retirement Worksheet'!$B$8 ->  | H96: =IF(ISERROR(A96),NA(),H95*(1+'Retirement Worksheet'!$B$15)) ->  | I96: =IF(ISERROR(A96),NA(),I95*(1+'Retirement Worksheet'!$B$15)) ->  | L96: =SUM('Retirement Calculations'!G96:I96)*'Retirement Worksheet'!$B$9 ->  | M96: =SUM(G96:I96)*'Retirement Worksheet'!$B$10 ->  | P96: =IF(ISERROR(A96),NA(),P95*(1+'Retirement Worksheet'!$B$15)) -> 
A97: =IF(A96<'Retirement Worksheet'!$B$5,A96+1,NA()) ->  | C97: =B97*'Retirement Worksheet'!$B$11 ->  | D97: =B97*'Retirement Worksheet'!$B$16 ->  | G97: =B97*'Retirement Worksheet'!$B$8 ->  | H97: =IF(ISERROR(A97),NA(),H96*(1+'Retirement Worksheet'!$B$15)) ->  | I97: =IF(ISERROR(A97),NA(),I96*(1+'Retirement Worksheet'!$B$15)) ->  | L97: =SUM('Retirement Calculations'!G97:I97)*'Retirement Worksheet'!$B$9 ->  | M97: =SUM(G97:I97)*'Retirement Worksheet'!$B$10 ->  | P97: =IF(ISERROR(A97),NA(),P96*(1+'Retirement Worksheet'!$B$15)) -> 
A98: =IF(A97<'Retirement Worksheet'!$B$5,A97+1,NA()) ->  | C98: =B98*'Retirement Worksheet'!$B$11 ->  | D98: =B98*'Retirement Worksheet'!$B$16 ->  | G98: =B98*'Retirement Worksheet'!$B$8 ->  | H98: =IF(ISERROR(A98),NA(),H97*(1+'Retirement Worksheet'!$B$15)) ->  | I98: =IF(ISERROR(A98),NA(),I97*(1+'Retirement Worksheet'!$B$15)) ->  | L98: =SUM('Retirement Calculations'!G98:I98)*'Retirement Worksheet'!$B$9 ->  | M98: =SUM(G98:I98)*'Retirement Worksheet'!$B$10 ->  | P98: =IF(ISERROR(A98),NA(),P97*(1+'Retirement Worksheet'!$B$15)) -> 
A99: =IF(A98<'Retirement Worksheet'!$B$5,A98+1,NA()) ->  | C99: =B99*'Retirement Worksheet'!$B$11 ->  | D99: =B99*'Retirement Worksheet'!$B$16 ->  | G99: =B99*'Retirement Worksheet'!$B$8 ->  | H99: =IF(ISERROR(A99),NA(),H98*(1+'Retirement Worksheet'!$B$15)) ->  | I99: =IF(ISERROR(A99),NA(),I98*(1+'Retirement Worksheet'!$B$15)) ->  | L99: =SUM('Retirement Calculations'!G99:I99)*'Retirement Worksheet'!$B$9 ->  | M99: =SUM(G99:I99)*'Retirement Worksheet'!$B$10 ->  | P99: =IF(ISERROR(A99),NA(),P98*(1+'Retirement Worksheet'!$B$15)) -> 
A100: =IF(A99<'Retirement Worksheet'!$B$5,A99+1,NA()) ->  | C100: =B100*'Retirement Worksheet'!$B$11 ->  | D100: =B100*'Retirement Worksheet'!$B$16 ->  | G100: =B100*'Retirement Worksheet'!$B$8 ->  | H100: =IF(ISERROR(A100),NA(),H99*(1+'Retirement Worksheet'!$B$15)) ->  | I100: =IF(ISERROR(A100),NA(),I99*(1+'Retirement Worksheet'!$B$15)) ->  | L100: =SUM('Retirement Calculations'!G100:I100)*'Retirement Worksheet'!$B$9 ->  | M100: =SUM(G100:I100)*'Retirement Worksheet'!$B$10 ->  | P100: =IF(ISERROR(A100),NA(),P99*(1+'Retirement Worksheet'!$B$15)) -> 
A101: =IF(A100<'Retirement Worksheet'!$B$5,A100+1,NA()) ->  | C101: =B101*'Retirement Worksheet'!$B$11 ->  | D101: =B101*'Retirement Worksheet'!$B$16 ->  | G101: =B101*'Retirement Worksheet'!$B$8 ->  | H101: =IF(ISERROR(A101),NA(),H100*(1+'Retirement Worksheet'!$B$15)) ->  | I101: =IF(ISERROR(A101),NA(),I100*(1+'Retirement Worksheet'!$B$15)) ->  | L101: =SUM('Retirement Calculations'!G101:I101)*'Retirement Worksheet'!$B$9 ->  | M101: =SUM(G101:I101)*'Retirement Worksheet'!$B$10 ->  | P101: =IF(ISERROR(A101),NA(),P100*(1+'Retirement Worksheet'!$B$15)) -> 
A102: =IF(A101<'Retirement Worksheet'!$B$5,A101+1,NA()) ->  | C102: =B102*'Retirement Worksheet'!$B$11 ->  | D102: =B102*'Retirement Worksheet'!$B$16 ->  | G102: =B102*'Retirement Worksheet'!$B$8 ->  | H102: =IF(ISERROR(A102),NA(),H101*(1+'Retirement Worksheet'!$B$15)) ->  | I102: =IF(ISERROR(A102),NA(),I101*(1+'Retirement Worksheet'!$B$15)) ->  | L102: =SUM('Retirement Calculations'!G102:I102)*'Retirement Worksheet'!$B$9 ->  | M102: =SUM(G102:I102)*'Retirement Worksheet'!$B$10 ->  | P102: =IF(ISERROR(A102),NA(),P101*(1+'Retirement Worksheet'!$B$15)) -> 
A103: =IF(A102<'Retirement Worksheet'!$B$5,A102+1,NA()) ->  | C103: =B103*'Retirement Worksheet'!$B$11 ->  | D103: =B103*'Retirement Worksheet'!$B$16 ->  | G103: =B103*'Retirement Worksheet'!$B$8 ->  | H103: =IF(ISERROR(A103),NA(),H102*(1+'Retirement Worksheet'!$B$15)) ->  | I103: =IF(ISERROR(A103),NA(),I102*(1+'Retirement Worksheet'!$B$15)) ->  | L103: =SUM('Retirement Calculations'!G103:I103)*'Retirement Worksheet'!$B$9 ->  | M103: =SUM(G103:I103)*'Retirement Worksheet'!$B$10 ->  | P103: =IF(ISERROR(A103),NA(),P102*(1+'Retirement Worksheet'!$B$15)) -> 
A104: =IF(A103<'Retirement Worksheet'!$B$5,A103+1,NA()) ->  | C104: =B104*'Retirement Worksheet'!$B$11 ->  | D104: =B104*'Retirement Worksheet'!$B$16 ->  | G104: =B104*'Retirement Worksheet'!$B$8 ->  | H104: =IF(ISERROR(A104),NA(),H103*(1+'Retirement Worksheet'!$B$15)) ->  | I104: =IF(ISERROR(A104),NA(),I103*(1+'Retirement Worksheet'!$B$15)) ->  | L104: =SUM('Retirement Calculations'!G104:I104)*'Retirement Worksheet'!$B$9 ->  | M104: =SUM(G104:I104)*'Retirement Worksheet'!$B$10 ->  | P104: =IF(ISERROR(A104),NA(),P103*(1+'Retirement Worksheet'!$B$15)) -> 
A105: =IF(A104<'Retirement Worksheet'!$B$5,A104+1,NA()) ->  | C105: =B105*'Retirement Worksheet'!$B$11 ->  | D105: =B105*'Retirement Worksheet'!$B$16 ->  | G105: =B105*'Retirement Worksheet'!$B$8 ->  | H105: =IF(ISERROR(A105),NA(),H104*(1+'Retirement Worksheet'!$B$15)) ->  | I105: =IF(ISERROR(A105),NA(),I104*(1+'Retirement Worksheet'!$B$15)) ->  | L105: =SUM('Retirement Calculations'!G105:I105)*'Retirement Worksheet'!$B$9 ->  | M105: =SUM(G105:I105)*'Retirement Worksheet'!$B$10 ->  | P105: =IF(ISERROR(A105),NA(),P104*(1+'Retirement Worksheet'!$B$15)) -> 
A106: =IF(A105<'Retirement Worksheet'!$B$5,A105+1,NA()) ->  | C106: =B106*'Retirement Worksheet'!$B$11 ->  | D106: =B106*'Retirement Worksheet'!$B$16 ->  | G106: =B106*'Retirement Worksheet'!$B$8 ->  | H106: =IF(ISERROR(A106),NA(),H105*(1+'Retirement Worksheet'!$B$15)) ->  | I106: =IF(ISERROR(A106),NA(),I105*(1+'Retirement Worksheet'!$B$15)) ->  | L106: =SUM('Retirement Calculations'!G106:I106)*'Retirement Worksheet'!$B$9 ->  | M106: =SUM(G106:I106)*'Retirement Worksheet'!$B$10 ->  | P106: =IF(ISERROR(A106),NA(),P105*(1+'Retirement Worksheet'!$B$15)) -> 
A107: =IF(A106<'Retirement Worksheet'!$B$5,A106+1,NA()) ->  | C107: =B107*'Retirement Worksheet'!$B$11 ->  | D107: =B107*'Retirement Worksheet'!$B$16 ->  | G107: =B107*'Retirement Worksheet'!$B$8 ->  | H107: =IF(ISERROR(A107),NA(),H106*(1+'Retirement Worksheet'!$B$15)) ->  | I107: =IF(ISERROR(A107),NA(),I106*(1+'Retirement Worksheet'!$B$15)) ->  | L107: =SUM('Retirement Calculations'!G107:I107)*'Retirement Worksheet'!$B$9 ->  | M107: =SUM(G107:I107)*'Retirement Worksheet'!$B$10 ->  | P107: =IF(ISERROR(A107),NA(),P106*(1+'Retirement Worksheet'!$B$15)) -> 
